Body Name,Vendor Number,Vendor Name,Cost Centre,Service Label,BV Code,Amount,Period
Slough Borough Council,1869,3Ms Gold Services Limited,P006,Capital,Capital Charges,"8,272.93",Sep-23
Slough Borough Council,536,Ability Housing Association,M42E,Adult Social Care Operations,Supplies and Services,"3,490.51",Sep-23
Slough Borough Council,536,Ability Housing Association,M42E,Adult Social Care Operations,Supplies and Services,"2,788.84",Sep-23
Slough Borough Council,536,Ability Housing Association,M42E,Adult Social Care Operations,Supplies and Services,"2,895.29",Sep-23
Slough Borough Council,536,Ability Housing Association,M42E,Adult Social Care Operations,Supplies and Services,"2,852.71",Sep-23
Slough Borough Council,536,Ability Housing Association,M42E,Adult Social Care Operations,Supplies and Services,"2,860.19",Sep-23
Slough Borough Council,536,Ability Housing Association,M42E,Adult Social Care Operations,Supplies and Services,"2,835.72",Sep-23
Slough Borough Council,536,Ability Housing Association,M42E,Adult Social Care Operations,Supplies and Services,"3,023.04",Sep-23
Slough Borough Council,536,Ability Housing Association,M42E,Adult Social Care Operations,Supplies and Services,"2,682.39",Sep-23
Slough Borough Council,536,Ability Housing Association,M42E,Adult Social Care Operations,Supplies and Services,"1,532.71",Sep-23
Slough Borough Council,536,Ability Housing Association,M42E,Adult Social Care Operations,Supplies and Services,"2,008.57",Sep-23
Slough Borough Council,536,Ability Housing Association,M42E,Adult Social Care Operations,Supplies and Services,"2,583.40",Sep-23
Slough Borough Council,536,Ability Housing Association,M42E,Adult Social Care Operations,Supplies and Services,"1,967.08",Sep-23
Slough Borough Council,536,Ability Housing Association,M42E,Adult Social Care Operations,Supplies and Services,"3,261.53",Sep-23
Slough Borough Council,536,Ability Housing Association,M42E,Adult Social Care Operations,Supplies and Services,"2,861.24",Sep-23
Slough Borough Council,536,Ability Housing Association,M42E,Adult Social Care Operations,Supplies and Services,"2,924.06",Sep-23
Slough Borough Council,536,Ability Housing Association,M42E,Adult Social Care Operations,Supplies and Services,"2,668.57",Sep-23
Slough Borough Council,536,Ability Housing Association,M42E,Adult Social Care Operations,Supplies and Services,"1,348.57",Sep-23
Slough Borough Council,536,Ability Housing Association,M42E,Adult Social Care Operations,Supplies and Services,"3,222.12",Sep-23
Slough Borough Council,536,Ability Housing Association,M44E,Adult Social Care Operations,Supplies and Services,"1,997.04",Sep-23
Slough Borough Council,536,Ability Housing Association,M44E,Adult Social Care Operations,Supplies and Services,"2,354.72",Sep-23
Slough Borough Council,536,Ability Housing Association,M44E,Adult Social Care Operations,Supplies and Services,"2,439.88",Sep-23
Slough Borough Council,536,Ability Housing Association,M44E,Adult Social Care Operations,Supplies and Services,"1,924.65",Sep-23
Slough Borough Council,2898,Achieve Together t/a The Regard Partnership Ltd,M26E,Adult Social Care Operations,Supplies and Services,"7,278.43",Sep-23
Slough Borough Council,2898,Achieve Together t/a The Regard Partnership Ltd,M26E,Adult Social Care Operations,Supplies and Services,"6,147.17",Sep-23
Slough Borough Council,2898,Achieve Together t/a The Regard Partnership Ltd,M42E,Adult Social Care Operations,Supplies and Services,"6,562.71",Sep-23
Slough Borough Council,2898,Achieve Together t/a The Regard Partnership Ltd,M42E,Adult Social Care Operations,Supplies and Services,"6,786.99",Sep-23
Slough Borough Council,2898,Achieve Together t/a The Regard Partnership Ltd,M42E,Adult Social Care Operations,Supplies and Services,"5,040.04",Sep-23
Slough Borough Council,2898,Achieve Together t/a The Regard Partnership Ltd,M42E,Adult Social Care Operations,Supplies and Services,"6,347.57",Sep-23
Slough Borough Council,2898,Achieve Together t/a The Regard Partnership Ltd,M42E,Adult Social Care Operations,Supplies and Services,"5,162.44",Sep-23
Slough Borough Council,2898,Achieve Together t/a The Regard Partnership Ltd,M44D,Adult Social Care Operations,Supplies and Services,"4,684.71",Sep-23
Slough Borough Council,2898,Achieve Together t/a The Regard Partnership Ltd,M44E,Adult Social Care Operations,Supplies and Services,"5,630.79",Sep-23
Slough Borough Council,805529,Action First Recrutiment Ltd,A02A,People,Supplies and Services,"1,100.00",Sep-23
Slough Borough Council,805529,Action First Recrutiment Ltd,A02A,People,Supplies and Services,550.00,Sep-23
Slough Borough Council,805529,Action First Recrutiment Ltd,A02A,People,Supplies and Services,930.00,Sep-23
Slough Borough Council,2135,Adventure Learning Childcare Limited,F909,Children & Families,Supplies and Services,710.49,Sep-23
Slough Borough Council,2135,Adventure Learning Childcare Limited,F909,Children & Families,Supplies and Services,"12,339.77",Sep-23
Slough Borough Council,2135,Adventure Learning Childcare Limited,F909,Children & Families,Supplies and Services,528.00,Sep-23
Slough Borough Council,805178,AFM Transport Limited,P243,Capital,Supplies and Services,754.19,Sep-23
Slough Borough Council,2486,Agriculture And Estate Services Limited,P243,Capital,Capital Charges,"2,880.00",Sep-23
Slough Borough Council,808940,AJP Logistics Ltd,P242,Capital,Capital Charges,512.75,Sep-23
Slough Borough Council,809107,All About Place Ltd,D224,Place Regulation,Supplies and Services,"1,560.00",Sep-23
Slough Borough Council,809107,All About Place Ltd,D224,Place Regulation,Supplies and Services,"1,040.00",Sep-23
Slough Borough Council,809107,All About Place Ltd,D224,Place Regulation,Supplies and Services,520.00,Sep-23
Slough Borough Council,809107,All About Place Ltd,D224,Place Regulation,Supplies and Services,660.00,Sep-23
Slough Borough Council,809107,All About Place Ltd,D224,Place Regulation,Supplies and Services,660.00,Sep-23
Slough Borough Council,809107,All About Place Ltd,D224,Place Regulation,Supplies and Services,630.00,Sep-23
Slough Borough Council,806268,Allied Publicity Services (Manchester) Limited,A120,Customer,Supplies and Services,582.00,Sep-23
Slough Borough Council,2197,Altwood Housing Ltd,H205,Housing (People) Services,Supplies and Services,"1,798.00",Sep-23
Slough Borough Council,2197,Altwood Housing Ltd,H205,Housing (People) Services,Supplies and Services,837.00,Sep-23
Slough Borough Council,2197,Altwood Housing Ltd,H205,Housing (People) Services,Supplies and Services,"1,740.00",Sep-23
Slough Borough Council,2197,Altwood Housing Ltd,H205,Housing (People) Services,Supplies and Services,"1,798.00",Sep-23
Slough Borough Council,2197,Altwood Housing Ltd,H205,Housing (People) Services,Supplies and Services,990.00,Sep-23
Slough Borough Council,2197,Altwood Housing Ltd,H205,Housing (People) Services,Supplies and Services,"1,426.00",Sep-23
Slough Borough Council,2197,Altwood Housing Ltd,H205,Housing (People) Services,Supplies and Services,"1,116.00",Sep-23
Slough Borough Council,2197,Altwood Housing Ltd,H205,Housing (People) Services,Supplies and Services,"1,116.00",Sep-23
Slough Borough Council,2197,Altwood Housing Ltd,H205,Housing (People) Services,Supplies and Services,930.00,Sep-23
Slough Borough Council,2197,Altwood Housing Ltd,H205,Housing (People) Services,Supplies and Services,"1,116.00",Sep-23
Slough Borough Council,2197,Altwood Housing Ltd,H205,Housing (People) Services,Supplies and Services,"1,023.00",Sep-23
Slough Borough Council,2197,Altwood Housing Ltd,H205,Housing (People) Services,Supplies and Services,810.00,Sep-23
Slough Borough Council,2197,Altwood Housing Ltd,H205,Housing (People) Services,Supplies and Services,990.00,Sep-23
Slough Borough Council,2197,Altwood Housing Ltd,H205,Housing (People) Services,Supplies and Services,"1,023.00",Sep-23
Slough Borough Council,2197,Altwood Housing Ltd,H205,Housing (People) Services,Supplies and Services,693.00,Sep-23
Slough Borough Council,2197,Altwood Housing Ltd,H205,Housing (People) Services,Supplies and Services,"1,023.00",Sep-23
Slough Borough Council,2197,Altwood Housing Ltd,H205,Housing (People) Services,Supplies and Services,990.00,Sep-23
Slough Borough Council,86,Altwood Properties Ltd,H205,Housing (People) Services,Premises,"49,392.66",Sep-23
Slough Borough Council,807515,Always Growing Together Community Interest Company Limited,F909,Children & Families,Supplies and Services,557.14,Sep-23
Slough Borough Council,807515,Always Growing Together Community Interest Company Limited,F909,Children & Families,Supplies and Services,"9,357.37",Sep-23
Slough Borough Council,805979,AMBITIOUS ABOUT AUTISM,F551,Children & Families,Supplies and Services,"11,754.59",Sep-23
Slough Borough Council,808191,Ambrose Adrian Healthcare Ltd,M44E,Adult Social Care Operations,Supplies and Services,"4,750.00",Sep-23
Slough Borough Council,808191,Ambrose Adrian Healthcare Ltd,M48C,Adult Social Care Operations,Supplies and Services,"2,734.75",Sep-23
Slough Borough Council,808191,Ambrose Adrian Healthcare Ltd,M48C,Adult Social Care Operations,Supplies and Services,"2,734.13",Sep-23
Slough Borough Council,808191,Ambrose Adrian Healthcare Ltd,M48C,Adult Social Care Operations,Supplies and Services,"2,755.25",Sep-23
Slough Borough Council,808191,Ambrose Adrian Healthcare Ltd,M48C,Adult Social Care Operations,Supplies and Services,"2,846.75",Sep-23
Slough Borough Council,808191,Ambrose Adrian Healthcare Ltd,M48C,Adult Social Care Operations,Supplies and Services,"2,751.50",Sep-23
Slough Borough Council,808368,Anthony Toby Homes Trust,M26E,Adult Social Care Operations,Supplies and Services,"5,321.80",Sep-23
Slough Borough Council,808368,Anthony Toby Homes Trust,M26E,Adult Social Care Operations,Supplies and Services,"6,353.22",Sep-23
Slough Borough Council,808368,Anthony Toby Homes Trust,M26E,Adult Social Care Operations,Supplies and Services,"2,485.33",Sep-23
Slough Borough Council,807893,Antz Kidz Activity Centre,F382,Children & Families,Supplies and Services,"11,624.50",Sep-23
Slough Borough Council,3137,Applegarth Care Home Ltd,M25C,Adult Social Care Operations,Supplies and Services,"3,600.00",Sep-23
Slough Borough Council,3137,Applegarth Care Home Ltd,M25C,Adult Social Care Operations,Supplies and Services,"3,200.00",Sep-23
Slough Borough Council,3137,Applegarth Care Home Ltd,M29C,Adult Social Care Operations,Supplies and Services,"3,400.00",Sep-23
Slough Borough Council,3137,Applegarth Care Home Ltd,M29C,Adult Social Care Operations,Supplies and Services,"2,428.60",Sep-23
Slough Borough Council,808415,APTUS EA LTD,H205,Housing (People) Services,Supplies and Services,"202,443.00",Sep-23
Slough Borough Council,511,Aquaneed Limited,P006,Capital,Capital Charges,"12,752.87",Sep-23
Slough Borough Council,3350,Arbour Vale School,E610,Children & Families,Supplies and Services,"458,718.80",Sep-23
Slough Borough Council,2073,Arc Preschool,F909,Children & Families,Supplies and Services,702.45,Sep-23
Slough Borough Council,2073,Arc Preschool,F909,Children & Families,Supplies and Services,"7,750.19",Sep-23
Slough Borough Council,2073,Arc Preschool,F909,Children & Families,Supplies and Services,792.00,Sep-23
Slough Borough Council,831,Argos Business Solutions Ltd,H055,Finance & Commercial,Supplies and Services,"1,479.10",Sep-23
Slough Borough Council,831,Argos Business Solutions Ltd,H055,Finance & Commercial,Supplies and Services,"5,484.00",Sep-23
Slough Borough Council,831,Argos Business Solutions Ltd,H055,Finance & Commercial,Supplies and Services,"9,302.80",Sep-23
Slough Borough Council,831,Argos Business Solutions Ltd,H055,Finance & Commercial,Supplies and Services,"17,446.50",Sep-23
Slough Borough Council,809029,ASH TEIKO,F253,Children & Families,Agency Staff,800.00,Sep-23
Slough Borough Council,420,Ashburn Estate Agents,H205,Housing (People) Services,Premises,"108,504.00",Sep-23
Slough Borough Council,805321,Asma Mobashir,F909,Children & Families,Supplies and Services,610.05,Sep-23
Slough Borough Council,808720,Aspect Lifts Ltd,B060,Business Services,Premises,844.06,Sep-23
Slough Borough Council,808720,Aspect Lifts Ltd,B060,Business Services,Premises,844.06,Sep-23
Slough Borough Council,3666,Assisted Living South West,M26E,Adult Social Care Operations,Supplies and Services,"6,778.96",Sep-23
Slough Borough Council,3666,Assisted Living South West,M26E,Adult Social Care Operations,Supplies and Services,"5,105.00",Sep-23
Slough Borough Council,1292,Association Of Electoral Administrators,B246,Business Services,Indirect Employee Expenses,742.50,Sep-23
Slough Borough Council,804324,Astoria Healthcare,M27F,Adult Social Care Operations,Supplies and Services,"4,275.00",Sep-23
Slough Borough Council,3370,Baylis Court School,E610,Children & Families,Supplies and Services,"4,791.67",Sep-23
Slough Borough Council,3208,Be Happy Pre School,F909,Children & Families,Supplies and Services,"1,860.95",Sep-23
Slough Borough Council,3208,Be Happy Pre School,F909,Children & Families,Supplies and Services,690.21,Sep-23
Slough Borough Council,3208,Be Happy Pre School,F909,Children & Families,Supplies and Services,"16,074.49",Sep-23
Slough Borough Council,3208,Be Happy Pre School,F909,Children & Families,Supplies and Services,"7,754.53",Sep-23
Slough Borough Council,609,Beechwood Secondary School,E610,Children & Families,Supplies and Services,"4,458.33",Sep-23
Slough Borough Council,804588,BEN Motor & Allied Trades Bev.Fnd,M15D,Adult Social Care Operations,Supplies and Services,"6,400.00",Sep-23
Slough Borough Council,804588,BEN Motor & Allied Trades Bev.Fnd,M15D,Adult Social Care Operations,Supplies and Services,"6,400.00",Sep-23
Slough Borough Council,804588,BEN Motor & Allied Trades Bev.Fnd,M15D,Adult Social Care Operations,Supplies and Services,"6,400.00",Sep-23
Slough Borough Council,804588,BEN Motor & Allied Trades Bev.Fnd,M27C,Adult Social Care Operations,Supplies and Services,"5,600.00",Sep-23
Slough Borough Council,804588,BEN Motor & Allied Trades Bev.Fnd,M27C,Adult Social Care Operations,Supplies and Services,-800.00,Sep-23
Slough Borough Council,804588,BEN Motor & Allied Trades Bev.Fnd,M27C,Adult Social Care Operations,Supplies and Services,-800.00,Sep-23
Slough Borough Council,804588,BEN Motor & Allied Trades Bev.Fnd,M27C,Adult Social Care Operations,Supplies and Services,"5,000.00",Sep-23
Slough Borough Council,804588,BEN Motor & Allied Trades Bev.Fnd,M27C,Adult Social Care Operations,Supplies and Services,"5,800.00",Sep-23
Slough Borough Council,804588,BEN Motor & Allied Trades Bev.Fnd,M27C,Adult Social Care Operations,Supplies and Services,"5,400.00",Sep-23
Slough Borough Council,804588,BEN Motor & Allied Trades Bev.Fnd,M27C,Adult Social Care Operations,Supplies and Services,"5,600.00",Sep-23
Slough Borough Council,804588,BEN Motor & Allied Trades Bev.Fnd,M27C,Adult Social Care Operations,Supplies and Services,"5,800.00",Sep-23
Slough Borough Council,804588,BEN Motor & Allied Trades Bev.Fnd,M27C,Adult Social Care Operations,Supplies and Services,"5,400.00",Sep-23
Slough Borough Council,804588,BEN Motor & Allied Trades Bev.Fnd,M27C,Adult Social Care Operations,Supplies and Services,"5,400.00",Sep-23
Slough Borough Council,804588,BEN Motor & Allied Trades Bev.Fnd,M27C,Adult Social Care Operations,Supplies and Services,"5,600.00",Sep-23
Slough Borough Council,612,Berkshire Healthcare Nhs Foundation Trust,A07R,Adult Social Care Operations,Supplies and Services,"19,746.00",Sep-23
Slough Borough Council,2308,Bespoke Supportive Tenancies Ltd,A04L,Adult Social Care Operations,Supplies and Services,"2,041.27",Sep-23
Slough Borough Council,808148,BEST CHOICE CARE LTD,A07R,Adult Social Care Operations,Supplies and Services,630.00,Sep-23
Slough Borough Council,808148,BEST CHOICE CARE LTD,M44C,Adult Social Care Operations,Supplies and Services,612.64,Sep-23
Slough Borough Council,808148,BEST CHOICE CARE LTD,M44C,Adult Social Care Operations,Supplies and Services,"1,470.28",Sep-23
Slough Borough Council,808148,BEST CHOICE CARE LTD,M44C,Adult Social Care Operations,Supplies and Services,575.26,Sep-23
Slough Borough Council,808148,BEST CHOICE CARE LTD,M44C,Adult Social Care Operations,Supplies and Services,822.66,Sep-23
Slough Borough Council,808148,BEST CHOICE CARE LTD,M44C,Adult Social Care Operations,Supplies and Services,538.26,Sep-23
Slough Borough Council,808148,BEST CHOICE CARE LTD,M44C,Adult Social Care Operations,Supplies and Services,"1,470.28",Sep-23
Slough Borough Council,808148,BEST CHOICE CARE LTD,M44C,Adult Social Care Operations,Supplies and Services,980.00,Sep-23
Slough Borough Council,808148,BEST CHOICE CARE LTD,M44C,Adult Social Care Operations,Supplies and Services,"1,003.75",Sep-23
Slough Borough Council,808148,BEST CHOICE CARE LTD,M44C,Adult Social Care Operations,Supplies and Services,857.64,Sep-23
Slough Borough Council,808148,BEST CHOICE CARE LTD,M44C,Adult Social Care Operations,Supplies and Services,"1,837.78",Sep-23
Slough Borough Council,808148,BEST CHOICE CARE LTD,M44D,Adult Social Care Operations,Supplies and Services,"2,485.00",Sep-23
Slough Borough Council,808148,BEST CHOICE CARE LTD,M45C,Adult Social Care Operations,Supplies and Services,612.50,Sep-23
Slough Borough Council,808148,BEST CHOICE CARE LTD,M45C,Adult Social Care Operations,Supplies and Services,525.00,Sep-23
Slough Borough Council,806987,Better Life Care Ltd,M44E,Adult Social Care Operations,Supplies and Services,"5,500.00",Sep-23
Slough Borough Council,1736,Bevan Brittan Llp,P242,Capital,Capital Charges,"2,879.00",Sep-23
Slough Borough Council,1736,Bevan Brittan Llp,P242,Capital,Capital Charges,628.00,Sep-23
Slough Borough Council,1224,Big Yellow Self Storage,F253,Children & Families,Premises,644.00,Sep-23
Slough Borough Council,3611,Birch Assist Ltd T/A Bluebird Care (South Bucks & Slough),M44D,Adult Social Care Operations,Supplies and Services,"2,982.00",Sep-23
Slough Borough Council,808979,Blackhawk Network EMEA Limited,H055,Finance & Commercial,Supplies and Services,"197,440.00",Sep-23
Slough Borough Council,803828,Blue Willow Day Nursery Ltd,F909,Children & Families,Supplies and Services,"2,002.96",Sep-23
Slough Borough Council,803828,Blue Willow Day Nursery Ltd,F909,Children & Families,Supplies and Services,"23,486.65",Sep-23
Slough Borough Council,806917,Boulters Lock,M28C,Adult Social Care Operations,Supplies and Services,"4,500.00",Sep-23
Slough Borough Council,805160,Bouygues E&S FM UK Limited,B060,Business Services,Premises,"5,186.96",Sep-23
Slough Borough Council,805160,Bouygues E&S FM UK Limited,B060,Business Services,Premises,"5,186.96",Sep-23
Slough Borough Council,805160,Bouygues E&S FM UK Limited,B060,Business Services,Premises,"5,186.96",Sep-23
Slough Borough Council,805160,Bouygues E&S FM UK Limited,K521,Business Services,Premises,"37,469.35",Sep-23
Slough Borough Council,805160,Bouygues E&S FM UK Limited,K521,Business Services,Premises,"1,500.00",Sep-23
Slough Borough Council,2856,Brain Injury Rehabilitation Trust,M26E,Adult Social Care Operations,Supplies and Services,"5,937.65",Sep-23
Slough Borough Council,2856,Brain Injury Rehabilitation Trust,M26E,Adult Social Care Operations,Supplies and Services,"5,746.11",Sep-23
Slough Borough Council,2856,Brain Injury Rehabilitation Trust,M27C,Adult Social Care Operations,Supplies and Services,"7,240.33",Sep-23
Slough Borough Council,2856,Brain Injury Rehabilitation Trust,M27C,Adult Social Care Operations,Supplies and Services,"7,481.67",Sep-23
Slough Borough Council,2856,Brain Injury Rehabilitation Trust,M27C,Adult Social Care Operations,Supplies and Services,"7,481.67",Sep-23
Slough Borough Council,805817,Bright World Nurseries,F909,Children & Families,Supplies and Services,"1,562.59",Sep-23
Slough Borough Council,805817,Bright World Nurseries,F909,Children & Families,Supplies and Services,"9,463.88",Sep-23
Slough Borough Council,3409,British Gas,J015,Place Management,Premises,"2,104.43",Sep-23
Slough Borough Council,3409,British Gas,J015,Place Management,Premises,501.03,Sep-23
Slough Borough Council,3409,British Gas,J015,Place Management,Premises,"2,023.91",Sep-23
Slough Borough Council,3409,British Gas,J015,Place Management,Premises,"1,118.82",Sep-23
Slough Borough Council,3409,British Gas,J015,Place Management,Premises,"2,188.43",Sep-23
Slough Borough Council,3409,British Gas,J015,Place Management,Premises,"2,191.35",Sep-23
Slough Borough Council,617,British Telecommunications,K089,Place Regulation,Supplies and Services,"1,997.16",Sep-23
Slough Borough Council,617,British Telecommunications,H205,Housing (People) Services,Supplies and Services,721.80,Sep-23
Slough Borough Council,504,Britwell Baptist Pre School,F909,Children & Families,Supplies and Services,"1,107.39",Sep-23
Slough Borough Council,504,Britwell Baptist Pre School,F909,Children & Families,Supplies and Services,"3,392.11",Sep-23
Slough Borough Council,741,Bunnies Pre-School,F909,Children & Families,Supplies and Services,"6,624.22",Sep-23
Slough Borough Council,741,Bunnies Pre-School,F909,Children & Families,Supplies and Services,792.00,Sep-23
Slough Borough Council,803553,BUPA CARE HOME (CFH CARE),M25D,Adult Social Care Operations,Supplies and Services,"3,476.19",Sep-23
Slough Borough Council,803553,BUPA CARE HOME (CFH CARE),M25D,Adult Social Care Operations,Supplies and Services,"3,476.19",Sep-23
Slough Borough Council,804448,Bupa Care Homes (ANS) Ltd,M15D,Adult Social Care Operations,Supplies and Services,"6,054.03",Sep-23
Slough Borough Council,804448,Bupa Care Homes (ANS) Ltd,M15D,Adult Social Care Operations,Supplies and Services,"6,642.86",Sep-23
Slough Borough Council,804448,Bupa Care Homes (ANS) Ltd,M15D,Adult Social Care Operations,Supplies and Services,"5,858.74",Sep-23
Slough Borough Council,804448,Bupa Care Homes (ANS) Ltd,M15D,Adult Social Care Operations,Supplies and Services,"6,054.03",Sep-23
Slough Borough Council,804448,Bupa Care Homes (ANS) Ltd,M15D,Adult Social Care Operations,Supplies and Services,"6,642.86",Sep-23
Slough Borough Council,2675,Burnham Lodge Ltd,A02E,Adult Social Care Operations,Supplies and Services,"5,314.33",Sep-23
Slough Borough Council,2675,Burnham Lodge Ltd,A02E,Adult Social Care Operations,Supplies and Services,"5,314.33",Sep-23
Slough Borough Council,2675,Burnham Lodge Ltd,M15D,Adult Social Care Operations,Supplies and Services,"5,314.33",Sep-23
Slough Borough Council,806950,Burrbaxter Print Ltd,B033,Customer,Supplies and Services,954.00,Sep-23
Slough Borough Council,2177,C F Roberts (Electrical Contractors)Plc,P180,Capital,Capital Charges,"1,077.21",Sep-23
Slough Borough Council,629,C.H.O.I.C.E Limited,M26E,Adult Social Care Operations,Supplies and Services,"6,117.05",Sep-23
Slough Borough Council,629,C.H.O.I.C.E Limited,M26E,Adult Social Care Operations,Supplies and Services,"6,421.47",Sep-23
Slough Borough Council,629,C.H.O.I.C.E Limited,M26E,Adult Social Care Operations,Supplies and Services,"8,738.50",Sep-23
Slough Borough Council,629,C.H.O.I.C.E Limited,M26E,Adult Social Care Operations,Supplies and Services,"6,806.76",Sep-23
Slough Borough Council,629,C.H.O.I.C.E Limited,M26E,Adult Social Care Operations,Supplies and Services,"6,795.25",Sep-23
Slough Borough Council,629,C.H.O.I.C.E Limited,M26E,Adult Social Care Operations,Supplies and Services,"11,402.23",Sep-23
Slough Borough Council,629,C.H.O.I.C.E Limited,M26E,Adult Social Care Operations,Supplies and Services,"10,725.31",Sep-23
Slough Borough Council,629,C.H.O.I.C.E Limited,M26E,Adult Social Care Operations,Supplies and Services,"6,576.05",Sep-23
Slough Borough Council,629,C.H.O.I.C.E Limited,M26E,Adult Social Care Operations,Supplies and Services,947.31,Sep-23
Slough Borough Council,629,C.H.O.I.C.E Limited,M26E,Adult Social Care Operations,Supplies and Services,"9,262.81",Sep-23
Slough Borough Council,629,C.H.O.I.C.E Limited,M26E,Adult Social Care Operations,Supplies and Services,"8,964.01",Sep-23
Slough Borough Council,629,C.H.O.I.C.E Limited,M26E,Adult Social Care Operations,Supplies and Services,"10,725.31",Sep-23
Slough Borough Council,629,C.H.O.I.C.E Limited,M26E,Adult Social Care Operations,Supplies and Services,"12,502.24",Sep-23
Slough Borough Council,629,C.H.O.I.C.E Limited,M26E,Adult Social Care Operations,Supplies and Services,"11,346.73",Sep-23
Slough Borough Council,629,C.H.O.I.C.E Limited,M26E,Adult Social Care Operations,Supplies and Services,"11,270.32",Sep-23
Slough Borough Council,629,C.H.O.I.C.E Limited,M26E,Adult Social Care Operations,Supplies and Services,"11,000.35",Sep-23
Slough Borough Council,629,C.H.O.I.C.E Limited,M26E,Adult Social Care Operations,Supplies and Services,"11,737.59",Sep-23
Slough Borough Council,629,C.H.O.I.C.E Limited,M26E,Adult Social Care Operations,Supplies and Services,"9,499.59",Sep-23
Slough Borough Council,629,C.H.O.I.C.E Limited,M26E,Adult Social Care Operations,Supplies and Services,"8,964.01",Sep-23
Slough Borough Council,629,C.H.O.I.C.E Limited,M42E,Adult Social Care Operations,Supplies and Services,648.00,Sep-23
Slough Borough Council,629,C.H.O.I.C.E Limited,M42E,Adult Social Care Operations,Supplies and Services,"6,033.90",Sep-23
Slough Borough Council,629,C.H.O.I.C.E Limited,M42E,Adult Social Care Operations,Supplies and Services,"1,107.14",Sep-23
Slough Borough Council,629,C.H.O.I.C.E Limited,M42E,Adult Social Care Operations,Supplies and Services,"-3,297.64",Sep-23
Slough Borough Council,629,C.H.O.I.C.E Limited,M42E,Adult Social Care Operations,Supplies and Services,"5,517.64",Sep-23
Slough Borough Council,629,C.H.O.I.C.E Limited,M42E,Adult Social Care Operations,Supplies and Services,"5,550.64",Sep-23
Slough Borough Council,629,C.H.O.I.C.E Limited,M42E,Adult Social Care Operations,Supplies and Services,"1,000.00",Sep-23
Slough Borough Council,629,C.H.O.I.C.E Limited,M42E,Adult Social Care Operations,Supplies and Services,"6,514.07",Sep-23
Slough Borough Council,629,C.H.O.I.C.E Limited,M42E,Adult Social Care Operations,Supplies and Services,"6,475.32",Sep-23
Slough Borough Council,629,C.H.O.I.C.E Limited,M42E,Adult Social Care Operations,Supplies and Services,"5,594.96",Sep-23
Slough Borough Council,629,C.H.O.I.C.E Limited,M42E,Adult Social Care Operations,Supplies and Services,"5,127.64",Sep-23
Slough Borough Council,629,C.H.O.I.C.E Limited,M42E,Adult Social Care Operations,Supplies and Services,"6,514.07",Sep-23
Slough Borough Council,629,C.H.O.I.C.E Limited,M42E,Adult Social Care Operations,Supplies and Services,"6,017.63",Sep-23
Slough Borough Council,629,C.H.O.I.C.E Limited,M42E,Adult Social Care Operations,Supplies and Services,"1,173.57",Sep-23
Slough Borough Council,629,C.H.O.I.C.E Limited,M42E,Adult Social Care Operations,Supplies and Services,"6,609.11",Sep-23
Slough Borough Council,629,C.H.O.I.C.E Limited,M44F,Adult Social Care Operations,Supplies and Services,"2,355.68",Sep-23
Slough Borough Council,629,C.H.O.I.C.E Limited,M44F,Adult Social Care Operations,Supplies and Services,"2,332.04",Sep-23
Slough Borough Council,629,C.H.O.I.C.E Limited,M44F,Adult Social Care Operations,Supplies and Services,"2,764.54",Sep-23
Slough Borough Council,629,C.H.O.I.C.E Limited,M44F,Adult Social Care Operations,Supplies and Services,"2,764.54",Sep-23
Slough Borough Council,629,C.H.O.I.C.E Limited,M44F,Adult Social Care Operations,Supplies and Services,"2,736.81",Sep-23
Slough Borough Council,629,C.H.O.I.C.E Limited,M44F,Adult Social Care Operations,Supplies and Services,"2,675.36",Sep-23
Slough Borough Council,629,C.H.O.I.C.E Limited,M26E,Adult Social Care Operations,External Receipts,-506.14,Sep-23
Slough Borough Council,805414,Calibration Engineering Service Ltd,D750,Place Operations,Supplies and Services,"3,200.00",Sep-23
Slough Borough Council,623,Canon (Uk) Ltd,K059,Business Services,Supplies and Services,"2,298.42",Sep-23
Slough Borough Council,807068,Capita Business Services Limited,H015,Finance & Commercial,Supplies and Services,"9,926.69",Sep-23
Slough Borough Council,808972,Cardea Healthcare,M44E,Adult Social Care Operations,Supplies and Services,668.24,Sep-23
Slough Borough Council,808972,Cardea Healthcare,M44E,Adult Social Care Operations,Supplies and Services,668.26,Sep-23
Slough Borough Council,808972,Cardea Healthcare,M44E,Adult Social Care Operations,Supplies and Services,668.26,Sep-23
Slough Borough Council,808972,Cardea Healthcare,M44E,Adult Social Care Operations,Supplies and Services,668.24,Sep-23
Slough Borough Council,808972,Cardea Healthcare,M44E,Adult Social Care Operations,Supplies and Services,862.86,Sep-23
Slough Borough Council,808972,Cardea Healthcare,M44E,Adult Social Care Operations,Supplies and Services,668.26,Sep-23
Slough Borough Council,808972,Cardea Healthcare,M44E,Adult Social Care Operations,Supplies and Services,580.13,Sep-23
Slough Borough Council,808972,Cardea Healthcare,M44E,Adult Social Care Operations,Supplies and Services,668.26,Sep-23
Slough Borough Council,805717,Care Management Group Ltd,M26E,Adult Social Care Operations,Supplies and Services,"12,972.66",Sep-23
Slough Borough Council,805717,Care Management Group Ltd,M26E,Adult Social Care Operations,Supplies and Services,"12,972.66",Sep-23
Slough Borough Council,805621,Care Staff Services,A07R,Adult Social Care Operations,Supplies and Services,"1,058.75",Sep-23
Slough Borough Council,805621,Care Staff Services,A07R,Adult Social Care Operations,Supplies and Services,"1,216.25",Sep-23
Slough Borough Council,805621,Care Staff Services,A07R,Adult Social Care Operations,Supplies and Services,905.63,Sep-23
Slough Borough Council,805621,Care Staff Services,A07R,Adult Social Care Operations,Supplies and Services,971.25,Sep-23
Slough Borough Council,805621,Care Staff Services,A07R,Adult Social Care Operations,Supplies and Services,590.63,Sep-23
Slough Borough Council,805621,Care Staff Services,A07R,Adult Social Care Operations,Supplies and Services,529.38,Sep-23
Slough Borough Council,805621,Care Staff Services,A07R,Adult Social Care Operations,Supplies and Services,"1,032.50",Sep-23
Slough Borough Council,805621,Care Staff Services,A07R,Adult Social Care Operations,Supplies and Services,533.75,Sep-23
Slough Borough Council,805621,Care Staff Services,A07R,Adult Social Care Operations,Supplies and Services,844.38,Sep-23
Slough Borough Council,805621,Care Staff Services,A07R,Adult Social Care Operations,Supplies and Services,"1,181.25",Sep-23
Slough Borough Council,805621,Care Staff Services,A07R,Adult Social Care Operations,Supplies and Services,883.75,Sep-23
Slough Borough Council,805621,Care Staff Services,A07R,Adult Social Care Operations,Supplies and Services,"1,767.50",Sep-23
Slough Borough Council,805621,Care Staff Services,A07R,Adult Social Care Operations,Supplies and Services,853.13,Sep-23
Slough Borough Council,805621,Care Staff Services,A07R,Adult Social Care Operations,Supplies and Services,551.25,Sep-23
Slough Borough Council,805621,Care Staff Services,A07R,Adult Social Care Operations,Supplies and Services,918.75,Sep-23
Slough Borough Council,805621,Care Staff Services,A07R,Adult Social Care Operations,Supplies and Services,"1,789.38",Sep-23
Slough Borough Council,805621,Care Staff Services,A07R,Adult Social Care Operations,Supplies and Services,735.00,Sep-23
Slough Borough Council,805621,Care Staff Services,M44C,Adult Social Care Operations,Supplies and Services,-511.88,Sep-23
Slough Borough Council,805621,Care Staff Services,M44C,Adult Social Care Operations,Supplies and Services,"2,520.00",Sep-23
Slough Borough Council,805621,Care Staff Services,M44C,Adult Social Care Operations,Supplies and Services,"2,205.00",Sep-23
Slough Borough Council,805621,Care Staff Services,M44C,Adult Social Care Operations,Supplies and Services,857.50,Sep-23
Slough Borough Council,805621,Care Staff Services,M44C,Adult Social Care Operations,Supplies and Services,"2,331.00",Sep-23
Slough Borough Council,805621,Care Staff Services,M44C,Adult Social Care Operations,Supplies and Services,853.13,Sep-23
Slough Borough Council,805621,Care Staff Services,M44C,Adult Social Care Operations,Supplies and Services,581.88,Sep-23
Slough Borough Council,805621,Care Staff Services,M44C,Adult Social Care Operations,Supplies and Services,997.50,Sep-23
Slough Borough Council,805621,Care Staff Services,M44C,Adult Social Care Operations,Supplies and Services,906.50,Sep-23
Slough Borough Council,805621,Care Staff Services,M44C,Adult Social Care Operations,Supplies and Services,752.55,Sep-23
Slough Borough Council,805621,Care Staff Services,M44C,Adult Social Care Operations,Supplies and Services,835.63,Sep-23
Slough Borough Council,805621,Care Staff Services,M44C,Adult Social Care Operations,Supplies and Services,857.50,Sep-23
Slough Borough Council,805621,Care Staff Services,M44C,Adult Social Care Operations,Supplies and Services,518.00,Sep-23
Slough Borough Council,805621,Care Staff Services,M44C,Adult Social Care Operations,Supplies and Services,"1,120.00",Sep-23
Slough Borough Council,805621,Care Staff Services,M44C,Adult Social Care Operations,Supplies and Services,857.50,Sep-23
Slough Borough Council,805621,Care Staff Services,M44C,Adult Social Care Operations,Supplies and Services,875.00,Sep-23
Slough Borough Council,805621,Care Staff Services,M44C,Adult Social Care Operations,Supplies and Services,"2,625.00",Sep-23
Slough Borough Council,805621,Care Staff Services,M44C,Adult Social Care Operations,Supplies and Services,"2,450.00",Sep-23
Slough Borough Council,805621,Care Staff Services,M44C,Adult Social Care Operations,Supplies and Services,520.63,Sep-23
Slough Borough Council,805621,Care Staff Services,M44C,Adult Social Care Operations,Supplies and Services,980.00,Sep-23
Slough Borough Council,805621,Care Staff Services,M44C,Adult Social Care Operations,Supplies and Services,"2,205.00",Sep-23
Slough Borough Council,805621,Care Staff Services,M44C,Adult Social Care Operations,Supplies and Services,"1,426.25",Sep-23
Slough Borough Council,805621,Care Staff Services,M44C,Adult Social Care Operations,Supplies and Services,"2,205.00",Sep-23
Slough Borough Council,805621,Care Staff Services,M44C,Adult Social Care Operations,Supplies and Services,752.50,Sep-23
Slough Borough Council,805621,Care Staff Services,M44C,Adult Social Care Operations,Supplies and Services,"1,914.00",Sep-23
Slough Borough Council,805621,Care Staff Services,M44C,Adult Social Care Operations,Supplies and Services,"1,813.00",Sep-23
Slough Borough Council,805621,Care Staff Services,M44C,Adult Social Care Operations,Supplies and Services,"1,404.38",Sep-23
Slough Borough Council,805621,Care Staff Services,M44C,Adult Social Care Operations,Supplies and Services,612.50,Sep-23
Slough Borough Council,805621,Care Staff Services,M44C,Adult Social Care Operations,Supplies and Services,"2,205.00",Sep-23
Slough Borough Council,805621,Care Staff Services,M44C,Adult Social Care Operations,Supplies and Services,980.00,Sep-23
Slough Borough Council,805621,Care Staff Services,M44C,Adult Social Care Operations,Supplies and Services,"2,205.00",Sep-23
Slough Borough Council,805621,Care Staff Services,M44C,Adult Social Care Operations,Supplies and Services,"1,225.00",Sep-23
Slough Borough Council,805621,Care Staff Services,M44C,Adult Social Care Operations,Supplies and Services,555.63,Sep-23
Slough Borough Council,805621,Care Staff Services,M44C,Adult Social Care Operations,Supplies and Services,"1,102.50",Sep-23
Slough Borough Council,805621,Care Staff Services,M44C,Adult Social Care Operations,Supplies and Services,857.50,Sep-23
Slough Borough Council,805621,Care Staff Services,M44C,Adult Social Care Operations,Supplies and Services,853.13,Sep-23
Slough Borough Council,805621,Care Staff Services,M44C,Adult Social Care Operations,Supplies and Services,765.63,Sep-23
Slough Borough Council,805621,Care Staff Services,M44C,Adult Social Care Operations,Supplies and Services,560.00,Sep-23
Slough Borough Council,805621,Care Staff Services,M44C,Adult Social Care Operations,Supplies and Services,"1,813.00",Sep-23
Slough Borough Council,805621,Care Staff Services,M44C,Adult Social Care Operations,Supplies and Services,518.00,Sep-23
Slough Borough Council,805621,Care Staff Services,M44C,Adult Social Care Operations,Supplies and Services,612.50,Sep-23
Slough Borough Council,805621,Care Staff Services,M44C,Adult Social Care Operations,Supplies and Services,"1,813.00",Sep-23
Slough Borough Council,805621,Care Staff Services,M44C,Adult Social Care Operations,Supplies and Services,857.50,Sep-23
Slough Borough Council,805621,Care Staff Services,M44C,Adult Social Care Operations,Supplies and Services,682.50,Sep-23
Slough Borough Council,805621,Care Staff Services,M44D,Adult Social Care Operations,Supplies and Services,612.50,Sep-23
Slough Borough Council,805621,Care Staff Services,M44D,Adult Social Care Operations,Supplies and Services,538.13,Sep-23
Slough Borough Council,805621,Care Staff Services,M44D,Adult Social Care Operations,Supplies and Services,"2,205.00",Sep-23
Slough Borough Council,805621,Care Staff Services,M44D,Adult Social Care Operations,Supplies and Services,"1,225.00",Sep-23
Slough Borough Council,805621,Care Staff Services,M44D,Adult Social Care Operations,Supplies and Services,980.00,Sep-23
Slough Borough Council,805621,Care Staff Services,M44D,Adult Social Care Operations,Supplies and Services,832.50,Sep-23
Slough Borough Council,805621,Care Staff Services,M44D,Adult Social Care Operations,Supplies and Services,857.50,Sep-23
Slough Borough Council,805621,Care Staff Services,M44D,Adult Social Care Operations,Supplies and Services,"1,225.00",Sep-23
Slough Borough Council,805621,Care Staff Services,M44D,Adult Social Care Operations,Supplies and Services,857.50,Sep-23
Slough Borough Council,805621,Care Staff Services,M44D,Adult Social Care Operations,Supplies and Services,"1,610.00",Sep-23
Slough Borough Council,805621,Care Staff Services,M44D,Adult Social Care Operations,Supplies and Services,"1,239.50",Sep-23
Slough Borough Council,805621,Care Staff Services,M44D,Adult Social Care Operations,Supplies and Services,518.00,Sep-23
Slough Borough Council,805621,Care Staff Services,M44D,Adult Social Care Operations,Supplies and Services,"2,331.00",Sep-23
Slough Borough Council,805621,Care Staff Services,M44D,Adult Social Care Operations,Supplies and Services,857.50,Sep-23
Slough Borough Council,805621,Care Staff Services,M44E,Adult Social Care Operations,Supplies and Services,900.00,Sep-23
Slough Borough Council,805621,Care Staff Services,M44E,Adult Social Care Operations,Supplies and Services,900.00,Sep-23
Slough Borough Council,805621,Care Staff Services,M44F,Adult Social Care Operations,Supplies and Services,560.00,Sep-23
Slough Borough Council,805621,Care Staff Services,M44F,Adult Social Care Operations,Supplies and Services,"1,433.75",Sep-23
Slough Borough Council,805621,Care Staff Services,M44F,Adult Social Care Operations,Supplies and Services,652.13,Sep-23
Slough Borough Council,805621,Care Staff Services,M44F,Adult Social Care Operations,Supplies and Services,"1,382.50",Sep-23
Slough Borough Council,805621,Care Staff Services,M44F,Adult Social Care Operations,Supplies and Services,740.00,Sep-23
Slough Borough Council,805621,Care Staff Services,M44F,Adult Social Care Operations,Supplies and Services,999.00,Sep-23
Slough Borough Council,805621,Care Staff Services,M44F,Adult Social Care Operations,Supplies and Services,"2,590.00",Sep-23
Slough Borough Council,805621,Care Staff Services,M44F,Adult Social Care Operations,Supplies and Services,874.23,Sep-23
Slough Borough Council,805621,Care Staff Services,M44F,Adult Social Care Operations,Supplies and Services,"1,071.88",Sep-23
Slough Borough Council,805621,Care Staff Services,M45C,Adult Social Care Operations,Supplies and Services,796.25,Sep-23
Slough Borough Council,805621,Care Staff Services,M45C,Adult Social Care Operations,Supplies and Services,"2,205.00",Sep-23
Slough Borough Council,805621,Care Staff Services,M45C,Adult Social Care Operations,Supplies and Services,888.13,Sep-23
Slough Borough Council,805621,Care Staff Services,M45C,Adult Social Care Operations,Supplies and Services,"1,102.50",Sep-23
Slough Borough Council,805621,Care Staff Services,M45C,Adult Social Care Operations,Supplies and Services,"1,881.25",Sep-23
Slough Borough Council,805621,Care Staff Services,M45C,Adult Social Care Operations,Supplies and Services,778.75,Sep-23
Slough Borough Council,805621,Care Staff Services,M45C,Adult Social Care Operations,Supplies and Services,837.50,Sep-23
Slough Borough Council,805621,Care Staff Services,M45C,Adult Social Care Operations,Supplies and Services,844.38,Sep-23
Slough Borough Council,805621,Care Staff Services,M45C,Adult Social Care Operations,Supplies and Services,590.63,Sep-23
Slough Borough Council,805621,Care Staff Services,M45C,Adult Social Care Operations,Supplies and Services,866.25,Sep-23
Slough Borough Council,805621,Care Staff Services,M45C,Adult Social Care Operations,Supplies and Services,"1,159.63",Sep-23
Slough Borough Council,805621,Care Staff Services,M45C,Adult Social Care Operations,Supplies and Services,866.25,Sep-23
Slough Borough Council,805621,Care Staff Services,M45C,Adult Social Care Operations,Supplies and Services,"1,102.50",Sep-23
Slough Borough Council,805621,Care Staff Services,M45C,Adult Social Care Operations,Supplies and Services,800.63,Sep-23
Slough Borough Council,805621,Care Staff Services,M45C,Adult Social Care Operations,Supplies and Services,612.50,Sep-23
Slough Borough Council,805621,Care Staff Services,M45C,Adult Social Care Operations,Supplies and Services,830.00,Sep-23
Slough Borough Council,805621,Care Staff Services,M45C,Adult Social Care Operations,Supplies and Services,840.00,Sep-23
Slough Borough Council,805621,Care Staff Services,M45C,Adult Social Care Operations,Supplies and Services,787.50,Sep-23
Slough Borough Council,805621,Care Staff Services,M45C,Adult Social Care Operations,Supplies and Services,945.00,Sep-23
Slough Borough Council,805621,Care Staff Services,M45C,Adult Social Care Operations,Supplies and Services,"1,575.00",Sep-23
Slough Borough Council,805621,Care Staff Services,M45C,Adult Social Care Operations,Supplies and Services,"1,102.50",Sep-23
Slough Borough Council,805621,Care Staff Services,M45C,Adult Social Care Operations,Supplies and Services,"2,205.00",Sep-23
Slough Borough Council,805621,Care Staff Services,M45C,Adult Social Care Operations,Supplies and Services,"1,706.25",Sep-23
Slough Borough Council,805621,Care Staff Services,M45C,Adult Social Care Operations,Supplies and Services,"1,111.26",Sep-23
Slough Borough Council,805621,Care Staff Services,M48C,Adult Social Care Operations,Supplies and Services,"2,205.00",Sep-23
Slough Borough Council,808149,Care Staff Services Support,M44F,Adult Social Care Operations,Supplies and Services,"4,673.06",Sep-23
Slough Borough Council,808149,Care Staff Services Support,M44F,Adult Social Care Operations,Supplies and Services,"4,891.12",Sep-23
Slough Borough Council,808149,Care Staff Services Support,M44F,Adult Social Care Operations,Supplies and Services,"1,808.48",Sep-23
Slough Borough Council,1162,Care Uk Community Partnership Ltd,A02E,Adult Social Care Operations,Supplies and Services,"48,139.00",Sep-23
Slough Borough Council,1162,Care Uk Community Partnership Ltd,A03E,Adult Social Care Operations,Supplies and Services,"8,061.16",Sep-23
Slough Borough Council,1162,Care Uk Community Partnership Ltd,M15D,Adult Social Care Operations,Supplies and Services,"2,736.00",Sep-23
Slough Borough Council,1162,Care Uk Community Partnership Ltd,M15D,Adult Social Care Operations,Supplies and Services,"2,736.00",Sep-23
Slough Borough Council,1162,Care Uk Community Partnership Ltd,M15D,Adult Social Care Operations,Supplies and Services,"2,736.00",Sep-23
Slough Borough Council,1162,Care Uk Community Partnership Ltd,M15D,Adult Social Care Operations,Supplies and Services,"2,827.20",Sep-23
Slough Borough Council,1162,Care Uk Community Partnership Ltd,M15D,Adult Social Care Operations,Supplies and Services,"4,090.52",Sep-23
Slough Borough Council,1162,Care Uk Community Partnership Ltd,M15D,Adult Social Care Operations,Supplies and Services,"4,218.60",Sep-23
Slough Borough Council,1162,Care Uk Community Partnership Ltd,M15D,Adult Social Care Operations,Supplies and Services,"4,090.52",Sep-23
Slough Borough Council,1162,Care Uk Community Partnership Ltd,M15D,Adult Social Care Operations,Supplies and Services,"4,090.52",Sep-23
Slough Borough Council,1162,Care Uk Community Partnership Ltd,M15D,Adult Social Care Operations,Supplies and Services,"4,090.52",Sep-23
Slough Borough Council,1162,Care Uk Community Partnership Ltd,M15F,Adult Social Care Operations,Supplies and Services,"4,090.52",Sep-23
Slough Borough Council,1162,Care Uk Community Partnership Ltd,M15F,Adult Social Care Operations,Supplies and Services,"4,090.52",Sep-23
Slough Borough Council,1162,Care Uk Community Partnership Ltd,M15F,Adult Social Care Operations,Supplies and Services,"4,090.52",Sep-23
Slough Borough Council,1162,Care Uk Community Partnership Ltd,M17C,Adult Social Care Operations,Supplies and Services,"4,218.60",Sep-23
Slough Borough Council,1162,Care Uk Community Partnership Ltd,M17C,Adult Social Care Operations,Supplies and Services,"4,218.60",Sep-23
Slough Borough Council,1162,Care Uk Community Partnership Ltd,M17C,Adult Social Care Operations,Supplies and Services,"4,090.52",Sep-23
Slough Borough Council,1162,Care Uk Community Partnership Ltd,M17C,Adult Social Care Operations,Supplies and Services,719.14,Sep-23
Slough Borough Council,1162,Care Uk Community Partnership Ltd,M17C,Adult Social Care Operations,Supplies and Services,"4,218.60",Sep-23
Slough Borough Council,1162,Care Uk Community Partnership Ltd,M17C,Adult Social Care Operations,Supplies and Services,"3,969.72",Sep-23
Slough Borough Council,1162,Care Uk Community Partnership Ltd,M17C,Adult Social Care Operations,Supplies and Services,"4,090.52",Sep-23
Slough Borough Council,1162,Care Uk Community Partnership Ltd,M18C,Adult Social Care Operations,Supplies and Services,"4,218.60",Sep-23
Slough Borough Council,1162,Care Uk Community Partnership Ltd,M18C,Adult Social Care Operations,Supplies and Services,"4,090.52",Sep-23
Slough Borough Council,1162,Care Uk Community Partnership Ltd,M18C,Adult Social Care Operations,Supplies and Services,"4,090.52",Sep-23
Slough Borough Council,1162,Care Uk Community Partnership Ltd,M18C,Adult Social Care Operations,Supplies and Services,"4,090.52",Sep-23
Slough Borough Council,1162,Care Uk Community Partnership Ltd,M18C,Adult Social Care Operations,Supplies and Services,"4,090.52",Sep-23
Slough Borough Council,1162,Care Uk Community Partnership Ltd,M18C,Adult Social Care Operations,Supplies and Services,"4,090.52",Sep-23
Slough Borough Council,1162,Care Uk Community Partnership Ltd,M18C,Adult Social Care Operations,Supplies and Services,"4,218.60",Sep-23
Slough Borough Council,1162,Care Uk Community Partnership Ltd,M18C,Adult Social Care Operations,Supplies and Services,"4,090.52",Sep-23
Slough Borough Council,1162,Care Uk Community Partnership Ltd,M18C,Adult Social Care Operations,Supplies and Services,"4,090.52",Sep-23
Slough Borough Council,1162,Care Uk Community Partnership Ltd,M18C,Adult Social Care Operations,Supplies and Services,"4,218.60",Sep-23
Slough Borough Council,1162,Care Uk Community Partnership Ltd,M18C,Adult Social Care Operations,Supplies and Services,"4,090.52",Sep-23
Slough Borough Council,1162,Care Uk Community Partnership Ltd,M18C,Adult Social Care Operations,Supplies and Services,"4,090.52",Sep-23
Slough Borough Council,1162,Care Uk Community Partnership Ltd,M18C,Adult Social Care Operations,Supplies and Services,"4,218.60",Sep-23
Slough Borough Council,1162,Care Uk Community Partnership Ltd,M18C,Adult Social Care Operations,Supplies and Services,"4,090.52",Sep-23
Slough Borough Council,1162,Care Uk Community Partnership Ltd,M18C,Adult Social Care Operations,Supplies and Services,"4,090.52",Sep-23
Slough Borough Council,1162,Care Uk Community Partnership Ltd,M18C,Adult Social Care Operations,Supplies and Services,"4,090.52",Sep-23
Slough Borough Council,1162,Care Uk Community Partnership Ltd,M18C,Adult Social Care Operations,Supplies and Services,"3,969.72",Sep-23
Slough Borough Council,1162,Care Uk Community Partnership Ltd,M18C,Adult Social Care Operations,Supplies and Services,"4,218.60",Sep-23
Slough Borough Council,1162,Care Uk Community Partnership Ltd,M18C,Adult Social Care Operations,Supplies and Services,"4,090.52",Sep-23
Slough Borough Council,1162,Care Uk Community Partnership Ltd,M18C,Adult Social Care Operations,Supplies and Services,"4,090.52",Sep-23
Slough Borough Council,1162,Care Uk Community Partnership Ltd,M18C,Adult Social Care Operations,Supplies and Services,"4,090.52",Sep-23
Slough Borough Council,1162,Care Uk Community Partnership Ltd,M18C,Adult Social Care Operations,Supplies and Services,"4,218.60",Sep-23
Slough Borough Council,1162,Care Uk Community Partnership Ltd,M18C,Adult Social Care Operations,Supplies and Services,"4,090.52",Sep-23
Slough Borough Council,1162,Care Uk Community Partnership Ltd,M18C,Adult Social Care Operations,Supplies and Services,"4,090.52",Sep-23
Slough Borough Council,1162,Care Uk Community Partnership Ltd,M18C,Adult Social Care Operations,Supplies and Services,"4,218.60",Sep-23
Slough Borough Council,1162,Care Uk Community Partnership Ltd,M18C,Adult Social Care Operations,Supplies and Services,"4,090.52",Sep-23
Slough Borough Council,1162,Care Uk Community Partnership Ltd,M18C,Adult Social Care Operations,Supplies and Services,"4,090.52",Sep-23
Slough Borough Council,1162,Care Uk Community Partnership Ltd,M18C,Adult Social Care Operations,Supplies and Services,"4,090.52",Sep-23
Slough Borough Council,1162,Care Uk Community Partnership Ltd,M18C,Adult Social Care Operations,Supplies and Services,"4,090.52",Sep-23
Slough Borough Council,1162,Care Uk Community Partnership Ltd,M18C,Adult Social Care Operations,Supplies and Services,"4,090.52",Sep-23
Slough Borough Council,1162,Care Uk Community Partnership Ltd,M18C,Adult Social Care Operations,Supplies and Services,"4,090.52",Sep-23
Slough Borough Council,1162,Care Uk Community Partnership Ltd,M18C,Adult Social Care Operations,Supplies and Services,"4,090.52",Sep-23
Slough Borough Council,1162,Care Uk Community Partnership Ltd,M18C,Adult Social Care Operations,Supplies and Services,"-20,598.69",Sep-23
Slough Borough Council,1162,Care Uk Community Partnership Ltd,M25C,Adult Social Care Operations,Supplies and Services,"3,703.00",Sep-23
Slough Borough Council,1162,Care Uk Community Partnership Ltd,M25C,Adult Social Care Operations,Supplies and Services,"3,703.00",Sep-23
Slough Borough Council,1162,Care Uk Community Partnership Ltd,M25C,Adult Social Care Operations,Supplies and Services,"3,703.00",Sep-23
Slough Borough Council,1162,Care Uk Community Partnership Ltd,M25C,Adult Social Care Operations,Supplies and Services,"24,327.80",Sep-23
Slough Borough Council,1162,Care Uk Community Partnership Ltd,M26E,Adult Social Care Operations,Supplies and Services,"4,090.52",Sep-23
Slough Borough Council,1162,Care Uk Community Partnership Ltd,M26E,Adult Social Care Operations,Supplies and Services,"4,090.52",Sep-23
Slough Borough Council,1162,Care Uk Community Partnership Ltd,M27C,Adult Social Care Operations,Supplies and Services,"3,380.88",Sep-23
Slough Borough Council,1162,Care Uk Community Partnership Ltd,M27C,Adult Social Care Operations,Supplies and Services,"3,703.00",Sep-23
Slough Borough Council,1162,Care Uk Community Partnership Ltd,M27C,Adult Social Care Operations,Supplies and Services,"3,380.88",Sep-23
Slough Borough Council,1162,Care Uk Community Partnership Ltd,M27C,Adult Social Care Operations,Supplies and Services,"3,380.88",Sep-23
Slough Borough Council,1162,Care Uk Community Partnership Ltd,M27C,Adult Social Care Operations,Supplies and Services,"3,380.88",Sep-23
Slough Borough Council,1162,Care Uk Community Partnership Ltd,M27C,Adult Social Care Operations,Supplies and Services,"3,703.00",Sep-23
Slough Borough Council,1162,Care Uk Community Partnership Ltd,M27C,Adult Social Care Operations,Supplies and Services,"3,703.00",Sep-23
Slough Borough Council,1162,Care Uk Community Partnership Ltd,M27C,Adult Social Care Operations,Supplies and Services,"3,703.00",Sep-23
Slough Borough Council,1162,Care Uk Community Partnership Ltd,M27C,Adult Social Care Operations,Supplies and Services,"3,380.88",Sep-23
Slough Borough Council,1162,Care Uk Community Partnership Ltd,M27C,Adult Social Care Operations,Supplies and Services,"3,380.88",Sep-23
Slough Borough Council,1162,Care Uk Community Partnership Ltd,M27C,Adult Social Care Operations,Supplies and Services,"3,703.00",Sep-23
Slough Borough Council,1162,Care Uk Community Partnership Ltd,M27C,Adult Social Care Operations,Supplies and Services,"3,703.00",Sep-23
Slough Borough Council,1162,Care Uk Community Partnership Ltd,M27C,Adult Social Care Operations,Supplies and Services,"3,703.00",Sep-23
Slough Borough Council,1162,Care Uk Community Partnership Ltd,M27C,Adult Social Care Operations,Supplies and Services,"3,703.00",Sep-23
Slough Borough Council,1162,Care Uk Community Partnership Ltd,M27C,Adult Social Care Operations,Supplies and Services,"3,703.00",Sep-23
Slough Borough Council,1162,Care Uk Community Partnership Ltd,M27C,Adult Social Care Operations,Supplies and Services,"3,380.88",Sep-23
Slough Borough Council,1162,Care Uk Community Partnership Ltd,M27C,Adult Social Care Operations,Supplies and Services,"23,666.16",Sep-23
Slough Borough Council,1162,Care Uk Community Partnership Ltd,M27F,Adult Social Care Operations,Supplies and Services,"3,380.88",Sep-23
Slough Borough Council,804413,Castle Water,C019,Place Operations,Premises,826.50,Sep-23
Slough Borough Council,804413,Castle Water,C019,Place Operations,Premises,525.95,Sep-23
Slough Borough Council,804413,Castle Water,D900,Place Operations,Premises,"1,084.48",Sep-23
Slough Borough Council,418,Castleview School,E620,Children & Families,Supplies and Services,"46,139.91",Sep-23
Slough Borough Council,418,Castleview School,P101,Capital,Capital Charges,"26,560.45",Sep-23
Slough Borough Council,808307,CDW Limited,B282,Digital and Strategic IT,Supplies and Services,"8,335.27",Sep-23
Slough Borough Council,805619,Centennial Property Limited T/A The Housing Network,H205,Housing (People) Services,Premises,"56,511.00",Sep-23
Slough Borough Council,805619,Centennial Property Limited T/A The Housing Network,H205,Housing (People) Services,Premises,"53,846.00",Sep-23
Slough Borough Council,3609,Centurion Healthcare Ltd,M26E,Adult Social Care Operations,Supplies and Services,"6,304.24",Sep-23
Slough Borough Council,2892,Chalfont Lodge,M15D,Adult Social Care Operations,Supplies and Services,"5,785.71",Sep-23
Slough Borough Council,2892,Chalfont Lodge,M15F,Adult Social Care Operations,Supplies and Services,"8,571.43",Sep-23
Slough Borough Council,2608,Chandos Lodge Nursing Home,M18C,Adult Social Care Operations,Supplies and Services,"4,400.00",Sep-23
Slough Borough Council,809000,Channels & Choices Ltd,F123,Education & Inclusion,External Receipts,"3,251.25",Sep-23
Slough Borough Council,3943,Channels And Choices Theraputic Fostering Ltd,F462,Children & Families,Supplies and Services,"1,487.18",Sep-23
Slough Borough Council,3943,Channels And Choices Theraputic Fostering Ltd,F462,Children & Families,Supplies and Services,"19,333.33",Sep-23
Slough Borough Council,808928,Charis MC Ltd,M44D,Adult Social Care Operations,Supplies and Services,"4,071.43",Sep-23
Slough Borough Council,808928,Charis MC Ltd,M44D,Adult Social Care Operations,Supplies and Services,"4,207.14",Sep-23
Slough Borough Council,807017,Chelmsford Safety Supplies Ltd,D610,Place Operations,Supplies and Services,884.00,Sep-23
Slough Borough Council,1877,Chelsie Innes,C322,Community,Supplies and Services,"1,429.00",Sep-23
Slough Borough Council,3114,Cherry Trees Day Nursery,F909,Children & Families,Supplies and Services,"4,000.29",Sep-23
Slough Borough Council,3114,Cherry Trees Day Nursery,F909,Children & Families,Supplies and Services,"28,981.07",Sep-23
Slough Borough Council,2871,Cherry Trees Residential Care,M27F,Adult Social Care Operations,Supplies and Services,"2,357.14",Sep-23
Slough Borough Council,2871,Cherry Trees Residential Care,M42F,Adult Social Care Operations,Supplies and Services,"1,607.14",Sep-23
Slough Borough Council,2871,Cherry Trees Residential Care,M42F,Adult Social Care Operations,Supplies and Services,"2,410.71",Sep-23
Slough Borough Council,2871,Cherry Trees Residential Care,M42F,Adult Social Care Operations,Supplies and Services,"2,410.71",Sep-23
Slough Borough Council,809146,Chilmington Homes Ltd,M26E,Adult Social Care Operations,Supplies and Services,"8,358.00",Sep-23
Slough Borough Council,809146,Chilmington Homes Ltd,M26E,Adult Social Care Operations,Supplies and Services,"1,194.00",Sep-23
Slough Borough Council,809146,Chilmington Homes Ltd,M26E,Adult Social Care Operations,Supplies and Services,"8,358.00",Sep-23
Slough Borough Council,809146,Chilmington Homes Ltd,M26E,Adult Social Care Operations,Supplies and Services,"1,791.00",Sep-23
Slough Borough Council,807225,Chiltern Way Academy,F551,Children & Families,Supplies and Services,"7,382.08",Sep-23
Slough Borough Council,807225,Chiltern Way Academy,F551,Children & Families,Supplies and Services,"1,845.52",Sep-23
Slough Borough Council,808527,Chiron Care (Uk) Limited,M44F,Adult Social Care Operations,Supplies and Services,"1,868.68",Sep-23
Slough Borough Council,808527,Chiron Care (Uk) Limited,M44F,Adult Social Care Operations,Supplies and Services,"2,694.83",Sep-23
Slough Borough Council,808527,Chiron Care (Uk) Limited,M44F,Adult Social Care Operations,Supplies and Services,"3,002.04",Sep-23
Slough Borough Council,808527,Chiron Care (Uk) Limited,M44F,Adult Social Care Operations,Supplies and Services,"4,579.01",Sep-23
Slough Borough Council,808527,Chiron Care (Uk) Limited,M44F,Adult Social Care Operations,Supplies and Services,"1,868.68",Sep-23
Slough Borough Council,808527,Chiron Care (Uk) Limited,M44F,Adult Social Care Operations,Supplies and Services,"2,645.85",Sep-23
Slough Borough Council,808527,Chiron Care (Uk) Limited,M44F,Adult Social Care Operations,Supplies and Services,"3,002.04",Sep-23
Slough Borough Council,808527,Chiron Care (Uk) Limited,M44F,Adult Social Care Operations,Supplies and Services,"1,868.68",Sep-23
Slough Borough Council,808527,Chiron Care (Uk) Limited,M44F,Adult Social Care Operations,Supplies and Services,"2,645.85",Sep-23
Slough Borough Council,808527,Chiron Care (Uk) Limited,M44F,Adult Social Care Operations,Supplies and Services,"1,868.68",Sep-23
Slough Borough Council,808527,Chiron Care (Uk) Limited,M44F,Adult Social Care Operations,Supplies and Services,"1,043.16",Sep-23
Slough Borough Council,808527,Chiron Care (Uk) Limited,M44F,Adult Social Care Operations,Supplies and Services,"4,579.01",Sep-23
Slough Borough Council,803495,Christchurch Court Ltd,M15D,Adult Social Care Operations,Supplies and Services,"8,917.11",Sep-23
Slough Borough Council,807491,Cippenham School,E620,Children & Families,Supplies and Services,"16,911.76",Sep-23
Slough Borough Council,806550,City Homecare Ltd,A07R,Adult Social Care Operations,Supplies and Services,"2,450.00",Sep-23
Slough Borough Council,806550,City Homecare Ltd,A07R,Adult Social Care Operations,Supplies and Services,"2,450.00",Sep-23
Slough Borough Council,806550,City Homecare Ltd,A07R,Adult Social Care Operations,Supplies and Services,787.50,Sep-23
Slough Borough Council,806550,City Homecare Ltd,A07R,Adult Social Care Operations,Supplies and Services,"-1,023.75",Sep-23
Slough Borough Council,806550,City Homecare Ltd,A07R,Adult Social Care Operations,Supplies and Services,"1,750.00",Sep-23
Slough Borough Council,806550,City Homecare Ltd,A07R,Adult Social Care Operations,Supplies and Services,787.50,Sep-23
Slough Borough Council,806550,City Homecare Ltd,M44C,Adult Social Care Operations,Supplies and Services,"2,205.00",Sep-23
Slough Borough Council,806550,City Homecare Ltd,M44C,Adult Social Care Operations,Supplies and Services,997.50,Sep-23
Slough Borough Council,806550,City Homecare Ltd,M44C,Adult Social Care Operations,Supplies and Services,"1,159.38",Sep-23
Slough Borough Council,806550,City Homecare Ltd,M44C,Adult Social Care Operations,Supplies and Services,"1,960.00",Sep-23
Slough Borough Council,806550,City Homecare Ltd,M44C,Adult Social Care Operations,Supplies and Services,595.00,Sep-23
Slough Borough Council,806550,City Homecare Ltd,M44C,Adult Social Care Operations,Supplies and Services,"1,649.38",Sep-23
Slough Borough Council,806550,City Homecare Ltd,M44C,Adult Social Care Operations,Supplies and Services,"2,047.50",Sep-23
Slough Borough Council,806550,City Homecare Ltd,M44C,Adult Social Care Operations,Supplies and Services,735.00,Sep-23
Slough Borough Council,806550,City Homecare Ltd,M44C,Adult Social Care Operations,Supplies and Services,682.50,Sep-23
Slough Borough Council,806550,City Homecare Ltd,M44C,Adult Social Care Operations,Supplies and Services,"1,820.00",Sep-23
Slough Borough Council,806550,City Homecare Ltd,M44C,Adult Social Care Operations,Supplies and Services,"1,347.50",Sep-23
Slough Borough Council,806550,City Homecare Ltd,M44C,Adult Social Care Operations,Supplies and Services,"2,301.25",Sep-23
Slough Borough Council,806550,City Homecare Ltd,M44C,Adult Social Care Operations,Supplies and Services,980.00,Sep-23
Slough Borough Council,806550,City Homecare Ltd,M44C,Adult Social Care Operations,Supplies and Services,892.50,Sep-23
Slough Borough Council,806550,City Homecare Ltd,M44C,Adult Social Care Operations,Supplies and Services,"1,715.00",Sep-23
Slough Borough Council,806550,City Homecare Ltd,M44C,Adult Social Care Operations,Supplies and Services,"1,102.50",Sep-23
Slough Borough Council,806550,City Homecare Ltd,M44C,Adult Social Care Operations,Supplies and Services,"1,102.50",Sep-23
Slough Borough Council,806550,City Homecare Ltd,M44C,Adult Social Care Operations,Supplies and Services,"1,496.25",Sep-23
Slough Borough Council,806550,City Homecare Ltd,M44C,Adult Social Care Operations,Supplies and Services,857.50,Sep-23
Slough Borough Council,806550,City Homecare Ltd,M44C,Adult Social Care Operations,Supplies and Services,857.50,Sep-23
Slough Borough Council,806550,City Homecare Ltd,M44C,Adult Social Care Operations,Supplies and Services,"1,960.00",Sep-23
Slough Borough Council,806550,City Homecare Ltd,M44C,Adult Social Care Operations,Supplies and Services,612.50,Sep-23
Slough Borough Council,806550,City Homecare Ltd,M44C,Adult Social Care Operations,Supplies and Services,857.50,Sep-23
Slough Borough Council,806550,City Homecare Ltd,M44C,Adult Social Care Operations,Supplies and Services,612.50,Sep-23
Slough Borough Council,806550,City Homecare Ltd,M44C,Adult Social Care Operations,Supplies and Services,507.50,Sep-23
Slough Borough Council,806550,City Homecare Ltd,M44C,Adult Social Care Operations,Supplies and Services,"1,216.25",Sep-23
Slough Borough Council,806550,City Homecare Ltd,M44C,Adult Social Care Operations,Supplies and Services,"1,207.50",Sep-23
Slough Borough Council,806550,City Homecare Ltd,M44C,Adult Social Care Operations,Supplies and Services,"2,047.50",Sep-23
Slough Borough Council,806550,City Homecare Ltd,M44C,Adult Social Care Operations,Supplies and Services,"1,006.25",Sep-23
Slough Borough Council,806550,City Homecare Ltd,M44C,Adult Social Care Operations,Supplies and Services,"1,225.00",Sep-23
Slough Borough Council,806550,City Homecare Ltd,M44D,Adult Social Care Operations,Supplies and Services,507.50,Sep-23
Slough Borough Council,806550,City Homecare Ltd,M44D,Adult Social Care Operations,Supplies and Services,717.50,Sep-23
Slough Borough Council,806550,City Homecare Ltd,M44D,Adult Social Care Operations,Supplies and Services,"1,960.00",Sep-23
Slough Borough Council,806550,City Homecare Ltd,M44D,Adult Social Care Operations,Supplies and Services,936.25,Sep-23
Slough Borough Council,806550,City Homecare Ltd,M44D,Adult Social Care Operations,Supplies and Services,980.00,Sep-23
Slough Borough Council,806550,City Homecare Ltd,M44D,Adult Social Care Operations,Supplies and Services,971.25,Sep-23
Slough Borough Council,806550,City Homecare Ltd,M44D,Adult Social Care Operations,Supplies and Services,735.00,Sep-23
Slough Borough Council,806550,City Homecare Ltd,M44D,Adult Social Care Operations,Supplies and Services,"2,940.00",Sep-23
Slough Borough Council,806550,City Homecare Ltd,M44D,Adult Social Care Operations,Supplies and Services,560.00,Sep-23
Slough Borough Council,806550,City Homecare Ltd,M44E,Adult Social Care Operations,Supplies and Services,735.00,Sep-23
Slough Borough Council,806550,City Homecare Ltd,M44F,Adult Social Care Operations,Supplies and Services,"1,526.88",Sep-23
Slough Borough Council,806550,City Homecare Ltd,M44F,Adult Social Care Operations,Supplies and Services,831.25,Sep-23
Slough Borough Council,806550,City Homecare Ltd,M45C,Adult Social Care Operations,Supplies and Services,612.50,Sep-23
Slough Borough Council,806550,City Homecare Ltd,M45C,Adult Social Care Operations,Supplies and Services,612.50,Sep-23
Slough Borough Council,806550,City Homecare Ltd,M45C,Adult Social Care Operations,Supplies and Services,612.50,Sep-23
Slough Borough Council,806550,City Homecare Ltd,M45C,Adult Social Care Operations,Supplies and Services,823.20,Sep-23
Slough Borough Council,806550,City Homecare Ltd,M45C,Adult Social Care Operations,Supplies and Services,-823.20,Sep-23
Slough Borough Council,806550,City Homecare Ltd,M45C,Adult Social Care Operations,Supplies and Services,940.80,Sep-23
Slough Borough Council,806550,City Homecare Ltd,M45C,Adult Social Care Operations,Supplies and Services,503.12,Sep-23
Slough Borough Council,806550,City Homecare Ltd,M45C,Adult Social Care Operations,Supplies and Services,"2,266.25",Sep-23
Slough Borough Council,806550,City Homecare Ltd,M45C,Adult Social Care Operations,Supplies and Services,"1,063.13",Sep-23
Slough Borough Council,806550,City Homecare Ltd,M45C,Adult Social Care Operations,Supplies and Services,"2,205.00",Sep-23
Slough Borough Council,806550,City Homecare Ltd,M45C,Adult Social Care Operations,Supplies and Services,857.50,Sep-23
Slough Borough Council,806550,City Homecare Ltd,M45C,Adult Social Care Operations,Supplies and Services,595.00,Sep-23
Slough Borough Council,806550,City Homecare Ltd,M45C,Adult Social Care Operations,Supplies and Services,612.50,Sep-23
Slough Borough Council,806550,City Homecare Ltd,M45C,Adult Social Care Operations,Supplies and Services,700.00,Sep-23
Slough Borough Council,806550,City Homecare Ltd,M45C,Adult Social Care Operations,Supplies and Services,647.50,Sep-23
Slough Borough Council,806550,City Homecare Ltd,M45C,Adult Social Care Operations,Supplies and Services,"1,137.50",Sep-23
Slough Borough Council,806550,City Homecare Ltd,M45C,Adult Social Care Operations,Supplies and Services,669.38,Sep-23
Slough Borough Council,806550,City Homecare Ltd,M45C,Adult Social Care Operations,Supplies and Services,511.88,Sep-23
Slough Borough Council,806550,City Homecare Ltd,M45C,Adult Social Care Operations,Supplies and Services,"1,054.38",Sep-23
Slough Borough Council,806550,City Homecare Ltd,M45C,Adult Social Care Operations,Supplies and Services,"-1,778.00",Sep-23
Slough Borough Council,806550,City Homecare Ltd,M48C,Adult Social Care Operations,Supplies and Services,603.75,Sep-23
Slough Borough Council,806550,City Homecare Ltd,M48C,Adult Social Care Operations,Supplies and Services,568.75,Sep-23
Slough Borough Council,806550,City Homecare Ltd,M48C,Adult Social Care Operations,Supplies and Services,857.50,Sep-23
Slough Borough Council,806550,City Homecare Ltd,M48C,Adult Social Care Operations,Supplies and Services,844.38,Sep-23
Slough Borough Council,1083,Civica Uk Limited,H015,Finance & Commercial,Supplies and Services,555.60,Sep-23
Slough Borough Council,805084,Claire Currie,F909,Children & Families,Supplies and Services,"1,586.13",Sep-23
Slough Borough Council,1151,Claycots Primary School,E200,Children & Families,Supplies and Services,"850,919.52",Sep-23
Slough Borough Council,3685,Coghlan Lodges Limited,M44D,Adult Social Care Operations,Supplies and Services,"2,116.04",Sep-23
Slough Borough Council,3685,Coghlan Lodges Limited,M44F,Adult Social Care Operations,Supplies and Services,"1,870.00",Sep-23
Slough Borough Council,805823,Collaborative Care Solutions,M42E,Adult Social Care Operations,Supplies and Services,"8,914.28",Sep-23
Slough Borough Council,805823,Collaborative Care Solutions,M42F,Adult Social Care Operations,Supplies and Services,"2,875.71",Sep-23
Slough Borough Council,805823,Collaborative Care Solutions,M44D,Adult Social Care Operations,Supplies and Services,"8,914.28",Sep-23
Slough Borough Council,805823,Collaborative Care Solutions,M44F,Adult Social Care Operations,Supplies and Services,"4,178.57",Sep-23
Slough Borough Council,805823,Collaborative Care Solutions,M44F,Adult Social Care Operations,Supplies and Services,"4,821.42",Sep-23
Slough Borough Council,286,Colnbrook C Of E Primary School,E620,Children & Families,Supplies and Services,"17,028.33",Sep-23
Slough Borough Council,2535,Comfort Care Services,M27C,Adult Social Care Operations,Supplies and Services,"3,357.48",Sep-23
Slough Borough Council,2585,Comitted Care Services Limited,M26E,Adult Social Care Operations,Supplies and Services,"6,105.26",Sep-23
Slough Borough Council,2585,Comitted Care Services Limited,M26E,Adult Social Care Operations,Supplies and Services,"6,360.26",Sep-23
Slough Borough Council,2585,Comitted Care Services Limited,M26E,Adult Social Care Operations,Supplies and Services,"1,562.91",Sep-23
Slough Borough Council,2585,Comitted Care Services Limited,M26E,Adult Social Care Operations,Supplies and Services,"6,349.52",Sep-23
Slough Borough Council,2585,Comitted Care Services Limited,M26E,Adult Social Care Operations,Supplies and Services,"1,440.00",Sep-23
Slough Borough Council,2585,Comitted Care Services Limited,M42E,Adult Social Care Operations,Supplies and Services,"2,127.30",Sep-23
Slough Borough Council,2585,Comitted Care Services Limited,M42E,Adult Social Care Operations,Supplies and Services,"2,301.31",Sep-23
Slough Borough Council,804912,CommuniKate Ltd,M22D,Adult Social Care Operations,Supplies and Services,761.75,Sep-23
Slough Borough Council,804912,CommuniKate Ltd,M22D,Adult Social Care Operations,Supplies and Services,761.75,Sep-23
Slough Borough Council,804912,CommuniKate Ltd,M22D,Adult Social Care Operations,Supplies and Services,761.75,Sep-23
Slough Borough Council,804912,CommuniKate Ltd,M22D,Adult Social Care Operations,Supplies and Services,761.75,Sep-23
Slough Borough Council,3840,Community Housing And Therapy,M80F,Adult Social Care Operations,Supplies and Services,"2,615.51",Sep-23
Slough Borough Council,807005,Complete Background Screening Ltd,B348,People,Supplies and Services,"1,488.00",Sep-23
Slough Borough Council,806594,Coram Family and Childcare,M99C,Children & Families,Supplies and Services,"169,602.13",Sep-23
Slough Borough Council,806594,Coram Family and Childcare,M99C,Children & Families,Supplies and Services,"-62,373.00",Sep-23
Slough Borough Council,1480,Corona Energy Limited,B668,Business Services,Premises,"96,785.61",Sep-23
Slough Borough Council,1480,Corona Energy Limited,B668,Business Services,Premises,"4,126.55",Sep-23
Slough Borough Council,1480,Corona Energy Limited,J015,Place Management,Premises,"22,249.65",Sep-23
Slough Borough Council,805278,Countrystyle Recycling Ltd,D342,Place Operations,Supplies and Services,"2,770.00",Sep-23
Slough Borough Council,805278,Countrystyle Recycling Ltd,D342,Place Operations,Supplies and Services,"2,770.00",Sep-23
Slough Borough Council,805278,Countrystyle Recycling Ltd,D342,Place Operations,Supplies and Services,"2,770.00",Sep-23
Slough Borough Council,805278,Countrystyle Recycling Ltd,D342,Place Operations,Supplies and Services,"9,953.80",Sep-23
Slough Borough Council,808737,COUNTY PRIVATE CLIENT LIMITED,H205,Housing (People) Services,Supplies and Services,"33,488.00",Sep-23
Slough Borough Council,3670,Craegmoor Birches Grove Priory,M27F,Adult Social Care Operations,Supplies and Services,"4,079.00",Sep-23
Slough Borough Council,3670,Craegmoor Birches Grove Priory,M27F,Adult Social Care Operations,Supplies and Services,"4,079.00",Sep-23
Slough Borough Council,3670,Craegmoor Birches Grove Priory,M27F,Adult Social Care Operations,Supplies and Services,"2,122.92",Sep-23
Slough Borough Council,1638,Creative Support Ltd,A02F,Adult Social Care Operations,Supplies and Services,"10,907.60",Sep-23
Slough Borough Council,1638,Creative Support Ltd,A02L,Adult Social Care Operations,Supplies and Services,"1,565.10",Sep-23
Slough Borough Council,1638,Creative Support Ltd,A02L,Adult Social Care Operations,Supplies and Services,"1,431.90",Sep-23
Slough Borough Council,1638,Creative Support Ltd,A02L,Adult Social Care Operations,Supplies and Services,"1,165.50",Sep-23
Slough Borough Council,1638,Creative Support Ltd,A02L,Adult Social Care Operations,Supplies and Services,"1,365.30",Sep-23
Slough Borough Council,1638,Creative Support Ltd,A02L,Adult Social Care Operations,Supplies and Services,"1,065.60",Sep-23
Slough Borough Council,1638,Creative Support Ltd,M42E,Adult Social Care Operations,Supplies and Services,954.38,Sep-23
Slough Borough Council,1638,Creative Support Ltd,M42E,Adult Social Care Operations,Supplies and Services,954.38,Sep-23
Slough Borough Council,1638,Creative Support Ltd,M42E,Adult Social Care Operations,Supplies and Services,889.11,Sep-23
Slough Borough Council,1638,Creative Support Ltd,M42E,Adult Social Care Operations,Supplies and Services,889.11,Sep-23
Slough Borough Council,1638,Creative Support Ltd,M42E,Adult Social Care Operations,Supplies and Services,889.11,Sep-23
Slough Borough Council,1638,Creative Support Ltd,M42E,Adult Social Care Operations,Supplies and Services,"1,198.80",Sep-23
Slough Borough Council,1638,Creative Support Ltd,M44E,Adult Social Care Operations,Supplies and Services,932.40,Sep-23
Slough Borough Council,1638,Creative Support Ltd,M44E,Adult Social Care Operations,Supplies and Services,607.73,Sep-23
Slough Borough Council,1638,Creative Support Ltd,M44E,Adult Social Care Operations,Supplies and Services,"1,265.40",Sep-23
Slough Borough Council,806983,Critiqom,H020,Finance & Commercial,Supplies and Services,572.54,Sep-23
Slough Borough Council,806983,Critiqom,H020,Finance & Commercial,Supplies and Services,"1,171.01",Sep-23
Slough Borough Council,806983,Critiqom,H020,Finance & Commercial,Supplies and Services,722.90,Sep-23
Slough Borough Council,806983,Critiqom,H020,Finance & Commercial,Supplies and Services,"2,731.08",Sep-23
Slough Borough Council,806983,Critiqom,H020,Finance & Commercial,Supplies and Services,"2,469.67",Sep-23
Slough Borough Council,806983,Critiqom,H020,Finance & Commercial,Supplies and Services,"2,310.97",Sep-23
Slough Borough Council,808383,Croft Brothers UK Limited,M50A,Place Operations,Transport,528.72,Sep-23
Slough Borough Council,808383,Croft Brothers UK Limited,M50A,Place Operations,Transport,"1,059.64",Sep-23
Slough Borough Council,808853,Crown Hosting Data Centres Limited,B282,Digital and Strategic IT,Supplies and Services,"1,542.57",Sep-23
Slough Borough Council,806900,CYXTERA TECHNOLOGY UK LIMITED,B282,Digital and Strategic IT,Supplies and Services,"19,702.00",Sep-23
Slough Borough Council,806541,Darul Madinah Slough,F909,Children & Families,Supplies and Services,"1,499.46",Sep-23
Slough Borough Council,806541,Darul Madinah Slough,F909,Children & Families,Supplies and Services,"12,507.88",Sep-23
Slough Borough Council,808657,Davinder Selby,H205,Housing (People) Services,Supplies and Services,"1,860.00",Sep-23
Slough Borough Council,806159,Devon Piatt-Panton,C322,Community,Supplies and Services,"2,035.50",Sep-23
Slough Borough Council,806159,Devon Piatt-Panton,C322,Community,Supplies and Services,574.00,Sep-23
Slough Borough Council,3554,Dimensions (Uk) Ltd,M42E,Adult Social Care Operations,Supplies and Services,"9,045.94",Sep-23
Slough Borough Council,3554,Dimensions (Uk) Ltd,M42E,Adult Social Care Operations,Supplies and Services,"8,643.92",Sep-23
Slough Borough Council,3554,Dimensions (Uk) Ltd,M42E,Adult Social Care Operations,Supplies and Services,"8,417.31",Sep-23
Slough Borough Council,3554,Dimensions (Uk) Ltd,M42E,Adult Social Care Operations,Supplies and Services,"6,750.26",Sep-23
Slough Borough Council,3554,Dimensions (Uk) Ltd,M42E,Adult Social Care Operations,Supplies and Services,"7,072.55",Sep-23
Slough Borough Council,3554,Dimensions (Uk) Ltd,M42E,Adult Social Care Operations,Supplies and Services,"8,988.19",Sep-23
Slough Borough Council,3554,Dimensions (Uk) Ltd,M42E,Adult Social Care Operations,Supplies and Services,"8,644.16",Sep-23
Slough Borough Council,3554,Dimensions (Uk) Ltd,M42E,Adult Social Care Operations,Supplies and Services,"7,494.56",Sep-23
Slough Borough Council,3554,Dimensions (Uk) Ltd,M42E,Adult Social Care Operations,Supplies and Services,"7,232.42",Sep-23
Slough Borough Council,3554,Dimensions (Uk) Ltd,M42E,Adult Social Care Operations,Supplies and Services,"7,099.23",Sep-23
Slough Borough Council,3554,Dimensions (Uk) Ltd,M42E,Adult Social Care Operations,Supplies and Services,"8,698.24",Sep-23
Slough Borough Council,3554,Dimensions (Uk) Ltd,M42E,Adult Social Care Operations,Supplies and Services,"8,988.18",Sep-23
Slough Borough Council,805483,Direct Tyre Managenent Ltd,D610,Place Operations,Transport,"6,957.81",Sep-23
Slough Borough Council,805483,Direct Tyre Managenent Ltd,D620,Place Operations,Transport,"1,279.67",Sep-23
Slough Borough Council,805483,Direct Tyre Managenent Ltd,D630,Place Operations,Transport,512.69,Sep-23
Slough Borough Council,803306,Ditton Park Academy,E620,Children & Families,Supplies and Services,"35,375.00",Sep-23
Slough Borough Council,807793,Dorney School,F551,Children & Families,Supplies and Services,"2,833.33",Sep-23
Slough Borough Council,1457,Dr Norman Gordon,D320,Place Operations,Premises,"1,326.15",Sep-23
Slough Borough Council,808794,DREAMS HOTEL LTD,H205,Housing (People) Services,Supplies and Services,"32,258.33",Sep-23
Slough Borough Council,808794,DREAMS HOTEL LTD,H205,Housing (People) Services,Supplies and Services,"32,258.33",Sep-23
Slough Borough Council,808505,Dresgef Services Limited,F382,Children & Families,Supplies and Services,"1,984.25",Sep-23
Slough Borough Council,805995,E. Sargeant & Son,H253,Place Regulation,Supplies and Services,"2,000.00",Sep-23
Slough Borough Council,808723,E.ON Control Solutions,B060,Business Services,Premises,510.00,Sep-23
Slough Borough Council,803177,Early Steps Preschool,F909,Children & Families,Supplies and Services,545.88,Sep-23
Slough Borough Council,803177,Early Steps Preschool,F909,Children & Families,Supplies and Services,"8,081.14",Sep-23
Slough Borough Council,780,East Sussex County Council,F123,Education & Inclusion,External Receipts,"5,217.28",Sep-23
Slough Borough Council,803301,Eden Girls School,E610,Children & Families,Supplies and Services,"6,750.00",Sep-23
Slough Borough Council,1299,Edf Energy,B668,Business Services,Premises,"2,513.09",Sep-23
Slough Borough Council,808885,Ekom Solutions,H205,Housing (People) Services,Supplies and Services,"10,695.00",Sep-23
Slough Borough Council,808885,Ekom Solutions,H205,Housing (People) Services,Supplies and Services,"6,975.00",Sep-23
Slough Borough Council,807001,Elegant Care Services Ltd,M42E,Adult Social Care Operations,Supplies and Services,"9,857.14",Sep-23
Slough Borough Council,807001,Elegant Care Services Ltd,M42E,Adult Social Care Operations,Supplies and Services,"6,017.14",Sep-23
Slough Borough Council,807001,Elegant Care Services Ltd,M42E,Adult Social Care Operations,Supplies and Services,"5,794.28",Sep-23
Slough Borough Council,807001,Elegant Care Services Ltd,M44C,Adult Social Care Operations,Supplies and Services,"6,797.14",Sep-23
Slough Borough Council,3752,Endurance Health,A07R,Adult Social Care Operations,Supplies and Services,590.25,Sep-23
Slough Borough Council,3752,Endurance Health,M44C,Adult Social Care Operations,Supplies and Services,682.00,Sep-23
Slough Borough Council,3752,Endurance Health,M44C,Adult Social Care Operations,Supplies and Services,"1,959.02",Sep-23
Slough Borough Council,3752,Endurance Health,M44C,Adult Social Care Operations,Supplies and Services,626.03,Sep-23
Slough Borough Council,3752,Endurance Health,M44C,Adult Social Care Operations,Supplies and Services,"1,032.82",Sep-23
Slough Borough Council,3752,Endurance Health,M44C,Adult Social Care Operations,Supplies and Services,"1,119.44",Sep-23
Slough Borough Council,3752,Endurance Health,M44C,Adult Social Care Operations,Supplies and Services,"1,250.06",Sep-23
Slough Borough Council,3752,Endurance Health,M44C,Adult Social Care Operations,Supplies and Services,559.72,Sep-23
Slough Borough Council,3752,Endurance Health,M44C,Adult Social Care Operations,Supplies and Services,"1,384.66",Sep-23
Slough Borough Council,3752,Endurance Health,M44C,Adult Social Care Operations,Supplies and Services,839.58,Sep-23
Slough Borough Council,3752,Endurance Health,M44C,Adult Social Care Operations,Supplies and Services,"1,059.47",Sep-23
Slough Borough Council,3752,Endurance Health,M44C,Adult Social Care Operations,Supplies and Services,623.37,Sep-23
Slough Borough Council,3752,Endurance Health,M44C,Adult Social Care Operations,Supplies and Services,"1,959.02",Sep-23
Slough Borough Council,3752,Endurance Health,M44C,Adult Social Care Operations,Supplies and Services,679.66,Sep-23
Slough Borough Council,3752,Endurance Health,M44C,Adult Social Care Operations,Supplies and Services,876.89,Sep-23
Slough Borough Council,3752,Endurance Health,M44C,Adult Social Care Operations,Supplies and Services,688.99,Sep-23
Slough Borough Council,3752,Endurance Health,M44C,Adult Social Care Operations,Supplies and Services,"1,259.37",Sep-23
Slough Borough Council,3752,Endurance Health,M44C,Adult Social Care Operations,Supplies and Services,"1,959.02",Sep-23
Slough Borough Council,3752,Endurance Health,M44C,Adult Social Care Operations,Supplies and Services,"1,496.93",Sep-23
Slough Borough Council,3752,Endurance Health,M44C,Adult Social Care Operations,Supplies and Services,699.65,Sep-23
Slough Borough Council,3752,Endurance Health,M44C,Adult Social Care Operations,Supplies and Services,"1,259.37",Sep-23
Slough Borough Council,3752,Endurance Health,M44C,Adult Social Care Operations,Supplies and Services,"3,417.00",Sep-23
Slough Borough Council,3752,Endurance Health,M44C,Adult Social Care Operations,Supplies and Services,"2,567.74",Sep-23
Slough Borough Council,3752,Endurance Health,M44C,Adult Social Care Operations,Supplies and Services,"2,575.41",Sep-23
Slough Borough Council,3752,Endurance Health,M44C,Adult Social Care Operations,Supplies and Services,626.69,Sep-23
Slough Borough Council,3752,Endurance Health,M44C,Adult Social Care Operations,Supplies and Services,"1,119.44",Sep-23
Slough Borough Council,3752,Endurance Health,M44C,Adult Social Care Operations,Supplies and Services,"1,414.30",Sep-23
Slough Borough Council,3752,Endurance Health,M44C,Adult Social Care Operations,Supplies and Services,"1,435.97",Sep-23
Slough Borough Council,3752,Endurance Health,M44D,Adult Social Care Operations,Supplies and Services,"1,120.79",Sep-23
Slough Borough Council,3752,Endurance Health,M44D,Adult Social Care Operations,Supplies and Services,812.60,Sep-23
Slough Borough Council,3752,Endurance Health,M44D,Adult Social Care Operations,Supplies and Services,"1,959.02",Sep-23
Slough Borough Council,3752,Endurance Health,M44D,Adult Social Care Operations,Supplies and Services,"1,259.37",Sep-23
Slough Borough Council,3752,Endurance Health,M44D,Adult Social Care Operations,Supplies and Services,"2,798.60",Sep-23
Slough Borough Council,3752,Endurance Health,M44D,Adult Social Care Operations,Supplies and Services,559.72,Sep-23
Slough Borough Council,3752,Endurance Health,M44D,Adult Social Care Operations,Supplies and Services,"1,166.43",Sep-23
Slough Borough Council,3752,Endurance Health,M44D,Adult Social Care Operations,Supplies and Services,706.79,Sep-23
Slough Borough Council,3752,Endurance Health,M44F,Adult Social Care Operations,Supplies and Services,584.04,Sep-23
Slough Borough Council,3752,Endurance Health,M45C,Adult Social Care Operations,Supplies and Services,"1,458.95",Sep-23
Slough Borough Council,3752,Endurance Health,M45C,Adult Social Care Operations,Supplies and Services,838.92,Sep-23
Slough Borough Council,3752,Endurance Health,M45C,Adult Social Care Operations,Supplies and Services,617.32,Sep-23
Slough Borough Council,805423,Enriched Care,M44D,Adult Social Care Operations,Supplies and Services,"3,741.70",Sep-23
Slough Borough Council,805423,Enriched Care,M44D,Adult Social Care Operations,Supplies and Services,"3,741.70",Sep-23
Slough Borough Council,805423,Enriched Care,M44D,Adult Social Care Operations,Supplies and Services,"3,621.00",Sep-23
Slough Borough Council,805423,Enriched Care,M44F,Adult Social Care Operations,Supplies and Services,"2,529.00",Sep-23
Slough Borough Council,805423,Enriched Care,M44F,Adult Social Care Operations,Supplies and Services,"2,613.30",Sep-23
Slough Borough Council,805423,Enriched Care,M44F,Adult Social Care Operations,Supplies and Services,"2,613.30",Sep-23
Slough Borough Council,805423,Enriched Care,M44F,Adult Social Care Operations,Supplies and Services,"2,529.00",Sep-23
Slough Borough Council,805423,Enriched Care,M44F,Adult Social Care Operations,Supplies and Services,"2,787.00",Sep-23
Slough Borough Council,805423,Enriched Care,M80F,Adult Social Care Operations,Supplies and Services,"1,701.30",Sep-23
Slough Borough Council,807310,Enterprise Rent-A-Car UK Limited trading as Enterprise Flex-E-Rent,B060,Business Services,Premises,"2,284.64",Sep-23
Slough Borough Council,807310,Enterprise Rent-A-Car UK Limited trading as Enterprise Flex-E-Rent,B060,Business Services,Premises,"2,360.80",Sep-23
Slough Borough Council,807310,Enterprise Rent-A-Car UK Limited trading as Enterprise Flex-E-Rent,B060,Business Services,Premises,"2,360.80",Sep-23
Slough Borough Council,807310,Enterprise Rent-A-Car UK Limited trading as Enterprise Flex-E-Rent,D880,Place Operations,Supplies and Services,696.56,Sep-23
Slough Borough Council,807310,Enterprise Rent-A-Car UK Limited trading as Enterprise Flex-E-Rent,D620,Place Operations,Transport,"11,328.54",Sep-23
Slough Borough Council,807310,Enterprise Rent-A-Car UK Limited trading as Enterprise Flex-E-Rent,D750,Place Operations,Transport,"11,059.68",Sep-23
Slough Borough Council,807310,Enterprise Rent-A-Car UK Limited trading as Enterprise Flex-E-Rent,D880,Place Operations,Transport,"4,740.72",Sep-23
Slough Borough Council,808235,Eon Next,P242,Capital,Capital Charges,885.87,Sep-23
Slough Borough Council,808235,Eon Next,P242,Capital,Capital Charges,593.75,Sep-23
Slough Borough Council,805056,Eonic Associates LLP,F253,Children & Families,Supplies and Services,798.00,Sep-23
Slough Borough Council,2677,Eton House Residential Home,M25C,Adult Social Care Operations,Supplies and Services,"3,534.00",Sep-23
Slough Borough Council,2677,Eton House Residential Home,M25C,Adult Social Care Operations,Supplies and Services,"5,092.86",Sep-23
Slough Borough Council,2677,Eton House Residential Home,M25D,Adult Social Care Operations,Supplies and Services,"3,199.64",Sep-23
Slough Borough Council,2677,Eton House Residential Home,M27C,Adult Social Care Operations,Supplies and Services,"6,214.29",Sep-23
Slough Borough Council,2677,Eton House Residential Home,M27C,Adult Social Care Operations,Supplies and Services,"6,428.57",Sep-23
Slough Borough Council,2677,Eton House Residential Home,M27C,Adult Social Care Operations,Supplies and Services,"5,092.86",Sep-23
Slough Borough Council,2677,Eton House Residential Home,M27C,Adult Social Care Operations,Supplies and Services,"5,092.86",Sep-23
Slough Borough Council,2677,Eton House Residential Home,M27C,Adult Social Care Operations,Supplies and Services,"3,614.28",Sep-23
Slough Borough Council,2677,Eton House Residential Home,M27C,Adult Social Care Operations,Supplies and Services,"-2,792.86",Sep-23
Slough Borough Council,2677,Eton House Residential Home,M27C,Adult Social Care Operations,Supplies and Services,"6,642.86",Sep-23
Slough Borough Council,2677,Eton House Residential Home,M27C,Adult Social Care Operations,Supplies and Services,"3,520.71",Sep-23
Slough Borough Council,2677,Eton House Residential Home,M27C,Adult Social Care Operations,Supplies and Services,"5,092.86",Sep-23
Slough Borough Council,2677,Eton House Residential Home,M27C,Adult Social Care Operations,Supplies and Services,"2,657.14",Sep-23
Slough Borough Council,808745,Eton Lettings Limited,H218,Community,Supplies and Services,"12,165.52",Sep-23
Slough Borough Council,806501,Excellent Healthcare Services Ltd,A07R,Adult Social Care Operations,Supplies and Services,553.15,Sep-23
Slough Borough Council,806501,Excellent Healthcare Services Ltd,A07R,Adult Social Care Operations,Supplies and Services,883.98,Sep-23
Slough Borough Council,806501,Excellent Healthcare Services Ltd,M44C,Adult Social Care Operations,Supplies and Services,833.98,Sep-23
Slough Borough Council,806501,Excellent Healthcare Services Ltd,M44C,Adult Social Care Operations,Supplies and Services,"2,144.52",Sep-23
Slough Borough Council,806501,Excellent Healthcare Services Ltd,M44C,Adult Social Care Operations,Supplies and Services,765.90,Sep-23
Slough Borough Council,806501,Excellent Healthcare Services Ltd,M44C,Adult Social Care Operations,Supplies and Services,"1,072.26",Sep-23
Slough Borough Council,806501,Excellent Healthcare Services Ltd,M44C,Adult Social Care Operations,Supplies and Services,833.98,Sep-23
Slough Borough Council,806501,Excellent Healthcare Services Ltd,M44C,Adult Social Care Operations,Supplies and Services,"2,144.52",Sep-23
Slough Borough Council,806501,Excellent Healthcare Services Ltd,M44C,Adult Social Care Operations,Supplies and Services,"2,280.68",Sep-23
Slough Borough Council,806501,Excellent Healthcare Services Ltd,M44C,Adult Social Care Operations,Supplies and Services,833.98,Sep-23
Slough Borough Council,806501,Excellent Healthcare Services Ltd,M44C,Adult Social Care Operations,Supplies and Services,"2,144.52",Sep-23
Slough Borough Council,806501,Excellent Healthcare Services Ltd,M44C,Adult Social Care Operations,Supplies and Services,"1,072.26",Sep-23
Slough Borough Council,806501,Excellent Healthcare Services Ltd,M44C,Adult Social Care Operations,Supplies and Services,"1,021.20",Sep-23
Slough Borough Council,806501,Excellent Healthcare Services Ltd,M44C,Adult Social Care Operations,Supplies and Services,"1,667.96",Sep-23
Slough Borough Council,806501,Excellent Healthcare Services Ltd,M44C,Adult Social Care Operations,Supplies and Services,851.00,Sep-23
Slough Borough Council,806501,Excellent Healthcare Services Ltd,M44C,Adult Social Care Operations,Supplies and Services,"1,072.26",Sep-23
Slough Borough Council,806501,Excellent Healthcare Services Ltd,M44D,Adult Social Care Operations,Supplies and Services,"1,378.62",Sep-23
Slough Borough Council,806501,Excellent Healthcare Services Ltd,M44F,Adult Social Care Operations,Supplies and Services,"2,382.80",Sep-23
Slough Borough Council,806501,Excellent Healthcare Services Ltd,M44F,Adult Social Care Operations,Supplies and Services,714.84,Sep-23
Slough Borough Council,806501,Excellent Healthcare Services Ltd,M44F,Adult Social Care Operations,Supplies and Services,923.33,Sep-23
Slough Borough Council,806501,Excellent Healthcare Services Ltd,M45C,Adult Social Care Operations,Supplies and Services,765.90,Sep-23
Slough Borough Council,806501,Excellent Healthcare Services Ltd,M45C,Adult Social Care Operations,Supplies and Services,"1,102.65",Sep-23
Slough Borough Council,806501,Excellent Healthcare Services Ltd,M45C,Adult Social Care Operations,Supplies and Services,825.47,Sep-23
Slough Borough Council,806501,Excellent Healthcare Services Ltd,M45C,Adult Social Care Operations,Supplies and Services,"1,072.26",Sep-23
Slough Borough Council,806501,Excellent Healthcare Services Ltd,M45C,Adult Social Care Operations,Supplies and Services,"1,216.93",Sep-23
Slough Borough Council,806501,Excellent Healthcare Services Ltd,M45C,Adult Social Care Operations,Supplies and Services,612.72,Sep-23
Slough Borough Council,806501,Excellent Healthcare Services Ltd,M45C,Adult Social Care Operations,Supplies and Services,"1,497.76",Sep-23
Slough Borough Council,808736,EXCLUSIVE HOUSING SOLUTION LIMITED,H205,Housing (People) Services,Supplies and Services,"17,765.00",Sep-23
Slough Borough Council,808736,EXCLUSIVE HOUSING SOLUTION LIMITED,H205,Housing (People) Services,Supplies and Services,"26,708.00",Sep-23
Slough Borough Council,808981,Faithorn Farrell Timms LLP,J606,Place Management,Supplies and Services,"12,550.00",Sep-23
Slough Borough Council,641,Falon Nameplates Limited,D320,Place Operations,Supplies and Services,535.18,Sep-23
Slough Borough Council,754,First Steps Day Nursery,F909,Children & Families,Supplies and Services,"12,973.29",Sep-23
Slough Borough Council,1204,Forget Me Not,M25C,Adult Social Care Operations,Supplies and Services,"4,800.00",Sep-23
Slough Borough Council,1204,Forget Me Not,M25C,Adult Social Care Operations,Supplies and Services,"3,400.00",Sep-23
Slough Borough Council,1204,Forget Me Not,M25C,Adult Social Care Operations,Supplies and Services,"3,800.00",Sep-23
Slough Borough Council,1204,Forget Me Not,M25D,Adult Social Care Operations,Supplies and Services,"3,600.00",Sep-23
Slough Borough Council,1204,Forget Me Not,M27C,Adult Social Care Operations,Supplies and Services,"3,199.76",Sep-23
Slough Borough Council,1204,Forget Me Not,M27C,Adult Social Care Operations,Supplies and Services,"3,800.00",Sep-23
Slough Borough Council,647,Foxborough Primary School,E620,Children & Families,Supplies and Services,"12,902.12",Sep-23
Slough Borough Council,649,Freeway Lift Services Ltd,A07R,Adult Social Care Operations,Supplies and Services,"1,058.90",Sep-23
Slough Borough Council,649,Freeway Lift Services Ltd,P006,Capital,Capital Charges,612.00,Sep-23
Slough Borough Council,1758,Gas Advisory Services Limited,J606,Place Management,Supplies and Services,"2,010.00",Sep-23
Slough Borough Council,1758,Gas Advisory Services Limited,J606,Place Management,Supplies and Services,"6,188.00",Sep-23
Slough Borough Council,809062,GCH (St Katharine's) Limited,M25C,Adult Social Care Operations,Supplies and Services,"4,714.29",Sep-23
Slough Borough Council,2830,GR Response Healthcare Ltd,A07R,Adult Social Care Operations,Supplies and Services,"2,394.00",Sep-23
Slough Borough Council,2830,GR Response Healthcare Ltd,M44C,Adult Social Care Operations,Supplies and Services,"2,460.50",Sep-23
Slough Borough Council,2830,GR Response Healthcare Ltd,M44C,Adult Social Care Operations,Supplies and Services,"2,000.32",Sep-23
Slough Borough Council,2830,GR Response Healthcare Ltd,M44C,Adult Social Care Operations,Supplies and Services,"2,250.08",Sep-23
Slough Borough Council,2830,GR Response Healthcare Ltd,M44C,Adult Social Care Operations,Supplies and Services,"2,394.00",Sep-23
Slough Borough Council,2830,GR Response Healthcare Ltd,M44C,Adult Social Care Operations,Supplies and Services,"2,128.00",Sep-23
Slough Borough Council,2830,GR Response Healthcare Ltd,M44C,Adult Social Care Operations,Supplies and Services,"2,250.08",Sep-23
Slough Borough Council,2830,GR Response Healthcare Ltd,M44C,Adult Social Care Operations,Supplies and Services,"1,500.24",Sep-23
Slough Borough Council,2830,GR Response Healthcare Ltd,M44C,Adult Social Care Operations,Supplies and Services,749.84,Sep-23
Slough Borough Council,2830,GR Response Healthcare Ltd,M44C,Adult Social Care Operations,Supplies and Services,"2,250.08",Sep-23
Slough Borough Council,2830,GR Response Healthcare Ltd,M44C,Adult Social Care Operations,Supplies and Services,"2,394.00",Sep-23
Slough Borough Council,2830,GR Response Healthcare Ltd,M44C,Adult Social Care Operations,Supplies and Services,"1,149.50",Sep-23
Slough Borough Council,2830,GR Response Healthcare Ltd,M44C,Adult Social Care Operations,Supplies and Services,"2,926.00",Sep-23
Slough Borough Council,2830,GR Response Healthcare Ltd,M44D,Adult Social Care Operations,Supplies and Services,"2,432.00",Sep-23
Slough Borough Council,2830,GR Response Healthcare Ltd,M44D,Adult Social Care Operations,Supplies and Services,"1,481.82",Sep-23
Slough Borough Council,2830,GR Response Healthcare Ltd,M44D,Adult Social Care Operations,Supplies and Services,"2,736.00",Sep-23
Slough Borough Council,2830,GR Response Healthcare Ltd,M44D,Adult Social Care Operations,Supplies and Services,"1,596.00",Sep-23
Slough Borough Council,2830,GR Response Healthcare Ltd,M44D,Adult Social Care Operations,Supplies and Services,931.00,Sep-23
Slough Borough Council,2830,GR Response Healthcare Ltd,M44D,Adult Social Care Operations,Supplies and Services,"1,672.00",Sep-23
Slough Borough Council,2830,GR Response Healthcare Ltd,M44D,Adult Social Care Operations,Supplies and Services,"2,250.08",Sep-23
Slough Borough Council,2830,GR Response Healthcare Ltd,M44D,Adult Social Care Operations,Supplies and Services,"2,250.08",Sep-23
Slough Borough Council,2830,GR Response Healthcare Ltd,M44D,Adult Social Care Operations,Supplies and Services,750.12,Sep-23
Slough Borough Council,2830,GR Response Healthcare Ltd,M44E,Adult Social Care Operations,Supplies and Services,532.00,Sep-23
Slough Borough Council,2830,GR Response Healthcare Ltd,A06C,People Strategy & Commissioning,Supplies and Services,"7,900.00",Sep-23
Slough Borough Council,808464,Greenstone Care,M51C,Adult Social Care Operations,Supplies and Services,"1,800.00",Sep-23
Slough Borough Council,805069,Grove Academy,E610,Children & Families,Supplies and Services,"15,526.47",Sep-23
Slough Borough Council,804447,Grundon Waste Management Limited,D342,Place Operations,Supplies and Services,"1,174.00",Sep-23
Slough Borough Council,804447,Grundon Waste Management Limited,D342,Place Operations,Supplies and Services,"1,618.69",Sep-23
Slough Borough Council,804447,Grundon Waste Management Limited,D342,Place Operations,Supplies and Services,"5,937.00",Sep-23
Slough Borough Council,804447,Grundon Waste Management Limited,D342,Place Operations,Supplies and Services,"512,788.40",Sep-23
Slough Borough Council,3228,H Plus Care Ltd,M25C,Adult Social Care Operations,Supplies and Services,"5,357.14",Sep-23
Slough Borough Council,3228,H Plus Care Ltd,M26E,Adult Social Care Operations,Supplies and Services,"5,142.86",Sep-23
Slough Borough Council,806681,Hako Machines Ltd,D620,Place Operations,Supplies and Services,597.42,Sep-23
Slough Borough Council,1828,Hallens Solicitors,B348,People,Indirect Employee Expenses,"1,500.00",Sep-23
Slough Borough Council,744,Hampshire County Council,A08R,Adult Social Care Operations,Supplies and Services,"65,000.00",Sep-23
Slough Borough Council,1610,Handicare Uk,P006,Capital,Capital Charges,"6,315.00",Sep-23
Slough Borough Council,1610,Handicare Uk,P006,Capital,Capital Charges,"5,990.00",Sep-23
Slough Borough Council,1610,Handicare Uk,P006,Capital,Capital Charges,"3,715.00",Sep-23
Slough Borough Council,1610,Handicare Uk,P006,Capital,Capital Charges,"5,799.00",Sep-23
Slough Borough Council,804986,Havencare Ltd,M26E,Adult Social Care Operations,Supplies and Services,"1,356.27",Sep-23
Slough Borough Council,804986,Havencare Ltd,M26E,Adult Social Care Operations,Supplies and Services,"1,356.27",Sep-23
Slough Borough Council,804986,Havencare Ltd,M26E,Adult Social Care Operations,Supplies and Services,"1,356.27",Sep-23
Slough Borough Council,804986,Havencare Ltd,M26E,Adult Social Care Operations,Supplies and Services,"1,356.27",Sep-23
Slough Borough Council,809014,Havendale Ltd,H205,Housing (People) Services,Supplies and Services,"4,978.00",Sep-23
Slough Borough Council,1381,Haybrook College,E610,Children & Families,Supplies and Services,"110,558.11",Sep-23
Slough Borough Council,3784,Haybrook College Pru,E610,Children & Families,Supplies and Services,"31,968.18",Sep-23
Slough Borough Council,803248,Haybrook College Trust,F123,Education & Inclusion,External Receipts,"49,320.00",Sep-23
Slough Borough Council,808639,Hazel Care Services Ltd,M42E,Adult Social Care Operations,Supplies and Services,"2,234.17",Sep-23
Slough Borough Council,808639,Hazel Care Services Ltd,M42E,Adult Social Care Operations,Supplies and Services,"4,259.71",Sep-23
Slough Borough Council,808639,Hazel Care Services Ltd,M42E,Adult Social Care Operations,Supplies and Services,"6,993.60",Sep-23
Slough Borough Council,808639,Hazel Care Services Ltd,M42E,Adult Social Care Operations,Supplies and Services,"2,321.90",Sep-23
Slough Borough Council,803753,Healthcare Homes,M17C,Adult Social Care Operations,Supplies and Services,"4,871.43",Sep-23
Slough Borough Council,803753,Healthcare Homes,M17C,Adult Social Care Operations,Supplies and Services,"4,871.43",Sep-23
Slough Borough Council,803753,Healthcare Homes,M17C,Adult Social Care Operations,Supplies and Services,"3,614.29",Sep-23
Slough Borough Council,803753,Healthcare Homes,M17C,Adult Social Care Operations,Supplies and Services,"4,871.43",Sep-23
Slough Borough Council,803753,Healthcare Homes,M17C,Adult Social Care Operations,Supplies and Services,"4,714.29",Sep-23
Slough Borough Council,803753,Healthcare Homes,M17C,Adult Social Care Operations,Supplies and Services,"4,871.43",Sep-23
Slough Borough Council,803753,Healthcare Homes,M17C,Adult Social Care Operations,Supplies and Services,"4,714.29",Sep-23
Slough Borough Council,803753,Healthcare Homes,M17C,Adult Social Care Operations,Supplies and Services,"1,200.00",Sep-23
Slough Borough Council,803753,Healthcare Homes,M17C,Adult Social Care Operations,Supplies and Services,"5,314.29",Sep-23
Slough Borough Council,803753,Healthcare Homes,M17C,Adult Social Care Operations,Supplies and Services,"5,142.86",Sep-23
Slough Borough Council,803753,Healthcare Homes,M18C,Adult Social Care Operations,Supplies and Services,"2,357.14",Sep-23
Slough Borough Council,803753,Healthcare Homes,M18C,Adult Social Care Operations,Supplies and Services,"4,714.29",Sep-23
Slough Borough Council,803753,Healthcare Homes,M18C,Adult Social Care Operations,Supplies and Services,"4,871.43",Sep-23
Slough Borough Council,803753,Healthcare Homes,M18C,Adult Social Care Operations,Supplies and Services,"4,714.29",Sep-23
Slough Borough Council,803753,Healthcare Homes,M18C,Adult Social Care Operations,Supplies and Services,"4,871.43",Sep-23
Slough Borough Council,803753,Healthcare Homes,M18C,Adult Social Care Operations,Supplies and Services,"4,871.43",Sep-23
Slough Borough Council,803753,Healthcare Homes,M28C,Adult Social Care Operations,Supplies and Services,"3,771.43",Sep-23
Slough Borough Council,803753,Healthcare Homes,M28C,Adult Social Care Operations,Supplies and Services,"2,514.29",Sep-23
Slough Borough Council,803753,Healthcare Homes,M28C,Adult Social Care Operations,Supplies and Services,"5,142.86",Sep-23
Slough Borough Council,803753,Healthcare Homes,M28C,Adult Social Care Operations,Supplies and Services,"5,314.29",Sep-23
Slough Borough Council,803753,Healthcare Homes,M28C,Adult Social Care Operations,Supplies and Services,685.71,Sep-23
Slough Borough Council,803753,Healthcare Homes,M28C,Adult Social Care Operations,Supplies and Services,"5,314.29",Sep-23
Slough Borough Council,803753,Healthcare Homes,M29C,Adult Social Care Operations,Supplies and Services,"2,742.86",Sep-23
Slough Borough Council,807944,Hemisphere West Europe Ltd.,C104,Community,Supplies and Services,"3,600.00",Sep-23
Slough Borough Council,803447,Herewards House Residential Home,A03E,Adult Social Care Operations,Supplies and Services,"7,285.71",Sep-23
Slough Borough Council,803447,Herewards House Residential Home,A03E,Adult Social Care Operations,Supplies and Services,"5,707.15",Sep-23
Slough Borough Council,803447,Herewards House Residential Home,A03E,Adult Social Care Operations,Supplies and Services,"7,528.57",Sep-23
Slough Borough Council,803447,Herewards House Residential Home,M25C,Adult Social Care Operations,Supplies and Services,"3,857.14",Sep-23
Slough Borough Council,803447,Herewards House Residential Home,M25C,Adult Social Care Operations,Supplies and Services,"3,642.86",Sep-23
Slough Borough Council,803447,Herewards House Residential Home,M27C,Adult Social Care Operations,Supplies and Services,"3,857.14",Sep-23
Slough Borough Council,803447,Herewards House Residential Home,M27C,Adult Social Care Operations,Supplies and Services,"3,985.71",Sep-23
Slough Borough Council,803447,Herewards House Residential Home,M27C,Adult Social Care Operations,Supplies and Services,"3,857.14",Sep-23
Slough Borough Council,803447,Herewards House Residential Home,M27C,Adult Social Care Operations,Supplies and Services,"3,985.71",Sep-23
Slough Borough Council,803447,Herewards House Residential Home,M27C,Adult Social Care Operations,Supplies and Services,"3,642.86",Sep-23
Slough Borough Council,803447,Herewards House Residential Home,M27C,Adult Social Care Operations,Supplies and Services,"2,785.71",Sep-23
Slough Borough Council,803447,Herewards House Residential Home,M27C,Adult Social Care Operations,Supplies and Services,"3,642.86",Sep-23
Slough Borough Council,803447,Herewards House Residential Home,M27C,Adult Social Care Operations,Supplies and Services,"3,857.14",Sep-23
Slough Borough Council,803447,Herewards House Residential Home,M29C,Adult Social Care Operations,Supplies and Services,"1,578.57",Sep-23
Slough Borough Council,803447,Herewards House Residential Home,M29C,Adult Social Care Operations,Supplies and Services,"7,285.71",Sep-23
Slough Borough Council,807998,Heywood's Catering,F382,Children & Families,Supplies and Services,"10,000.00",Sep-23
Slough Borough Council,850,Holy Family Catholic Primary School,E250,Children & Families,Supplies and Services,"194,409.00",Sep-23
Slough Borough Council,809021,HS Direct Ltd,B061,Business Services,Indirect Employee Expenses,"1,019.00",Sep-23
Slough Borough Council,808676,Human Engine Limited,B146,Finance & Commercial,Supplies and Services,"2,400.00",Sep-23
Slough Borough Council,1914,Huntcliff Limited,J028,Place Management,Supplies and Services,860.53,Sep-23
Slough Borough Council,808773,Hygiene Systems Ltd,B060,Business Services,Premises,"1,877.45",Sep-23
Slough Borough Council,808897,Imperial Breeze Healthcare South East Ltd,M44D,Adult Social Care Operations,Supplies and Services,"13,097.14",Sep-23
Slough Borough Council,808897,Imperial Breeze Healthcare South East Ltd,M44D,Adult Social Care Operations,Supplies and Services,"9,822.86",Sep-23
Slough Borough Council,808897,Imperial Breeze Healthcare South East Ltd,M44D,Adult Social Care Operations,Supplies and Services,"2,035.71",Sep-23
Slough Borough Council,808897,Imperial Breeze Healthcare South East Ltd,M44D,Adult Social Care Operations,Supplies and Services,"4,207.14",Sep-23
Slough Borough Council,808897,Imperial Breeze Healthcare South East Ltd,M44D,Adult Social Care Operations,Supplies and Services,"1,357.15",Sep-23
Slough Borough Council,807666,Independence Home and Domicilary Care,M44F,Adult Social Care Operations,Supplies and Services,"3,381.17",Sep-23
Slough Borough Council,807666,Independence Home and Domicilary Care,M44F,Adult Social Care Operations,Supplies and Services,"2,940.66",Sep-23
Slough Borough Council,807666,Independence Home and Domicilary Care,M44F,Adult Social Care Operations,Supplies and Services,"3,348.00",Sep-23
Slough Borough Council,807666,Independence Home and Domicilary Care,M44F,Adult Social Care Operations,Supplies and Services,"1,544.58",Sep-23
Slough Borough Council,3570,Independent Supported Living And Disabilities Ltd,M42E,Adult Social Care Operations,Supplies and Services,"3,000.00",Sep-23
Slough Borough Council,3570,Independent Supported Living And Disabilities Ltd,M44E,Adult Social Care Operations,Supplies and Services,"3,570.00",Sep-23
Slough Borough Council,3570,Independent Supported Living And Disabilities Ltd,M44E,Adult Social Care Operations,Supplies and Services,"1,050.00",Sep-23
Slough Borough Council,3570,Independent Supported Living And Disabilities Ltd,M44E,Adult Social Care Operations,Supplies and Services,"1,440.00",Sep-23
Slough Borough Council,3570,Independent Supported Living And Disabilities Ltd,M44E,Adult Social Care Operations,Supplies and Services,"4,212.00",Sep-23
Slough Borough Council,3570,Independent Supported Living And Disabilities Ltd,M44F,Adult Social Care Operations,Supplies and Services,"2,608.00",Sep-23
Slough Borough Council,808214,Infocus Charity,F462,Children & Families,Supplies and Services,"19,029.15",Sep-23
Slough Borough Council,809086,Inspired Property Management Ltd,B079,Place Strategy & Infrastructure,Premises,"12,050.84",Sep-23
Slough Borough Council,3500,Iqra Slough Islamic Primary School,E480,Children & Families,Supplies and Services,"116,926.26",Sep-23
Slough Borough Council,2919,Islamic Shakhsiyah Foundation,F909,Children & Families,Supplies and Services,"8,190.65",Sep-23
Slough Borough Council,807346,Jacaranda,M44F,Adult Social Care Operations,Supplies and Services,"-4,710.00",Sep-23
Slough Borough Council,753,Jack In The Box Day Nursery,F909,Children & Families,Supplies and Services,"11,074.73",Sep-23
Slough Borough Council,733,James Elliman  School,E620,Children & Families,Supplies and Services,"22,667.53",Sep-23
Slough Borough Council,1928,Janet Byrne,F909,Children & Families,Supplies and Services,610.05,Sep-23
Slough Borough Council,196,Joes Folly,H253,Place Regulation,Supplies and Services,"5,439.00",Sep-23
Slough Borough Council,2200,Joshua Pilmore,C322,Community,Supplies and Services,"1,610.00",Sep-23
Slough Borough Council,809063,KARELINK LTD,M18C,Adult Social Care Operations,Supplies and Services,"2,464.29",Sep-23
Slough Borough Council,809063,KARELINK LTD,M18C,Adult Social Care Operations,Supplies and Services,857.14,Sep-23
Slough Borough Council,809063,KARELINK LTD,M18C,Adult Social Care Operations,Supplies and Services,535.71,Sep-23
Slough Borough Council,809063,KARELINK LTD,M18C,Adult Social Care Operations,Supplies and Services,"2,678.58",Sep-23
Slough Borough Council,809063,KARELINK LTD,M18C,Adult Social Care Operations,Supplies and Services,"3,000.00",Sep-23
Slough Borough Council,803815,Kathys Childcare,F909,Children & Families,Supplies and Services,952.35,Sep-23
Slough Borough Council,2620,Kcare Nursing Agency Ltd,M44D,Adult Social Care Operations,Supplies and Services,894.14,Sep-23
Slough Borough Council,2620,Kcare Nursing Agency Ltd,M48C,Adult Social Care Operations,Supplies and Services,"4,000.00",Sep-23
Slough Borough Council,804887,KCare Nursing Agency Ltd Supported House Living,M42F,Adult Social Care Operations,Supplies and Services,"2,926.00",Sep-23
Slough Borough Council,804887,KCare Nursing Agency Ltd Supported House Living,M44F,Adult Social Care Operations,Supplies and Services,"2,493.50",Sep-23
Slough Borough Council,804799,Key Management System Ltd,J015,Place Management,Supplies and Services,"7,810.25",Sep-23
Slough Borough Council,807742,Khalsa Primary School,E620,Children & Families,Supplies and Services,"15,155.00",Sep-23
Slough Borough Council,803916,Kharis Solutions,M42E,Adult Social Care Operations,Supplies and Services,"10,360.00",Sep-23
Slough Borough Council,803916,Kharis Solutions,M42E,Adult Social Care Operations,Supplies and Services,"10,360.00",Sep-23
Slough Borough Council,803916,Kharis Solutions,M42E,Adult Social Care Operations,Supplies and Services,"7,188.00",Sep-23
Slough Borough Council,803916,Kharis Solutions,M42E,Adult Social Care Operations,Supplies and Services,"10,360.00",Sep-23
Slough Borough Council,803916,Kharis Solutions,M42E,Adult Social Care Operations,Supplies and Services,"10,360.00",Sep-23
Slough Borough Council,803916,Kharis Solutions,M42E,Adult Social Care Operations,Supplies and Services,"7,188.00",Sep-23
Slough Borough Council,803916,Kharis Solutions,M44C,Adult Social Care Operations,Supplies and Services,"2,302.70",Sep-23
Slough Borough Council,803916,Kharis Solutions,M44E,Adult Social Care Operations,Supplies and Services,"1,024.29",Sep-23
Slough Borough Council,803916,Kharis Solutions,M44E,Adult Social Care Operations,Supplies and Services,"1,110.00",Sep-23
Slough Borough Council,803916,Kharis Solutions,M48C,Adult Social Care Operations,Supplies and Services,"2,276.44",Sep-23
Slough Borough Council,807911,Kidz Enterprise LTD,F382,Children & Families,Supplies and Services,"4,440.00",Sep-23
Slough Borough Council,807911,Kidz Enterprise LTD,F382,Children & Families,Supplies and Services,"1,320.00",Sep-23
Slough Borough Council,808599,lakhwinder Singh,H205,Housing (People) Services,Supplies and Services,"1,550.00",Sep-23
Slough Borough Council,808599,lakhwinder Singh,H205,Housing (People) Services,Supplies and Services,"1,550.00",Sep-23
Slough Borough Council,664,Langley Grammar School,E610,Children & Families,Supplies and Services,875.00,Sep-23
Slough Borough Council,805463,Langley Hall Arts Limited,F253,Children & Families,Agency Staff,"1,920.00",Sep-23
Slough Borough Council,1699,Langley Hall Primary Academy,E620,Children & Families,Supplies and Services,"6,268.26",Sep-23
Slough Borough Council,3001,Langley Haven Care Homes Ltd,M26E,Adult Social Care Operations,Supplies and Services,"1,549.67",Sep-23
Slough Borough Council,3001,Langley Haven Care Homes Ltd,M27C,Adult Social Care Operations,Supplies and Services,"4,287.21",Sep-23
Slough Borough Council,3001,Langley Haven Care Homes Ltd,M27F,Adult Social Care Operations,Supplies and Services,"3,985.71",Sep-23
Slough Borough Council,3001,Langley Haven Care Homes Ltd,M28C,Adult Social Care Operations,Supplies and Services,"-3,857.14",Sep-23
Slough Borough Council,803686,Lascelles Park Nursery,F909,Children & Families,Supplies and Services,"1,903.82",Sep-23
Slough Borough Council,803686,Lascelles Park Nursery,F909,Children & Families,Supplies and Services,"18,949.31",Sep-23
Slough Borough Council,808892,Letee Limited,H205,Housing (People) Services,Supplies and Services,"6,820.00",Sep-23
Slough Borough Council,808892,Letee Limited,H205,Housing (People) Services,Supplies and Services,"1,705.00",Sep-23
Slough Borough Council,808892,Letee Limited,H205,Housing (People) Services,Supplies and Services,"1,705.00",Sep-23
Slough Borough Council,808892,Letee Limited,H205,Housing (People) Services,Supplies and Services,"6,260.00",Sep-23
Slough Borough Council,808892,Letee Limited,H205,Housing (People) Services,Supplies and Services,"1,705.00",Sep-23
Slough Borough Council,301,Liberata Uk Limited,B048,Finance & Commercial,Supplies and Services,"10,574.07",Sep-23
Slough Borough Council,469,LimeBlue Innovation Limited,H213,Adult Social Care Operations,Supplies and Services,820.00,Sep-23
Slough Borough Council,3934,Linda Berry,F909,Children & Families,Supplies and Services,610.05,Sep-23
Slough Borough Council,397,Liquidlogic,F150,Children & Families,Supplies and Services,"6,496.60",Sep-23
Slough Borough Council,804692,Little Diamonds Pre School,F909,Children & Families,Supplies and Services,"25,119.00",Sep-23
Slough Borough Council,804692,Little Diamonds Pre School,F909,Children & Families,Supplies and Services,"1,355.40",Sep-23
Slough Borough Council,808192,Little Musketeers,F382,Children & Families,Supplies and Services,"6,887.10",Sep-23
Slough Borough Council,3791,Littledown Pru,E610,Children & Families,Supplies and Services,"17,100.00",Sep-23
Slough Borough Council,667,Littledown School,E610,Children & Families,Supplies and Services,"43,945.00",Sep-23
Slough Borough Council,804544,London Borough of Harrow,B096,Democratic Services,Indirect Employee Expenses,"115,539.36",Sep-23
Slough Borough Council,1282,Long Close School,F909,Children & Families,Supplies and Services,"6,608.87",Sep-23
Slough Borough Council,2302,Look Ahead Care And Support,M42F,Adult Social Care Operations,Supplies and Services,"1,750.07",Sep-23
Slough Borough Council,2302,Look Ahead Care And Support,M42F,Adult Social Care Operations,Supplies and Services,"23,148.92",Sep-23
Slough Borough Council,2302,Look Ahead Care And Support,M44D,Adult Social Care Operations,Supplies and Services,"3,030.60",Sep-23
Slough Borough Council,2302,Look Ahead Care And Support,M44F,Adult Social Care Operations,Supplies and Services,907.24,Sep-23
Slough Borough Council,2302,Look Ahead Care And Support,M44F,Adult Social Care Operations,Supplies and Services,792.86,Sep-23
Slough Borough Council,2302,Look Ahead Care And Support,M44F,Adult Social Care Operations,Supplies and Services,"1,750.07",Sep-23
Slough Borough Council,2302,Look Ahead Care And Support,M44F,Adult Social Care Operations,Supplies and Services,"1,750.50",Sep-23
Slough Borough Council,2302,Look Ahead Care And Support,M44F,Adult Social Care Operations,Supplies and Services,875.23,Sep-23
Slough Borough Council,2302,Look Ahead Care And Support,M44F,Adult Social Care Operations,Supplies and Services,"1,517.14",Sep-23
Slough Borough Council,2302,Look Ahead Care And Support,M44F,Adult Social Care Operations,Supplies and Services,"1,750.07",Sep-23
Slough Borough Council,2302,Look Ahead Care And Support,M44F,Adult Social Care Operations,Supplies and Services,875.01,Sep-23
Slough Borough Council,2302,Look Ahead Care And Support,M44F,Adult Social Care Operations,Supplies and Services,875.06,Sep-23
Slough Borough Council,2302,Look Ahead Care And Support,M44F,Adult Social Care Operations,Supplies and Services,"1,517.14",Sep-23
Slough Borough Council,2302,Look Ahead Care And Support,M44F,Adult Social Care Operations,Supplies and Services,"1,515.30",Sep-23
Slough Borough Council,2302,Look Ahead Care And Support,M44F,Adult Social Care Operations,Supplies and Services,"1,517.14",Sep-23
Slough Borough Council,2302,Look Ahead Care And Support,M44F,Adult Social Care Operations,Supplies and Services,"1,515.30",Sep-23
Slough Borough Council,2302,Look Ahead Care And Support,M44F,Adult Social Care Operations,Supplies and Services,"3,030.60",Sep-23
Slough Borough Council,2302,Look Ahead Care And Support,H211,People Adults,Supplies and Services,"12,905.19",Sep-23
Slough Borough Council,2302,Look Ahead Care And Support,H211,People Adults,Supplies and Services,816.68,Sep-23
Slough Borough Council,2302,Look Ahead Care And Support,H211,People Adults,Supplies and Services,"1,633.80",Sep-23
Slough Borough Council,809122,Lorraine Vernon,F253,Children & Families,Agency Staff,"1,003.00",Sep-23
Slough Borough Council,809110,Luis and Bell Surveyors Limited,P242,Capital,Capital Charges,"1,400.00",Sep-23
Slough Borough Council,1195,Lynch Hill (Foundation Primary) School,E620,Children & Families,Supplies and Services,"25,418.17",Sep-23
Slough Borough Council,1771,Lynch Hill Academy,E620,Children & Families,Supplies and Services,"13,791.67",Sep-23
Slough Borough Council,806720,Lynn Broadhurst,F909,Children & Families,Supplies and Services,586.32,Sep-23
Slough Borough Council,290,Lyreco Uk Limited,B064,Business Services,Supplies and Services,513.24,Sep-23
Slough Borough Council,3424,M D Homes,M15F,Adult Social Care Operations,Supplies and Services,"4,950.00",Sep-23
Slough Borough Council,807217,Macadamia Support Limited,M42E,Adult Social Care Operations,Supplies and Services,"3,973.20",Sep-23
Slough Borough Council,807217,Macadamia Support Limited,M42E,Adult Social Care Operations,Supplies and Services,"3,589.12",Sep-23
Slough Borough Council,807217,Macadamia Support Limited,M42E,Adult Social Care Operations,Supplies and Services,"6,005.20",Sep-23
Slough Borough Council,807217,Macadamia Support Limited,M42E,Adult Social Care Operations,Supplies and Services,"7,308.00",Sep-23
Slough Borough Council,807217,Macadamia Support Limited,M42E,Adult Social Care Operations,Supplies and Services,"9,373.00",Sep-23
Slough Borough Council,807217,Macadamia Support Limited,M42E,Adult Social Care Operations,Supplies and Services,"6,438.84",Sep-23
Slough Borough Council,807217,Macadamia Support Limited,M42E,Adult Social Care Operations,Supplies and Services,"6,931.20",Sep-23
Slough Borough Council,807217,Macadamia Support Limited,M44C,Adult Social Care Operations,Supplies and Services,"3,591.56",Sep-23
Slough Borough Council,807217,Macadamia Support Limited,M44D,Adult Social Care Operations,Supplies and Services,"5,523.00",Sep-23
Slough Borough Council,1874,Maccabee Pets Hotel,H253,Place Regulation,Supplies and Services,"4,280.00",Sep-23
Slough Borough Council,1874,Maccabee Pets Hotel,H253,Place Regulation,Supplies and Services,"3,440.00",Sep-23
Slough Borough Council,1874,Maccabee Pets Hotel,H253,Place Regulation,Supplies and Services,"2,400.00",Sep-23
Slough Borough Council,4001,Manpower Direct Uk Limited,P242,Capital,Capital Charges,"1,582.20",Sep-23
Slough Borough Council,3768,Marish Academy Trust,F200,Education & Inclusion,Salaries and Wages-Employees Expenses,807.65,Sep-23
Slough Borough Council,529,Marish Primary School,E620,Children & Families,Supplies and Services,"79,764.50",Sep-23
Slough Borough Council,1886,Matrix Scm,B023,Finance & Commercial,Agency Staff,"526,794.53",Sep-23
Slough Borough Council,1886,Matrix Scm,B023,Finance & Commercial,Agency Staff,"440,847.98",Sep-23
Slough Borough Council,1886,Matrix Scm,B023,Finance & Commercial,Agency Staff,"454,963.13",Sep-23
Slough Borough Council,1886,Matrix Scm,B023,Finance & Commercial,Agency Staff,"478,308.22",Sep-23
Slough Borough Council,1886,Matrix Scm,B023,Finance & Commercial,Agency Staff,"395,869.03",Sep-23
Slough Borough Council,807684,Maverick Care  Ltd T/A Christies Care Windsor & Maidenhead,A07R,Adult Social Care Operations,Supplies and Services,659.50,Sep-23
Slough Borough Council,807684,Maverick Care  Ltd T/A Christies Care Windsor & Maidenhead,M44C,Adult Social Care Operations,Supplies and Services,"1,228.50",Sep-23
Slough Borough Council,807684,Maverick Care  Ltd T/A Christies Care Windsor & Maidenhead,M44C,Adult Social Care Operations,Supplies and Services,961.00,Sep-23
Slough Borough Council,807684,Maverick Care  Ltd T/A Christies Care Windsor & Maidenhead,M44C,Adult Social Care Operations,Supplies and Services,"1,150.50",Sep-23
Slough Borough Council,807684,Maverick Care  Ltd T/A Christies Care Windsor & Maidenhead,M44C,Adult Social Care Operations,Supplies and Services,588.00,Sep-23
Slough Borough Council,807684,Maverick Care  Ltd T/A Christies Care Windsor & Maidenhead,M44D,Adult Social Care Operations,Supplies and Services,"4,589.75",Sep-23
Slough Borough Council,807684,Maverick Care  Ltd T/A Christies Care Windsor & Maidenhead,M45C,Adult Social Care Operations,Supplies and Services,769.50,Sep-23
Slough Borough Council,807684,Maverick Care  Ltd T/A Christies Care Windsor & Maidenhead,M45C,Adult Social Care Operations,Supplies and Services,"2,162.00",Sep-23
Slough Borough Council,807684,Maverick Care  Ltd T/A Christies Care Windsor & Maidenhead,M45C,Adult Social Care Operations,Supplies and Services,"1,156.29",Sep-23
Slough Borough Council,807684,Maverick Care  Ltd T/A Christies Care Windsor & Maidenhead,M45C,Adult Social Care Operations,Supplies and Services,646.50,Sep-23
Slough Borough Council,807009,Medigold Health Consultancy Ltd,B348,People,Salaries and Wages-Employees Expenses,665.00,Sep-23
Slough Borough Council,807009,Medigold Health Consultancy Ltd,B348,People,Salaries and Wages-Employees Expenses,565.00,Sep-23
Slough Borough Council,807009,Medigold Health Consultancy Ltd,B348,People,Salaries and Wages-Employees Expenses,"1,000.00",Sep-23
Slough Borough Council,807009,Medigold Health Consultancy Ltd,B348,People,Salaries and Wages-Employees Expenses,690.00,Sep-23
Slough Borough Council,807009,Medigold Health Consultancy Ltd,B348,People,Salaries and Wages-Employees Expenses,700.00,Sep-23
Slough Borough Council,807009,Medigold Health Consultancy Ltd,B348,People,Salaries and Wages-Employees Expenses,645.00,Sep-23
Slough Borough Council,807009,Medigold Health Consultancy Ltd,B348,People,Salaries and Wages-Employees Expenses,690.00,Sep-23
Slough Borough Council,807009,Medigold Health Consultancy Ltd,B348,People,Salaries and Wages-Employees Expenses,"4,551.25",Sep-23
Slough Borough Council,807009,Medigold Health Consultancy Ltd,B348,People,Salaries and Wages-Employees Expenses,"1,760.00",Sep-23
Slough Borough Council,807009,Medigold Health Consultancy Ltd,B348,People,Salaries and Wages-Employees Expenses,"1,950.00",Sep-23
Slough Borough Council,807009,Medigold Health Consultancy Ltd,B348,People,Salaries and Wages-Employees Expenses,"1,065.00",Sep-23
Slough Borough Council,807009,Medigold Health Consultancy Ltd,B348,People,Salaries and Wages-Employees Expenses,"5,211.25",Sep-23
Slough Borough Council,807009,Medigold Health Consultancy Ltd,B348,People,Salaries and Wages-Employees Expenses,565.00,Sep-23
Slough Borough Council,807009,Medigold Health Consultancy Ltd,B348,People,Salaries and Wages-Employees Expenses,755.00,Sep-23
Slough Borough Council,807009,Medigold Health Consultancy Ltd,B348,People,Salaries and Wages-Employees Expenses,"4,551.25",Sep-23
Slough Borough Council,807009,Medigold Health Consultancy Ltd,B348,People,Salaries and Wages-Employees Expenses,925.00,Sep-23
Slough Borough Council,807009,Medigold Health Consultancy Ltd,B348,People,Salaries and Wages-Employees Expenses,"4,551.25",Sep-23
Slough Borough Council,807009,Medigold Health Consultancy Ltd,B348,People,Salaries and Wages-Employees Expenses,"4,551.25",Sep-23
Slough Borough Council,807009,Medigold Health Consultancy Ltd,B348,People,Salaries and Wages-Employees Expenses,"5,211.25",Sep-23
Slough Borough Council,2237,Metts Ltd,M50A,Place Operations,Transport,502.83,Sep-23
Slough Borough Council,3209,Michelle Browne,F909,Children & Families,Supplies and Services,915.08,Sep-23
Slough Borough Council,1496,Mighty Acorns Day Nursery Ltd,F909,Children & Families,Supplies and Services,"12,363.62",Sep-23
Slough Borough Council,1496,Mighty Acorns Day Nursery Ltd,F909,Children & Families,Supplies and Services,"2,064.61",Sep-23
Slough Borough Council,808716,Mini Todds Ltd,F909,Children & Families,Supplies and Services,"1,045.20",Sep-23
Slough Borough Council,808716,Mini Todds Ltd,F909,Children & Families,Supplies and Services,"4,808.70",Sep-23
Slough Borough Council,805145,Miss Jacqueline Ramsay,F909,Children & Families,Supplies and Services,"1,208.48",Sep-23
Slough Borough Council,808747,MK HOUSING LTD,H205,Housing (People) Services,Supplies and Services,"13,637.00",Sep-23
Slough Borough Council,805121,MMCG (2) Limited,A02E,Adult Social Care Operations,Supplies and Services,-973.00,Sep-23
Slough Borough Council,805121,MMCG (2) Limited,M15D,Adult Social Care Operations,Supplies and Services,"3,699.54",Sep-23
Slough Borough Council,805121,MMCG (2) Limited,M15F,Adult Social Care Operations,Supplies and Services,"1,606.50",Sep-23
Slough Borough Council,805121,MMCG (2) Limited,M15F,Adult Social Care Operations,Supplies and Services,"3,699.54",Sep-23
Slough Borough Council,805121,MMCG (2) Limited,M17C,Adult Social Care Operations,Supplies and Services,"3,699.54",Sep-23
Slough Borough Council,805121,MMCG (2) Limited,M17C,Adult Social Care Operations,Supplies and Services,"1,670.76",Sep-23
Slough Borough Council,805121,MMCG (2) Limited,M17C,Adult Social Care Operations,Supplies and Services,"3,557.25",Sep-23
Slough Borough Council,805121,MMCG (2) Limited,M17C,Adult Social Care Operations,Supplies and Services,"3,699.54",Sep-23
Slough Borough Council,805121,MMCG (2) Limited,M18C,Adult Social Care Operations,Supplies and Services,"3,699.54",Sep-23
Slough Borough Council,805121,MMCG (2) Limited,M18C,Adult Social Care Operations,Supplies and Services,"4,562.80",Sep-23
Slough Borough Council,805121,MMCG (2) Limited,M18C,Adult Social Care Operations,Supplies and Services,"4,562.80",Sep-23
Slough Borough Council,805121,MMCG (2) Limited,M18C,Adult Social Care Operations,Supplies and Services,"4,562.80",Sep-23
Slough Borough Council,805121,MMCG (2) Limited,M18C,Adult Social Care Operations,Supplies and Services,"3,699.54",Sep-23
Slough Borough Council,805121,MMCG (2) Limited,M18C,Adult Social Care Operations,Supplies and Services,"3,699.54",Sep-23
Slough Borough Council,805121,MMCG (2) Limited,M25C,Adult Social Care Operations,Supplies and Services,"3,699.54",Sep-23
Slough Borough Council,805121,MMCG (2) Limited,M25C,Adult Social Care Operations,Supplies and Services,"3,699.54",Sep-23
Slough Borough Council,805121,MMCG (2) Limited,M25C,Adult Social Care Operations,Supplies and Services,"3,699.54",Sep-23
Slough Borough Council,805121,MMCG (2) Limited,M25C,Adult Social Care Operations,Supplies and Services,"3,699.54",Sep-23
Slough Borough Council,805121,MMCG (2) Limited,M25C,Adult Social Care Operations,Supplies and Services,"3,699.54",Sep-23
Slough Borough Council,805121,MMCG (2) Limited,M25C,Adult Social Care Operations,Supplies and Services,"3,699.54",Sep-23
Slough Borough Council,805121,MMCG (2) Limited,M27C,Adult Social Care Operations,Supplies and Services,"3,699.54",Sep-23
Slough Borough Council,805121,MMCG (2) Limited,M27C,Adult Social Care Operations,Supplies and Services,"3,699.54",Sep-23
Slough Borough Council,805121,MMCG (2) Limited,M27C,Adult Social Care Operations,Supplies and Services,"-1,193.40",Sep-23
Slough Borough Council,805121,MMCG (2) Limited,M27C,Adult Social Care Operations,Supplies and Services,"3,699.54",Sep-23
Slough Borough Council,805121,MMCG (2) Limited,M27C,Adult Social Care Operations,Supplies and Services,"3,699.54",Sep-23
Slough Borough Council,805121,MMCG (2) Limited,M28C,Adult Social Care Operations,Supplies and Services,"4,672.54",Sep-23
Slough Borough Council,805121,MMCG (2) Limited,M28C,Adult Social Care Operations,Supplies and Services,"1,312.74",Sep-23
Slough Borough Council,805121,MMCG (2) Limited,M28C,Adult Social Care Operations,Supplies and Services,"1,074.06",Sep-23
Slough Borough Council,805121,MMCG (2) Limited,M28C,Adult Social Care Operations,Supplies and Services,835.38,Sep-23
Slough Borough Council,805121,MMCG (2) Limited,M28C,Adult Social Care Operations,Supplies and Services,835.38,Sep-23
Slough Borough Council,805121,MMCG (2) Limited,A05M,People Adults,Supplies and Services,"3,327.75",Sep-23
Slough Borough Council,805121,MMCG (2) Limited,A05M,People Adults,Supplies and Services,"1,721.25",Sep-23
Slough Borough Council,2115,Montagu Evans Llp,B081,Place Strategy & Infrastructure,Supplies and Services,"11,000.00",Sep-23
Slough Borough Council,2100,Montem Accademy,B297,Finance & Commercial,Government Grants,"6,660.00",Sep-23
Slough Borough Council,1140,Montem Guesthouse,H205,Housing (People) Services,Supplies and Services,"73,694.00",Sep-23
Slough Borough Council,3302,Montem Primary School,E620,Children & Families,Supplies and Services,"27,353.33",Sep-23
Slough Borough Council,3372,More House School,F462,Children & Families,Supplies and Services,"7,118.00",Sep-23
Slough Borough Council,807432,MPD FM Limited,B068,Business Services,Premises,"10,892.28",Sep-23
Slough Borough Council,807432,MPD FM Limited,A07M,People Adults,Premises,"8,130.75",Sep-23
Slough Borough Council,807432,MPD FM Limited,A07M,People Adults,Premises,"7,647.30",Sep-23
Slough Borough Council,807432,MPD FM Limited,A07M,People Adults,Premises,"9,200.20",Sep-23
Slough Borough Council,807432,MPD FM Limited,A07M,People Adults,Premises,"6,375.96",Sep-23
Slough Borough Council,807432,MPD FM Limited,H216,Community,Supplies and Services,"7,954.95",Sep-23
Slough Borough Council,808526,Mr James Wright,F253,Children & Families,Agency Staff,"1,020.00",Sep-23
Slough Borough Council,804932,Mr Kamal Khan,F909,Children & Families,Supplies and Services,647.33,Sep-23
Slough Borough Council,806858,MUDDY BOOTS DAY NURSERY LTD,F909,Children & Families,Supplies and Services,"10,165.05",Sep-23
Slough Borough Council,803824,Nasra Hassan,F909,Children & Families,Supplies and Services,684.60,Sep-23
Slough Borough Council,807475,Navdeep Sandhu,F909,Children & Families,Supplies and Services,610.05,Sep-23
Slough Borough Council,1074,Ncfe,F210,Community,Supplies and Services,"1,070.00",Sep-23
Slough Borough Council,1945,Neem Tree Care Ltd,M17C,Adult Social Care Operations,Supplies and Services,"3,604.68",Sep-23
Slough Borough Council,1945,Neem Tree Care Ltd,M17C,Adult Social Care Operations,Supplies and Services,"3,488.40",Sep-23
Slough Borough Council,807590,NETWORK MERCHANTS LIMITED,D122,Place Strategy & Infrastructure,Supplies and Services,584.43,Sep-23
Slough Borough Council,1216,Network Rail Infrastructure Ltd,P243,Capital,Capital Charges,"6,778.53",Sep-23
Slough Borough Council,1216,Network Rail Infrastructure Ltd,P243,Capital,Capital Charges,"18,919.67",Sep-23
Slough Borough Council,1117,Newsquest Media Group Limited,F382,Children & Families,Supplies and Services,575.00,Sep-23
Slough Borough Council,803853,Nicky Gibbs,F909,Children & Families,Supplies and Services,647.33,Sep-23
Slough Borough Council,1864,Noahs Ark Environmental Services Ltd,H253,Place Regulation,Supplies and Services,"2,993.52",Sep-23
Slough Borough Council,1864,Noahs Ark Environmental Services Ltd,H253,Place Regulation,Supplies and Services,-780.00,Sep-23
Slough Borough Council,805330,Norden Farm Centre Trust Limited,B175,Business Services,External Receipts,750.00,Sep-23
Slough Borough Council,808729,North PB Ltd,B060,Business Services,Premises,"6,423.00",Sep-23
Slough Borough Council,3717,Norwood Schools Limited,M26E,Adult Social Care Operations,Supplies and Services,"2,816.92",Sep-23
Slough Borough Council,3717,Norwood Schools Limited,M50E,Adult Social Care Operations,Supplies and Services,"1,426.60",Sep-23
Slough Borough Council,3717,Norwood Schools Limited,M26E,Adult Social Care Operations,External Receipts,-630.80,Sep-23
Slough Borough Council,2021,Now Medical,H207,Community,Supplies and Services,675.00,Sep-23
Slough Borough Council,807836,Nuzhat Raza,F909,Children & Families,Supplies and Services,"1,830.15",Sep-23
Slough Borough Council,803238,Oasis Care and Training Agency,M41D,Adult Social Care Operations,Supplies and Services,663.60,Sep-23
Slough Borough Council,803238,Oasis Care and Training Agency,M44C,Adult Social Care Operations,Supplies and Services,663.60,Sep-23
Slough Borough Council,803238,Oasis Care and Training Agency,M44C,Adult Social Care Operations,Supplies and Services,"1,166.04",Sep-23
Slough Borough Council,803238,Oasis Care and Training Agency,M44C,Adult Social Care Operations,Supplies and Services,"1,090.20",Sep-23
Slough Borough Council,803238,Oasis Care and Training Agency,M44C,Adult Social Care Operations,Supplies and Services,"1,194.48",Sep-23
Slough Borough Council,803238,Oasis Care and Training Agency,M44C,Adult Social Care Operations,Supplies and Services,"1,327.20",Sep-23
Slough Borough Council,803238,Oasis Care and Training Agency,M44C,Adult Social Care Operations,Supplies and Services,"2,957.76",Sep-23
Slough Borough Council,803238,Oasis Care and Training Agency,M44C,Adult Social Care Operations,Supplies and Services,"1,478.88",Sep-23
Slough Borough Council,803238,Oasis Care and Training Agency,M44C,Adult Social Care Operations,Supplies and Services,"1,891.26",Sep-23
Slough Borough Council,803238,Oasis Care and Training Agency,M44C,Adult Social Care Operations,Supplies and Services,663.60,Sep-23
Slough Borough Council,803238,Oasis Care and Training Agency,M44C,Adult Social Care Operations,Supplies and Services,"2,388.96",Sep-23
Slough Borough Council,803238,Oasis Care and Training Agency,M44C,Adult Social Care Operations,Supplies and Services,"1,194.48",Sep-23
Slough Borough Council,803238,Oasis Care and Training Agency,M44C,Adult Social Care Operations,Supplies and Services,"2,388.96",Sep-23
Slough Borough Council,803238,Oasis Care and Training Agency,M44C,Adult Social Care Operations,Supplies and Services,796.32,Sep-23
Slough Borough Council,803238,Oasis Care and Training Agency,M44C,Adult Social Care Operations,Supplies and Services,929.04,Sep-23
Slough Borough Council,803238,Oasis Care and Training Agency,M44C,Adult Social Care Operations,Supplies and Services,"1,289.28",Sep-23
Slough Borough Council,803238,Oasis Care and Training Agency,M44C,Adult Social Care Operations,Supplies and Services,"1,061.76",Sep-23
Slough Borough Council,803238,Oasis Care and Training Agency,M44C,Adult Social Care Operations,Supplies and Services,796.32,Sep-23
Slough Borough Council,803238,Oasis Care and Training Agency,M44C,Adult Social Care Operations,Supplies and Services,"2,256.24",Sep-23
Slough Borough Council,803238,Oasis Care and Training Agency,M44C,Adult Social Care Operations,Supplies and Services,805.80,Sep-23
Slough Borough Council,803238,Oasis Care and Training Agency,M44D,Adult Social Care Operations,Supplies and Services,739.44,Sep-23
Slough Borough Council,803238,Oasis Care and Training Agency,M44D,Adult Social Care Operations,Supplies and Services,"1,459.92",Sep-23
Slough Borough Council,803238,Oasis Care and Training Agency,M44D,Adult Social Care Operations,Supplies and Services,929.04,Sep-23
Slough Borough Council,803238,Oasis Care and Training Agency,M44D,Adult Social Care Operations,Supplies and Services,929.04,Sep-23
Slough Borough Council,803238,Oasis Care and Training Agency,M44D,Adult Social Care Operations,Supplies and Services,"1,478.88",Sep-23
Slough Borough Council,803238,Oasis Care and Training Agency,M44D,Adult Social Care Operations,Supplies and Services,"2,388.96",Sep-23
Slough Borough Council,803238,Oasis Care and Training Agency,M44D,Adult Social Care Operations,Supplies and Services,663.60,Sep-23
Slough Borough Council,803238,Oasis Care and Training Agency,M44D,Adult Social Care Operations,Supplies and Services,"1,080.72",Sep-23
Slough Borough Council,803238,Oasis Care and Training Agency,M44D,Adult Social Care Operations,Supplies and Services,853.20,Sep-23
Slough Borough Council,803238,Oasis Care and Training Agency,M44F,Adult Social Care Operations,Supplies and Services,"1,516.80",Sep-23
Slough Borough Council,803238,Oasis Care and Training Agency,M44F,Adult Social Care Operations,Supplies and Services,"2,388.96",Sep-23
Slough Borough Council,803238,Oasis Care and Training Agency,M45C,Adult Social Care Operations,Supplies and Services,663.60,Sep-23
Slough Borough Council,803238,Oasis Care and Training Agency,M45C,Adult Social Care Operations,Supplies and Services,"1,194.48",Sep-23
Slough Borough Council,803238,Oasis Care and Training Agency,M48C,Adult Social Care Operations,Supplies and Services,"3,185.28",Sep-23
Slough Borough Council,1767,Olive Tree Montessori Ltd,F909,Children & Families,Supplies and Services,"2,053.46",Sep-23
Slough Borough Council,1767,Olive Tree Montessori Ltd,F909,Children & Families,Supplies and Services,"23,357.82",Sep-23
Slough Borough Council,332,Olympic Workwear,C322,Community,Supplies and Services,"3,571.00",Sep-23
Slough Borough Council,807698,Opeyemi Odima - Jimoh,F909,Children & Families,Supplies and Services,915.08,Sep-23
Slough Borough Council,804687,Optalis Limited,M42E,Adult Social Care Operations,Supplies and Services,"5,642.13",Sep-23
Slough Borough Council,804687,Optalis Limited,M42E,Adult Social Care Operations,Supplies and Services,"4,807.26",Sep-23
Slough Borough Council,804687,Optalis Limited,M42E,Adult Social Care Operations,Supplies and Services,"5,642.13",Sep-23
Slough Borough Council,804687,Optalis Limited,M42E,Adult Social Care Operations,Supplies and Services,"4,807.26",Sep-23
Slough Borough Council,803490,Optimum Specialised Home Limited,M26E,Adult Social Care Operations,Supplies and Services,"7,200.00",Sep-23
Slough Borough Council,803490,Optimum Specialised Home Limited,M26E,Adult Social Care Operations,Supplies and Services,"7,180.00",Sep-23
Slough Borough Council,803490,Optimum Specialised Home Limited,M26E,Adult Social Care Operations,Supplies and Services,"8,400.00",Sep-23
Slough Borough Council,805011,Osborne Property Services Limited,J607,Place Management,Premises,"216,618.89",Sep-23
Slough Borough Council,805011,Osborne Property Services Limited,J015,Place Management,Premises,"76,410.68",Sep-23
Slough Borough Council,805011,Osborne Property Services Limited,J606,Place Management,Supplies and Services,"126,115.92",Sep-23
Slough Borough Council,805011,Osborne Property Services Limited,P409,Capital,Capital Charges,"29,071.26",Sep-23
Slough Borough Council,805011,Osborne Property Services Limited,P412,Capital,Capital Charges,"5,815.06",Sep-23
Slough Borough Council,805011,Osborne Property Services Limited,P413,Capital,Capital Charges,"49,116.06",Sep-23
Slough Borough Council,805011,Osborne Property Services Limited,P415,Capital,Capital Charges,"5,922.03",Sep-23
Slough Borough Council,805011,Osborne Property Services Limited,P417,Capital,Capital Charges,"244,149.38",Sep-23
Slough Borough Council,805011,Osborne Property Services Limited,P418,Capital,Capital Charges,"4,052.36",Sep-23
Slough Borough Council,805011,Osborne Property Services Limited,P419,Capital,Capital Charges,"82,256.76",Sep-23
Slough Borough Council,805011,Osborne Property Services Limited,P421,Capital,Capital Charges,"24,811.35",Sep-23
Slough Borough Council,805011,Osborne Property Services Limited,P422,Capital,Capital Charges,"24,680.98",Sep-23
Slough Borough Council,805011,Osborne Property Services Limited,P431,Capital,Capital Charges,"311,485.93",Sep-23
Slough Borough Council,805011,Osborne Property Services Limited,P547,Capital,Capital Charges,"71,857.01",Sep-23
Slough Borough Council,805011,Osborne Property Services Limited,J607,Place Management,Supplies and Services,"99,527.01",Sep-23
Slough Borough Council,805011,Osborne Property Services Limited,J606,Place Management,Supplies and Services,"276,261.60",Sep-23
Slough Borough Council,805011,Osborne Property Services Limited,J607,Place Management,Supplies and Services,"1,249.15",Sep-23
Slough Borough Council,3371,Our Lady Of Peace Catholic Primary and Nursery School,E340,Children & Families,Supplies and Services,"19,691.99",Sep-23
Slough Borough Council,680,Oxford House Community Care,M44C,Adult Social Care Operations,Supplies and Services,"3,309.64",Sep-23
Slough Borough Council,680,Oxford House Community Care,M44C,Adult Social Care Operations,Supplies and Services,871.36,Sep-23
Slough Borough Council,680,Oxford House Community Care,M44C,Adult Social Care Operations,Supplies and Services,844.25,Sep-23
Slough Borough Council,680,Oxford House Community Care,M44C,Adult Social Care Operations,Supplies and Services,865.38,Sep-23
Slough Borough Council,680,Oxford House Community Care,M44C,Adult Social Care Operations,Supplies and Services,890.73,Sep-23
Slough Borough Council,680,Oxford House Community Care,M44C,Adult Social Care Operations,Supplies and Services,"1,354.81",Sep-23
Slough Borough Council,680,Oxford House Community Care,M44C,Adult Social Care Operations,Supplies and Services,"1,014.00",Sep-23
Slough Borough Council,680,Oxford House Community Care,M44C,Adult Social Care Operations,Supplies and Services,990.75,Sep-23
Slough Borough Council,680,Oxford House Community Care,M44C,Adult Social Care Operations,Supplies and Services,"1,168.72",Sep-23
Slough Borough Council,680,Oxford House Community Care,M44C,Adult Social Care Operations,Supplies and Services,"2,605.11",Sep-23
Slough Borough Council,680,Oxford House Community Care,M44C,Adult Social Care Operations,Supplies and Services,"3,276.00",Sep-23
Slough Borough Council,680,Oxford House Community Care,M44C,Adult Social Care Operations,Supplies and Services,"1,242.29",Sep-23
Slough Borough Council,680,Oxford House Community Care,M44C,Adult Social Care Operations,Supplies and Services,"1,398.29",Sep-23
Slough Borough Council,680,Oxford House Community Care,M44C,Adult Social Care Operations,Supplies and Services,792.55,Sep-23
Slough Borough Council,680,Oxford House Community Care,M44C,Adult Social Care Operations,Supplies and Services,682.50,Sep-23
Slough Borough Council,680,Oxford House Community Care,M44C,Adult Social Care Operations,Supplies and Services,"1,297.31",Sep-23
Slough Borough Council,680,Oxford House Community Care,M44C,Adult Social Care Operations,Supplies and Services,"1,274.15",Sep-23
Slough Borough Council,680,Oxford House Community Care,M44C,Adult Social Care Operations,Supplies and Services,688.71,Sep-23
Slough Borough Council,680,Oxford House Community Care,M44C,Adult Social Care Operations,Supplies and Services,"1,033.50",Sep-23
Slough Borough Council,680,Oxford House Community Care,M44C,Adult Social Care Operations,Supplies and Services,"2,879.34",Sep-23
Slough Borough Council,680,Oxford House Community Care,M44D,Adult Social Care Operations,Supplies and Services,671.39,Sep-23
Slough Borough Council,680,Oxford House Community Care,M44D,Adult Social Care Operations,Supplies and Services,682.50,Sep-23
Slough Borough Council,680,Oxford House Community Care,M44D,Adult Social Care Operations,Supplies and Services,876.54,Sep-23
Slough Borough Council,680,Oxford House Community Care,M44D,Adult Social Care Operations,Supplies and Services,"1,235.04",Sep-23
Slough Borough Council,680,Oxford House Community Care,M44E,Adult Social Care Operations,Supplies and Services,584.36,Sep-23
Slough Borough Council,680,Oxford House Community Care,M48C,Adult Social Care Operations,Supplies and Services,884.79,Sep-23
Slough Borough Council,518,Oxford House Nursing Home,M15D,Adult Social Care Operations,Supplies and Services,"3,462.28",Sep-23
Slough Borough Council,518,Oxford House Nursing Home,M15D,Adult Social Care Operations,Supplies and Services,"3,462.28",Sep-23
Slough Borough Council,518,Oxford House Nursing Home,M15D,Adult Social Care Operations,Supplies and Services,"2,357.14",Sep-23
Slough Borough Council,518,Oxford House Nursing Home,M18C,Adult Social Care Operations,Supplies and Services,"3,462.28",Sep-23
Slough Borough Council,518,Oxford House Nursing Home,M18C,Adult Social Care Operations,Supplies and Services,"5,400.00",Sep-23
Slough Borough Council,807442,Pantheon Care Ltd,M44F,Adult Social Care Operations,Supplies and Services,"1,600.00",Sep-23
Slough Borough Council,807442,Pantheon Care Ltd,M44F,Adult Social Care Operations,Supplies and Services,"1,600.00",Sep-23
Slough Borough Council,807442,Pantheon Care Ltd,M44F,Adult Social Care Operations,Supplies and Services,"1,600.00",Sep-23
Slough Borough Council,2520,Paradigm Housing Group Ltd,H205,Housing (People) Services,Premises,"3,087.28",Sep-23
Slough Borough Council,808679,PARBHAN LTD,H205,Housing (People) Services,Supplies and Services,"14,570.00",Sep-23
Slough Borough Council,3271,Partnership In Care Ltd,M44F,Adult Social Care Operations,Supplies and Services,"2,982.26",Sep-23
Slough Borough Council,3271,Partnership In Care Ltd,M44F,Adult Social Care Operations,Supplies and Services,"2,982.26",Sep-23
Slough Borough Council,2509,Parvaaz Project,M44E,Adult Social Care Operations,Supplies and Services,678.60,Sep-23
Slough Borough Council,2509,Parvaaz Project,M44E,Adult Social Care Operations,Supplies and Services,678.60,Sep-23
Slough Borough Council,2509,Parvaaz Project,M44E,Adult Social Care Operations,Supplies and Services,678.60,Sep-23
Slough Borough Council,2509,Parvaaz Project,M44E,Adult Social Care Operations,Supplies and Services,678.60,Sep-23
Slough Borough Council,2509,Parvaaz Project,M44E,Adult Social Care Operations,Supplies and Services,513.60,Sep-23
Slough Borough Council,2509,Parvaaz Project,M44E,Adult Social Care Operations,Supplies and Services,513.60,Sep-23
Slough Borough Council,2509,Parvaaz Project,M50E,Adult Social Care Operations,Supplies and Services,800.40,Sep-23
Slough Borough Council,2509,Parvaaz Project,M50E,Adult Social Care Operations,Supplies and Services,800.40,Sep-23
Slough Borough Council,2509,Parvaaz Project,M50E,Adult Social Care Operations,Supplies and Services,800.40,Sep-23
Slough Borough Council,2509,Parvaaz Project,M50E,Adult Social Care Operations,Supplies and Services,800.40,Sep-23
Slough Borough Council,807405,PayPoint Network Ltd,H055,Finance & Commercial,Supplies and Services,"1,371.50",Sep-23
Slough Borough Council,807405,PayPoint Network Ltd,H055,Finance & Commercial,Supplies and Services,789.05,Sep-23
Slough Borough Council,807405,PayPoint Network Ltd,H055,Finance & Commercial,Supplies and Services,"1,859.30",Sep-23
Slough Borough Council,806879,Pearce Recycling Ltd,D342,Place Operations,Supplies and Services,795.60,Sep-23
Slough Borough Council,824,Penn Wood Primary and Nursery School,E450,Children & Families,Supplies and Services,"325,096.53",Sep-23
Slough Borough Council,808606,Pentwyn House Nursing Home,M18C,Adult Social Care Operations,Supplies and Services,"4,071.30",Sep-23
Slough Borough Council,807611,Peopletoo Ltd,A01D,People Adults,Supplies and Services,"21,313.00",Sep-23
Slough Borough Council,1504,Permanent Futures Limited,F410,Children & Families,Agency Staff,"1,410.00",Sep-23
Slough Borough Council,1504,Permanent Futures Limited,F410,Children & Families,Agency Staff,"1,410.00",Sep-23
Slough Borough Council,1504,Permanent Futures Limited,F410,Children & Families,Agency Staff,"1,410.00",Sep-23
Slough Borough Council,1504,Permanent Futures Limited,F410,Children & Families,Agency Staff,"1,410.00",Sep-23
Slough Borough Council,1504,Permanent Futures Limited,F410,Children & Families,Agency Staff,"1,410.00",Sep-23
Slough Borough Council,1504,Permanent Futures Limited,F410,Children & Families,Agency Staff,"1,410.00",Sep-23
Slough Borough Council,1504,Permanent Futures Limited,F640,Children & Families,Supplies and Services,"2,340.00",Sep-23
Slough Borough Council,803786,Phillipa Holliday,C322,Community,Supplies and Services,"1,067.50",Sep-23
Slough Borough Council,1821,Phoenix Futures,A04C,Adult Social Care Operations,Supplies and Services,"3,720.00",Sep-23
Slough Borough Council,1821,Phoenix Futures,A04C,Adult Social Care Operations,Supplies and Services,"6,915.71",Sep-23
Slough Borough Council,807727,Phoenix Infant Academy c/o Thames Learning Trust,E620,Children & Families,Supplies and Services,"10,916.66",Sep-23
Slough Borough Council,803498,Phoenix Software,B342,Digital and Strategic IT,Supplies and Services,"5,000.00",Sep-23
Slough Borough Council,3359,Pippins School,E370,Children & Families,Supplies and Services,"29,135.94",Sep-23
Slough Borough Council,904,Pitney Bowes Finance Plc,K077,Business Services,Supplies and Services,504.00,Sep-23
Slough Borough Council,904,Pitney Bowes Finance Plc,K077,Business Services,Supplies and Services,"5,289.14",Sep-23
Slough Borough Council,807120,PJ Care Limited,M15D,Adult Social Care Operations,Supplies and Services,"9,514.50",Sep-23
Slough Borough Council,808881,PKB MANAGEMENT LTD,H205,Housing (People) Services,Supplies and Services,"5,115.00",Sep-23
Slough Borough Council,808881,PKB MANAGEMENT LTD,H205,Housing (People) Services,Supplies and Services,"5,518.00",Sep-23
Slough Borough Council,808881,PKB MANAGEMENT LTD,H205,Housing (People) Services,Supplies and Services,"88,456.00",Sep-23
Slough Borough Council,3644,Poppy Cottage,M42E,Adult Social Care Operations,Supplies and Services,"6,528.56",Sep-23
Slough Borough Council,3644,Poppy Cottage,M42E,Adult Social Care Operations,Supplies and Services,"6,528.56",Sep-23
Slough Borough Council,3644,Poppy Cottage,M42E,Adult Social Care Operations,Supplies and Services,"6,528.56",Sep-23
Slough Borough Council,1045,Posturite Uk Ltd,F148,Children & Families,Supplies and Services,894.66,Sep-23
Slough Borough Council,2537,Pre School Stars,F909,Children & Families,Supplies and Services,"1,560.29",Sep-23
Slough Borough Council,2537,Pre School Stars,F909,Children & Families,Supplies and Services,"8,166.02",Sep-23
Slough Borough Council,805398,PRIORITEYES LTD,A06E,Adult Social Care Operations,Supplies and Services,"5,520.00",Sep-23
Slough Borough Council,805398,PRIORITEYES LTD,A06N,Adult Social Care Operations,Supplies and Services,"2,520.00",Sep-23
Slough Borough Council,805398,PRIORITEYES LTD,A06S,Adult Social Care Operations,Supplies and Services,"1,620.00",Sep-23
Slough Borough Council,849,Priory Primary School,E380,Children & Families,Supplies and Services,"442,644.01",Sep-23
Slough Borough Council,808921,PROUD INVESTMENTS LTD,H205,Housing (People) Services,Supplies and Services,"2,325.00",Sep-23
Slough Borough Council,1138,Qed Slough Ltd,F868,Children & Families,Supplies and Services,"5,008.50",Sep-23
Slough Borough Council,1138,Qed Slough Ltd,F868,Children & Families,Supplies and Services,"4,332.48",Sep-23
Slough Borough Council,1138,Qed Slough Ltd,F868,Children & Families,Supplies and Services,"643,856.53",Sep-23
Slough Borough Council,805746,Qfree (Bristol) UK Ltd,P243,Capital,Capital Charges,"1,658.00",Sep-23
Slough Borough Council,808200,Quest Recovery Services Ltd,M44C,Adult Social Care Operations,Supplies and Services,"1,694.88",Sep-23
Slough Borough Council,808200,Quest Recovery Services Ltd,M44C,Adult Social Care Operations,Supplies and Services,847.44,Sep-23
Slough Borough Council,808200,Quest Recovery Services Ltd,M44C,Adult Social Care Operations,Supplies and Services,"1,078.56",Sep-23
Slough Borough Council,808200,Quest Recovery Services Ltd,M44C,Adult Social Care Operations,Supplies and Services,808.92,Sep-23
Slough Borough Council,808200,Quest Recovery Services Ltd,M44C,Adult Social Care Operations,Supplies and Services,"1,078.56",Sep-23
Slough Borough Council,808200,Quest Recovery Services Ltd,M44C,Adult Social Care Operations,Supplies and Services,"1,078.56",Sep-23
Slough Borough Council,808200,Quest Recovery Services Ltd,M44C,Adult Social Care Operations,Supplies and Services,"1,078.56",Sep-23
Slough Borough Council,808200,Quest Recovery Services Ltd,M44C,Adult Social Care Operations,Supplies and Services,"1,078.56",Sep-23
Slough Borough Council,808200,Quest Recovery Services Ltd,M44C,Adult Social Care Operations,Supplies and Services,719.04,Sep-23
Slough Borough Council,808200,Quest Recovery Services Ltd,M44C,Adult Social Care Operations,Supplies and Services,"1,198.40",Sep-23
Slough Borough Council,808200,Quest Recovery Services Ltd,M44C,Adult Social Care Operations,Supplies and Services,924.48,Sep-23
Slough Borough Council,808200,Quest Recovery Services Ltd,M44C,Adult Social Care Operations,Supplies and Services,624.56,Sep-23
Slough Borough Council,808200,Quest Recovery Services Ltd,M44E,Adult Social Care Operations,Supplies and Services,642.00,Sep-23
Slough Borough Council,808200,Quest Recovery Services Ltd,M44E,Adult Social Care Operations,Supplies and Services,"1,275.44",Sep-23
Slough Borough Council,808200,Quest Recovery Services Ltd,M45C,Adult Social Care Operations,Supplies and Services,770.40,Sep-23
Slough Borough Council,808200,Quest Recovery Services Ltd,M45C,Adult Social Care Operations,Supplies and Services,924.48,Sep-23
Slough Borough Council,808200,Quest Recovery Services Ltd,M48C,Adult Social Care Operations,Supplies and Services,847.44,Sep-23
Slough Borough Council,808200,Quest Recovery Services Ltd,M48C,Adult Social Care Operations,Supplies and Services,736.16,Sep-23
Slough Borough Council,808200,Quest Recovery Services Ltd,M48C,Adult Social Care Operations,Supplies and Services,"1,420.96",Sep-23
Slough Borough Council,808200,Quest Recovery Services Ltd,M48C,Adult Social Care Operations,Supplies and Services,984.40,Sep-23
Slough Borough Council,1942,Quickson (South & West) Ltd,F150,Children & Families,Premises,"11,771.24",Sep-23
Slough Borough Council,2685,R.E.A.C.H,M26E,Adult Social Care Operations,Supplies and Services,794.04,Sep-23
Slough Borough Council,2685,R.E.A.C.H,M26E,Adult Social Care Operations,Supplies and Services,"1,710.24",Sep-23
Slough Borough Council,2685,R.E.A.C.H,M26E,Adult Social Care Operations,Supplies and Services,"6,262.20",Sep-23
Slough Borough Council,2685,R.E.A.C.H,M26E,Adult Social Care Operations,Supplies and Services,"8,781.71",Sep-23
Slough Borough Council,2685,R.E.A.C.H,M26E,Adult Social Care Operations,Supplies and Services,"10,591.40",Sep-23
Slough Borough Council,2685,R.E.A.C.H,M26E,Adult Social Care Operations,Supplies and Services,"5,464.00",Sep-23
Slough Borough Council,2685,R.E.A.C.H,M26E,Adult Social Care Operations,Supplies and Services,"7,667.52",Sep-23
Slough Borough Council,2685,R.E.A.C.H,M26E,Adult Social Care Operations,Supplies and Services,"7,132.56",Sep-23
Slough Borough Council,2685,R.E.A.C.H,M26E,Adult Social Care Operations,External Receipts,-630.80,Sep-23
Slough Borough Council,2685,R.E.A.C.H,M26E,Adult Social Care Operations,External Receipts,-564.40,Sep-23
Slough Borough Council,808822,Raj Desaur,H205,Housing (People) Services,Supplies and Services,"1,705.00",Sep-23
Slough Borough Council,805444,Reading Transport Ltd,D512,Place Strategy & Infrastructure,Supplies and Services,"8,341.19",Sep-23
Slough Borough Council,808066,Rebecca Martin,F253,Children & Families,Agency Staff,"1,631.00",Sep-23
Slough Borough Council,806766,Red Brick Care Ltd,A07R,Adult Social Care Operations,Supplies and Services,803.25,Sep-23
Slough Borough Council,806766,Red Brick Care Ltd,A07R,Adult Social Care Operations,Supplies and Services,833.00,Sep-23
Slough Borough Council,806766,Red Brick Care Ltd,A07R,Adult Social Care Operations,Supplies and Services,612.00,Sep-23
Slough Borough Council,806766,Red Brick Care Ltd,M44C,Adult Social Care Operations,Supplies and Services,807.50,Sep-23
Slough Borough Council,806766,Red Brick Care Ltd,M44C,Adult Social Care Operations,Supplies and Services,"1,428.00",Sep-23
Slough Borough Council,806766,Red Brick Care Ltd,M44C,Adult Social Care Operations,Supplies and Services,714.00,Sep-23
Slough Borough Council,806766,Red Brick Care Ltd,M44C,Adult Social Care Operations,Supplies and Services,"2,142.00",Sep-23
Slough Borough Council,806766,Red Brick Care Ltd,M44C,Adult Social Care Operations,Supplies and Services,"3,128.00",Sep-23
Slough Borough Council,806766,Red Brick Care Ltd,M44C,Adult Social Care Operations,Supplies and Services,"2,142.00",Sep-23
Slough Borough Council,806766,Red Brick Care Ltd,M44C,Adult Social Care Operations,Supplies and Services,994.50,Sep-23
Slough Borough Council,806766,Red Brick Care Ltd,M44C,Adult Social Care Operations,Supplies and Services,799.00,Sep-23
Slough Borough Council,806766,Red Brick Care Ltd,M44C,Adult Social Care Operations,Supplies and Services,"2,142.00",Sep-23
Slough Borough Council,806766,Red Brick Care Ltd,M44C,Adult Social Care Operations,Supplies and Services,"2,142.00",Sep-23
Slough Borough Council,806766,Red Brick Care Ltd,M44C,Adult Social Care Operations,Supplies and Services,"2,142.00",Sep-23
Slough Borough Council,806766,Red Brick Care Ltd,M44C,Adult Social Care Operations,Supplies and Services,"1,173.00",Sep-23
Slough Borough Council,806766,Red Brick Care Ltd,M44C,Adult Social Care Operations,Supplies and Services,"2,618.00",Sep-23
Slough Borough Council,806766,Red Brick Care Ltd,M44C,Adult Social Care Operations,Supplies and Services,833.00,Sep-23
Slough Borough Council,806766,Red Brick Care Ltd,M44C,Adult Social Care Operations,Supplies and Services,"1,785.00",Sep-23
Slough Borough Council,806766,Red Brick Care Ltd,M44D,Adult Social Care Operations,Supplies and Services,"1,071.00",Sep-23
Slough Borough Council,806766,Red Brick Care Ltd,M44F,Adult Social Care Operations,Supplies and Services,578.00,Sep-23
Slough Borough Council,806766,Red Brick Care Ltd,M45C,Adult Social Care Operations,Supplies and Services,"1,190.00",Sep-23
Slough Borough Council,806766,Red Brick Care Ltd,M45C,Adult Social Care Operations,Supplies and Services,"1,190.00",Sep-23
Slough Borough Council,806766,Red Brick Care Ltd,M45C,Adult Social Care Operations,Supplies and Services,833.00,Sep-23
Slough Borough Council,806766,Red Brick Care Ltd,M45C,Adult Social Care Operations,Supplies and Services,973.25,Sep-23
Slough Borough Council,806766,Red Brick Care Ltd,M45C,Adult Social Care Operations,Supplies and Services,"1,147.50",Sep-23
Slough Borough Council,806766,Red Brick Care Ltd,M45C,Adult Social Care Operations,Supplies and Services,"2,142.00",Sep-23
Slough Borough Council,806766,Red Brick Care Ltd,M45C,Adult Social Care Operations,Supplies and Services,629.00,Sep-23
Slough Borough Council,805806,Redacted,F909,Children & Families,Supplies and Services,989.63,Sep-23
Slough Borough Council,6,Re-Format Llp,P093,Capital,Capital Charges,"1,275.00",Sep-23
Slough Borough Council,6,Re-Format Llp,P153,Capital,Capital Charges,"7,330.13",Sep-23
Slough Borough Council,808302,Reliant Care Limited,M44C,Adult Social Care Operations,Supplies and Services,"3,124.71",Sep-23
Slough Borough Council,809111,Remarkable Children,F449,Education & Inclusion,Supplies and Services,720.00,Sep-23
Slough Borough Council,807562,Renovo Farnborough Limited,M25D,Adult Social Care Operations,Supplies and Services,"8,813.14",Sep-23
Slough Borough Council,805624,Rent Connect Housing ltd.,H205,Housing (People) Services,Premises,"45,322.00",Sep-23
Slough Borough Council,781,Resource Productions CIC,F210,Community,TP-Other Bodies,"1,500.00",Sep-23
Slough Borough Council,1893,Ricardo-Aea Limited,D308,Place Operations,Supplies and Services,"17,627.50",Sep-23
Slough Borough Council,2529,Richmond Fellowship,M27F,Adult Social Care Operations,Supplies and Services,"2,180.70",Sep-23
Slough Borough Council,806930,Roselight Healthcare Service Limited,M42F,Adult Social Care Operations,Supplies and Services,"3,340.00",Sep-23
Slough Borough Council,806930,Roselight Healthcare Service Limited,M42F,Adult Social Care Operations,Supplies and Services,"2,360.00",Sep-23
Slough Borough Council,806930,Roselight Healthcare Service Limited,M42F,Adult Social Care Operations,Supplies and Services,"2,360.00",Sep-23
Slough Borough Council,806930,Roselight Healthcare Service Limited,M42F,Adult Social Care Operations,Supplies and Services,"3,340.00",Sep-23
Slough Borough Council,806930,Roselight Healthcare Service Limited,M42F,Adult Social Care Operations,Supplies and Services,"2,360.00",Sep-23
Slough Borough Council,806930,Roselight Healthcare Service Limited,M44D,Adult Social Care Operations,Supplies and Services,"1,749.64",Sep-23
Slough Borough Council,806930,Roselight Healthcare Service Limited,M44D,Adult Social Care Operations,Supplies and Services,"1,749.64",Sep-23
Slough Borough Council,806930,Roselight Healthcare Service Limited,M44D,Adult Social Care Operations,Supplies and Services,"1,749.64",Sep-23
Slough Borough Council,806930,Roselight Healthcare Service Limited,M44F,Adult Social Care Operations,Supplies and Services,"2,600.00",Sep-23
Slough Borough Council,806930,Roselight Healthcare Service Limited,M44F,Adult Social Care Operations,Supplies and Services,"1,991.00",Sep-23
Slough Borough Council,806930,Roselight Healthcare Service Limited,M44F,Adult Social Care Operations,Supplies and Services,"2,360.00",Sep-23
Slough Borough Council,806930,Roselight Healthcare Service Limited,M44F,Adult Social Care Operations,Supplies and Services,"3,381.84",Sep-23
Slough Borough Council,806930,Roselight Healthcare Service Limited,M44F,Adult Social Care Operations,Supplies and Services,"1,670.00",Sep-23
Slough Borough Council,806930,Roselight Healthcare Service Limited,M44F,Adult Social Care Operations,Supplies and Services,"1,724.72",Sep-23
Slough Borough Council,806930,Roselight Healthcare Service Limited,M44F,Adult Social Care Operations,Supplies and Services,"1,506.00",Sep-23
Slough Borough Council,806930,Roselight Healthcare Service Limited,M44F,Adult Social Care Operations,Supplies and Services,"3,381.84",Sep-23
Slough Borough Council,806930,Roselight Healthcare Service Limited,M44F,Adult Social Care Operations,Supplies and Services,"1,667.16",Sep-23
Slough Borough Council,806930,Roselight Healthcare Service Limited,M44F,Adult Social Care Operations,Supplies and Services,"2,600.00",Sep-23
Slough Borough Council,806930,Roselight Healthcare Service Limited,M44F,Adult Social Care Operations,Supplies and Services,"1,930.00",Sep-23
Slough Borough Council,806930,Roselight Healthcare Service Limited,M44F,Adult Social Care Operations,Supplies and Services,"3,295.48",Sep-23
Slough Borough Council,806930,Roselight Healthcare Service Limited,M44F,Adult Social Care Operations,Supplies and Services,"1,991.00",Sep-23
Slough Borough Council,806930,Roselight Healthcare Service Limited,M44F,Adult Social Care Operations,Supplies and Services,"1,506.00",Sep-23
Slough Borough Council,806930,Roselight Healthcare Service Limited,M44F,Adult Social Care Operations,Supplies and Services,"1,667.16",Sep-23
Slough Borough Council,806930,Roselight Healthcare Service Limited,M44F,Adult Social Care Operations,Supplies and Services,"2,509.32",Sep-23
Slough Borough Council,806930,Roselight Healthcare Service Limited,M44F,Adult Social Care Operations,Supplies and Services,"3,295.48",Sep-23
Slough Borough Council,806930,Roselight Healthcare Service Limited,M44F,Adult Social Care Operations,Supplies and Services,"1,670.00",Sep-23
Slough Borough Council,806930,Roselight Healthcare Service Limited,M44F,Adult Social Care Operations,Supplies and Services,"1,724.72",Sep-23
Slough Borough Council,806930,Roselight Healthcare Service Limited,M44F,Adult Social Care Operations,Supplies and Services,"1,930.00",Sep-23
Slough Borough Council,806930,Roselight Healthcare Service Limited,M44F,Adult Social Care Operations,Supplies and Services,"1,667.16",Sep-23
Slough Borough Council,806930,Roselight Healthcare Service Limited,M44F,Adult Social Care Operations,Supplies and Services,567.37,Sep-23
Slough Borough Council,806930,Roselight Healthcare Service Limited,M44F,Adult Social Care Operations,Supplies and Services,"2,600.00",Sep-23
Slough Borough Council,806930,Roselight Healthcare Service Limited,M44F,Adult Social Care Operations,Supplies and Services,"2,360.00",Sep-23
Slough Borough Council,806930,Roselight Healthcare Service Limited,M44F,Adult Social Care Operations,Supplies and Services,"2,360.00",Sep-23
Slough Borough Council,806930,Roselight Healthcare Service Limited,M44F,Adult Social Care Operations,Supplies and Services,"1,506.00",Sep-23
Slough Borough Council,806930,Roselight Healthcare Service Limited,M44F,Adult Social Care Operations,Supplies and Services,"1,724.72",Sep-23
Slough Borough Council,806930,Roselight Healthcare Service Limited,M44F,Adult Social Care Operations,Supplies and Services,"1,930.00",Sep-23
Slough Borough Council,806930,Roselight Healthcare Service Limited,M44F,Adult Social Care Operations,Supplies and Services,"1,670.00",Sep-23
Slough Borough Council,806930,Roselight Healthcare Service Limited,M44F,Adult Social Care Operations,Supplies and Services,"3,295.48",Sep-23
Slough Borough Council,806930,Roselight Healthcare Service Limited,M44F,Adult Social Care Operations,Supplies and Services,"3,295.48",Sep-23
Slough Borough Council,806930,Roselight Healthcare Service Limited,M44F,Adult Social Care Operations,Supplies and Services,"1,991.00",Sep-23
Slough Borough Council,806930,Roselight Healthcare Service Limited,M44F,Adult Social Care Operations,Supplies and Services,"3,381.84",Sep-23
Slough Borough Council,696,Royal Borough Of Windsor And Maidenhead,F552,Children & Families,Supplies and Services,"9,384.00",Sep-23
Slough Borough Council,842,Ryvers Primary School,E620,Children & Families,Supplies and Services,"13,350.00",Sep-23
Slough Borough Council,806398,Saba Park UK Services Limited,D122,Place Strategy & Infrastructure,Premises,"16,631.61",Sep-23
Slough Borough Council,806398,Saba Park UK Services Limited,D123,Place Strategy & Infrastructure,Supplies and Services,"2,944.62",Sep-23
Slough Borough Council,806398,Saba Park UK Services Limited,D123,Place Strategy & Infrastructure,Supplies and Services,640.23,Sep-23
Slough Borough Council,806398,Saba Park UK Services Limited,D123,Place Strategy & Infrastructure,Supplies and Services,"118,465.34",Sep-23
Slough Borough Council,806398,Saba Park UK Services Limited,D122,Place Strategy & Infrastructure,Supplies and Services,"13,162.82",Sep-23
Slough Borough Council,806398,Saba Park UK Services Limited,D123,Place Strategy & Infrastructure,Supplies and Services,"1,997.10",Sep-23
Slough Borough Council,806398,Saba Park UK Services Limited,D010,Place Strategy & Infrastructure,Supplies and Services,"21,948.11",Sep-23
Slough Borough Council,805875,Salutem Shared Services,M25D,Adult Social Care Operations,Supplies and Services,"2,245.80",Sep-23
Slough Borough Council,805875,Salutem Shared Services,M25D,Adult Social Care Operations,Supplies and Services,"-1,888.36",Sep-23
Slough Borough Council,805875,Salutem Shared Services,M25D,Adult Social Care Operations,Supplies and Services,"6,637.94",Sep-23
Slough Borough Council,805875,Salutem Shared Services,M26E,Adult Social Care Operations,Supplies and Services,"-1,312.55",Sep-23
Slough Borough Council,805875,Salutem Shared Services,M26E,Adult Social Care Operations,Supplies and Services,"11,566.70",Sep-23
Slough Borough Council,805875,Salutem Shared Services,M26E,Adult Social Care Operations,Supplies and Services,783.56,Sep-23
Slough Borough Council,805875,Salutem Shared Services,M26E,Adult Social Care Operations,Supplies and Services,783.56,Sep-23
Slough Borough Council,805875,Salutem Shared Services,M26E,Adult Social Care Operations,Supplies and Services,809.68,Sep-23
Slough Borough Council,805875,Salutem Shared Services,M26E,Adult Social Care Operations,Supplies and Services,809.68,Sep-23
Slough Borough Council,805875,Salutem Shared Services,M26E,Adult Social Care Operations,Supplies and Services,"3,996.15",Sep-23
Slough Borough Council,805875,Salutem Shared Services,M26E,Adult Social Care Operations,Supplies and Services,"-3,186.49",Sep-23
Slough Borough Council,805875,Salutem Shared Services,M26E,Adult Social Care Operations,Supplies and Services,"1,646.05",Sep-23
Slough Borough Council,805875,Salutem Shared Services,M26E,Adult Social Care Operations,Supplies and Services,"4,341.44",Sep-23
Slough Borough Council,805875,Salutem Shared Services,M26E,Adult Social Care Operations,Supplies and Services,607.75,Sep-23
Slough Borough Council,805875,Salutem Shared Services,M26E,Adult Social Care Operations,External Receipts,-607.76,Sep-23
Slough Borough Council,808826,Sapphire Learning and Development Ltd,F210,Community,TP-Other Bodies,"6,200.00",Sep-23
Slough Borough Council,803874,Sara Maccuish,F909,Children & Families,Supplies and Services,511.28,Sep-23
Slough Borough Council,807336,Sectigo Limited (Duplicate suuplier do't use),B282,Digital and Strategic IT,Supplies and Services,500.00,Sep-23
Slough Borough Council,3169,Seeability,M26E,Adult Social Care Operations,Supplies and Services,"12,364.52",Sep-23
Slough Borough Council,759,Segro Plc,B082,Place Strategy & Infrastructure,Premises,"62,375.00",Sep-23
Slough Borough Council,759,Segro Plc,B082,Place Strategy & Infrastructure,Supplies and Services,529.90,Sep-23
Slough Borough Council,803999,Sequence Care Group,M26E,Adult Social Care Operations,Supplies and Services,"-12,307.65",Sep-23
Slough Borough Council,803999,Sequence Care Group,M26E,Adult Social Care Operations,Supplies and Services,"12,307.65",Sep-23
Slough Borough Council,803999,Sequence Care Group,M26E,Adult Social Care Operations,Supplies and Services,"12,307.67",Sep-23
Slough Borough Council,808814,Shine Partnerships Ltd,M42F,Adult Social Care Operations,Supplies and Services,"1,744.20",Sep-23
Slough Borough Council,805203,Shorts Agricultural Services Ltd,D342,Place Operations,Supplies and Services,"8,442.18",Sep-23
Slough Borough Council,805203,Shorts Agricultural Services Ltd,D342,Place Operations,Supplies and Services,"13,691.76",Sep-23
Slough Borough Council,805303,Sign Health,M27C,Adult Social Care Operations,Supplies and Services,"5,308.54",Sep-23
Slough Borough Council,57,Signis Limited,B277,Business Services,Supplies and Services,"8,820.00",Sep-23
Slough Borough Council,808709,SKHH LIMITED,H205,Housing (People) Services,Supplies and Services,"1,860.00",Sep-23
Slough Borough Council,808709,SKHH LIMITED,H205,Housing (People) Services,Supplies and Services,"2,015.00",Sep-23
Slough Borough Council,1459,Slough And Eton C E School,E610,Children & Families,Supplies and Services,"31,000.00",Sep-23
Slough Borough Council,807834,Slough Children First,M99C,Children & Families,Supplies and Services,"616,500.00",Sep-23
Slough Borough Council,807834,Slough Children First,M99C,Children & Families,Supplies and Services,"3,005,484.32",Sep-23
Slough Borough Council,807834,Slough Children First,M99C,Children & Families,Supplies and Services,"22,400.00",Sep-23
Slough Borough Council,807834,Slough Children First,M99C,Children & Families,Supplies and Services,"20,000.00",Sep-23
Slough Borough Council,807834,Slough Children First,M99C,Children & Families,Supplies and Services,"72,000.00",Sep-23
Slough Borough Council,807834,Slough Children First,B296,Finance & Commercial,Supplies and Services,"210,000.00",Sep-23
Slough Borough Council,808680,SLOUGH CITY REAL ESTATE LTD,H205,Housing (People) Services,Supplies and Services,"182,996.00",Sep-23
Slough Borough Council,1913,Slough Crossroads Caring For Carers,M44C,Adult Social Care Operations,Supplies and Services,744.00,Sep-23
Slough Borough Council,1913,Slough Crossroads Caring For Carers,M44C,Adult Social Care Operations,Supplies and Services,"1,120.00",Sep-23
Slough Borough Council,3503,Slough Day Nursery,F909,Children & Families,Supplies and Services,"12,318.47",Sep-23
Slough Borough Council,809113,Slough Old Library Hotels Limited,B079,Place Strategy & Infrastructure,External Receipts,"37,795.07",Sep-23
Slough Borough Council,804380,Slough Refugee Council,B211,Community,Supplies and Services,"11,385.87",Sep-23
Slough Borough Council,3011,Slough Urban Renewal Community Projects LLP,P165,Capital,Capital Charges,"21,806.10",Sep-23
Slough Borough Council,3011,Slough Urban Renewal Community Projects LLP,P575,Capital,Capital Charges,"1,681.59",Sep-23
Slough Borough Council,1554,Socotec UK Ltd,D308,Place Operations,Supplies and Services,983.40,Sep-23
Slough Borough Council,382,Softcat Plc,B342,Digital and Strategic IT,Supplies and Services,"21,600.00",Sep-23
Slough Borough Council,382,Softcat Plc,B342,Digital and Strategic IT,Supplies and Services,"52,301.78",Sep-23
Slough Borough Council,114,Solutions 4 Health Ltd,A01P,Public Health,Supplies and Services,"229,057.81",Sep-23
Slough Borough Council,114,Solutions 4 Health Ltd,A01P,Public Health,Supplies and Services,"51,833.33",Sep-23
Slough Borough Council,805946,Sonia Gill,F909,Children & Families,Supplies and Services,550.63,Sep-23
Slough Borough Council,1598,Sorbon Estates Limited,H205,Housing (People) Services,Premises,"6,040.83",Sep-23
Slough Borough Council,807995,Sport4Kids,F382,Children & Families,Supplies and Services,"7,370.00",Sep-23
Slough Borough Council,807995,Sport4Kids,F382,Children & Families,Supplies and Services,"7,370.00",Sep-23
Slough Borough Council,804781,Sports and Leisure Management Ltd,C032,Community,Supplies and Services,"8,109.24",Sep-23
Slough Borough Council,804781,Sports and Leisure Management Ltd,C032,Community,Supplies and Services,"9,400.45",Sep-23
Slough Borough Council,808144,Sports Inc,F382,Children & Families,Supplies and Services,"23,872.00",Sep-23
Slough Borough Council,808401,SSE Energy Solution,K526,Business Services,Premises,"41,888.70",Sep-23
Slough Borough Council,808401,SSE Energy Solution,K526,Business Services,Premises,"7,487.68",Sep-23
Slough Borough Council,808401,SSE Energy Solution,K526,Business Services,Premises,"23,254.79",Sep-23
Slough Borough Council,808401,SSE Energy Solution,K526,Business Services,Premises,"24,136.57",Sep-23
Slough Borough Council,1366,Ssi Schaefer Ltd,P243,Capital,Capital Charges,"17,747.60",Sep-23
Slough Borough Council,803165,St Anthony's Catholic Primary School & Nursery,E620,Children & Families,Supplies and Services,"18,384.45",Sep-23
Slough Borough Council,3383,St Bernards Catholic Grammar School,E550,Children & Families,Supplies and Services,"554,314.09",Sep-23
Slough Borough Council,2918,St Bernard'S Rc Preparatory School,F909,Children & Families,Supplies and Services,635.49,Sep-23
Slough Borough Council,2918,St Bernard'S Rc Preparatory School,F909,Children & Families,Supplies and Services,"16,225.88",Sep-23
Slough Borough Council,3547,St Ethelberts School,E620,Children & Families,Supplies and Services,"20,084.73",Sep-23
Slough Borough Council,1378,St Josephs Catholic High School,E610,Children & Families,Supplies and Services,"21,141.67",Sep-23
Slough Borough Council,806013,ST MARY'S CHURCH OF ENGLAND PRIMARY SCHOOL,E420,Children & Families,Supplies and Services,"84,679.12",Sep-23
Slough Borough Council,806584,St Mattews Ltd,M15F,Adult Social Care Operations,Supplies and Services,"4,096.43",Sep-23
Slough Borough Council,388,Stanford & Green Ltd,B079,Place Strategy & Infrastructure,Supplies and Services,689.00,Sep-23
Slough Borough Council,468,Stannah Lift Services Ltd,P006,Capital,Capital Charges,"6,008.00",Sep-23
Slough Borough Council,804910,Stennetts Limited,D630,Place Operations,Supplies and Services,"5,070.00",Sep-23
Slough Borough Council,804910,Stennetts Limited,D630,Place Operations,Supplies and Services,"5,070.00",Sep-23
Slough Borough Council,804910,Stennetts Limited,D750,Place Operations,Supplies and Services,"1,000.00",Sep-23
Slough Borough Council,804910,Stennetts Limited,D750,Place Operations,Supplies and Services,"1,000.00",Sep-23
Slough Borough Council,804910,Stennetts Limited,D880,Place Operations,Supplies and Services,"1,365.00",Sep-23
Slough Borough Council,804910,Stennetts Limited,D880,Place Operations,Supplies and Services,"1,365.00",Sep-23
Slough Borough Council,806115,Stepping Stones,F909,Children & Families,Supplies and Services,610.05,Sep-23
Slough Borough Council,808619,Studybugs,F420,Children & Families,Supplies and Services,"15,120.00",Sep-23
Slough Borough Council,293,Surecare Slough,A07R,Adult Social Care Operations,Supplies and Services,862.40,Sep-23
Slough Borough Council,293,Surecare Slough,A07R,Adult Social Care Operations,Supplies and Services,686.00,Sep-23
Slough Borough Council,293,Surecare Slough,A07R,Adult Social Care Operations,Supplies and Services,627.20,Sep-23
Slough Borough Council,293,Surecare Slough,M41D,Adult Social Care Operations,Supplies and Services,518.70,Sep-23
Slough Borough Council,293,Surecare Slough,M41D,Adult Social Care Operations,Supplies and Services,582.80,Sep-23
Slough Borough Council,293,Surecare Slough,M41D,Adult Social Care Operations,Supplies and Services,"1,113.28",Sep-23
Slough Borough Council,293,Surecare Slough,M41D,Adult Social Care Operations,Supplies and Services,"1,646.40",Sep-23
Slough Borough Council,293,Surecare Slough,M44C,Adult Social Care Operations,Supplies and Services,573.30,Sep-23
Slough Borough Council,293,Surecare Slough,M44C,Adult Social Care Operations,Supplies and Services,661.50,Sep-23
Slough Borough Council,293,Surecare Slough,M44C,Adult Social Care Operations,Supplies and Services,525.00,Sep-23
Slough Borough Council,293,Surecare Slough,M44C,Adult Social Care Operations,Supplies and Services,564.20,Sep-23
Slough Borough Council,293,Surecare Slough,M44C,Adult Social Care Operations,Supplies and Services,639.55,Sep-23
Slough Borough Council,293,Surecare Slough,M44C,Adult Social Care Operations,Supplies and Services,511.87,Sep-23
Slough Borough Council,293,Surecare Slough,M44C,Adult Social Care Operations,Supplies and Services,"3,640.61",Sep-23
Slough Borough Council,293,Surecare Slough,M44C,Adult Social Care Operations,Supplies and Services,764.40,Sep-23
Slough Borough Council,293,Surecare Slough,M44C,Adult Social Care Operations,Supplies and Services,"1,156.40",Sep-23
Slough Borough Council,293,Surecare Slough,M44C,Adult Social Care Operations,Supplies and Services,514.50,Sep-23
Slough Borough Council,293,Surecare Slough,M44C,Adult Social Care Operations,Supplies and Services,573.30,Sep-23
Slough Borough Council,293,Surecare Slough,M44C,Adult Social Care Operations,Supplies and Services,661.50,Sep-23
Slough Borough Council,293,Surecare Slough,M44C,Adult Social Care Operations,Supplies and Services,911.40,Sep-23
Slough Borough Council,293,Surecare Slough,M44C,Adult Social Care Operations,Supplies and Services,"1,558.20",Sep-23
Slough Borough Council,293,Surecare Slough,M44C,Adult Social Care Operations,Supplies and Services,591.50,Sep-23
Slough Borough Council,293,Surecare Slough,M44C,Adult Social Care Operations,Supplies and Services,664.87,Sep-23
Slough Borough Council,293,Surecare Slough,M44C,Adult Social Care Operations,Supplies and Services,"1,183.00",Sep-23
Slough Borough Council,293,Surecare Slough,M44C,Adult Social Care Operations,Supplies and Services,"1,365.00",Sep-23
Slough Borough Council,293,Surecare Slough,M44C,Adult Social Care Operations,Supplies and Services,"1,183.00",Sep-23
Slough Borough Council,293,Surecare Slough,M44C,Adult Social Care Operations,Supplies and Services,954.52,Sep-23
Slough Borough Council,293,Surecare Slough,M44C,Adult Social Care Operations,Supplies and Services,548.80,Sep-23
Slough Borough Council,293,Surecare Slough,M44C,Adult Social Care Operations,Supplies and Services,"1,227.67",Sep-23
Slough Borough Council,293,Surecare Slough,M44C,Adult Social Care Operations,Supplies and Services,"2,469.60",Sep-23
Slough Borough Council,293,Surecare Slough,M44C,Adult Social Care Operations,Supplies and Services,821.24,Sep-23
Slough Borough Council,293,Surecare Slough,M44C,Adult Social Care Operations,Supplies and Services,522.99,Sep-23
Slough Borough Council,293,Surecare Slough,M44C,Adult Social Care Operations,Supplies and Services,750.03,Sep-23
Slough Borough Council,293,Surecare Slough,M44C,Adult Social Care Operations,Supplies and Services,"1,214.22",Sep-23
Slough Borough Council,293,Surecare Slough,M44C,Adult Social Care Operations,Supplies and Services,"2,469.60",Sep-23
Slough Borough Council,293,Surecare Slough,M44C,Adult Social Care Operations,Supplies and Services,977.71,Sep-23
Slough Borough Council,293,Surecare Slough,M44C,Adult Social Care Operations,Supplies and Services,"1,073.12",Sep-23
Slough Borough Council,293,Surecare Slough,M44C,Adult Social Care Operations,Supplies and Services,819.28,Sep-23
Slough Borough Council,293,Surecare Slough,M44C,Adult Social Care Operations,Supplies and Services,960.40,Sep-23
Slough Borough Council,293,Surecare Slough,M44C,Adult Social Care Operations,Supplies and Services,729.77,Sep-23
Slough Borough Council,293,Surecare Slough,M44C,Adult Social Care Operations,Supplies and Services,"1,226.31",Sep-23
Slough Borough Council,293,Surecare Slough,M44C,Adult Social Care Operations,Supplies and Services,980.00,Sep-23
Slough Borough Council,293,Surecare Slough,M44C,Adult Social Care Operations,Supplies and Services,"2,469.60",Sep-23
Slough Borough Council,293,Surecare Slough,M44C,Adult Social Care Operations,Supplies and Services,"1,097.60",Sep-23
Slough Borough Council,293,Surecare Slough,M44C,Adult Social Care Operations,Supplies and Services,"1,091.39",Sep-23
Slough Borough Council,293,Surecare Slough,M44C,Adult Social Care Operations,Supplies and Services,"2,528.40",Sep-23
Slough Borough Council,293,Surecare Slough,M44C,Adult Social Care Operations,Supplies and Services,"1,911.33",Sep-23
Slough Borough Council,293,Surecare Slough,M44C,Adult Social Care Operations,Supplies and Services,960.40,Sep-23
Slough Borough Council,293,Surecare Slough,M44C,Adult Social Care Operations,Supplies and Services,"1,228.92",Sep-23
Slough Borough Council,293,Surecare Slough,M44C,Adult Social Care Operations,Supplies and Services,"1,232.51",Sep-23
Slough Borough Council,293,Surecare Slough,M44C,Adult Social Care Operations,Supplies and Services,686.00,Sep-23
Slough Borough Council,293,Surecare Slough,M44C,Adult Social Care Operations,Supplies and Services,"1,257.32",Sep-23
Slough Borough Council,293,Surecare Slough,M44C,Adult Social Care Operations,Supplies and Services,"2,547.01",Sep-23
Slough Borough Council,293,Surecare Slough,M44C,Adult Social Care Operations,Supplies and Services,"2,469.60",Sep-23
Slough Borough Council,293,Surecare Slough,M44C,Adult Social Care Operations,Supplies and Services,"1,038.80",Sep-23
Slough Borough Council,293,Surecare Slough,M44C,Adult Social Care Operations,Supplies and Services,"1,266.88",Sep-23
Slough Borough Council,293,Surecare Slough,M44C,Adult Social Care Operations,Supplies and Services,"1,097.60",Sep-23
Slough Borough Council,293,Surecare Slough,M44C,Adult Social Care Operations,Supplies and Services,"2,465.02",Sep-23
Slough Borough Council,293,Surecare Slough,M44C,Adult Social Care Operations,Supplies and Services,959.08,Sep-23
Slough Borough Council,293,Surecare Slough,M44C,Adult Social Care Operations,Supplies and Services,"1,094.33",Sep-23
Slough Borough Council,293,Surecare Slough,M44C,Adult Social Care Operations,Supplies and Services,"1,372.00",Sep-23
Slough Borough Council,293,Surecare Slough,M44C,Adult Social Care Operations,Supplies and Services,"2,468.29",Sep-23
Slough Borough Council,293,Surecare Slough,M44C,Adult Social Care Operations,Supplies and Services,"2,541.79",Sep-23
Slough Borough Council,293,Surecare Slough,M44C,Adult Social Care Operations,Supplies and Services,819.29,Sep-23
Slough Borough Council,293,Surecare Slough,M44C,Adult Social Care Operations,Supplies and Services,"2,187.03",Sep-23
Slough Borough Council,293,Surecare Slough,M44C,Adult Social Care Operations,Supplies and Services,"2,469.60",Sep-23
Slough Borough Council,293,Surecare Slough,M44C,Adult Social Care Operations,Supplies and Services,"1,920.80",Sep-23
Slough Borough Council,293,Surecare Slough,M44C,Adult Social Care Operations,Supplies and Services,823.20,Sep-23
Slough Borough Council,293,Surecare Slough,M44C,Adult Social Care Operations,Supplies and Services,"2,469.60",Sep-23
Slough Borough Council,293,Surecare Slough,M44C,Adult Social Care Operations,Supplies and Services,"2,466.02",Sep-23
Slough Borough Council,293,Surecare Slough,M44C,Adult Social Care Operations,Supplies and Services,"3,006.31",Sep-23
Slough Borough Council,293,Surecare Slough,M44C,Adult Social Care Operations,Supplies and Services,"2,744.00",Sep-23
Slough Borough Council,293,Surecare Slough,M44C,Adult Social Care Operations,Supplies and Services,"2,461.76",Sep-23
Slough Borough Council,293,Surecare Slough,M44D,Adult Social Care Operations,Supplies and Services,"2,624.77",Sep-23
Slough Borough Council,293,Surecare Slough,M44D,Adult Social Care Operations,Supplies and Services,"2,623.14",Sep-23
Slough Borough Council,293,Surecare Slough,M44D,Adult Social Care Operations,Supplies and Services,960.40,Sep-23
Slough Borough Council,293,Surecare Slough,M44D,Adult Social Care Operations,Supplies and Services,"1,372.00",Sep-23
Slough Borough Council,293,Surecare Slough,M44D,Adult Social Care Operations,Supplies and Services,"1,372.00",Sep-23
Slough Borough Council,293,Surecare Slough,M44D,Adult Social Care Operations,Supplies and Services,"2,469.60",Sep-23
Slough Borough Council,293,Surecare Slough,M44E,Adult Social Care Operations,Supplies and Services,705.60,Sep-23
Slough Borough Council,293,Surecare Slough,M44E,Adult Social Care Operations,Supplies and Services,705.60,Sep-23
Slough Borough Council,293,Surecare Slough,M44E,Adult Social Care Operations,Supplies and Services,823.20,Sep-23
Slough Borough Council,293,Surecare Slough,M44F,Adult Social Care Operations,Supplies and Services,582.40,Sep-23
Slough Borough Council,293,Surecare Slough,M44F,Adult Social Care Operations,Supplies and Services,806.26,Sep-23
Slough Borough Council,293,Surecare Slough,M44F,Adult Social Care Operations,Supplies and Services,"1,391.60",Sep-23
Slough Borough Council,293,Surecare Slough,M45C,Adult Social Care Operations,Supplies and Services,"-2,734.20",Sep-23
Slough Borough Council,293,Surecare Slough,M45C,Adult Social Care Operations,Supplies and Services,"1,146.60",Sep-23
Slough Borough Council,293,Surecare Slough,M45C,Adult Social Care Operations,Supplies and Services,"1,323.00",Sep-23
Slough Borough Council,293,Surecare Slough,M45C,Adult Social Care Operations,Supplies and Services,931.32,Sep-23
Slough Borough Council,293,Surecare Slough,M45C,Adult Social Care Operations,Supplies and Services,"1,538.28",Sep-23
Slough Borough Council,293,Surecare Slough,M45C,Adult Social Care Operations,Supplies and Services,"1,078.00",Sep-23
Slough Borough Council,293,Surecare Slough,M45C,Adult Social Care Operations,Supplies and Services,"2,468.30",Sep-23
Slough Borough Council,293,Surecare Slough,M45C,Adult Social Care Operations,Supplies and Services,"1,231.53",Sep-23
Slough Borough Council,293,Surecare Slough,M45C,Adult Social Care Operations,Supplies and Services,882.00,Sep-23
Slough Borough Council,293,Surecare Slough,M45C,Adult Social Care Operations,Supplies and Services,671.30,Sep-23
Slough Borough Council,293,Surecare Slough,M45C,Adult Social Care Operations,Supplies and Services,"2,498.69",Sep-23
Slough Borough Council,293,Surecare Slough,M48C,Adult Social Care Operations,Supplies and Services,"1,361.88",Sep-23
Slough Borough Council,293,Surecare Slough,M48C,Adult Social Care Operations,Supplies and Services,624.91,Sep-23
Slough Borough Council,293,Surecare Slough,M48C,Adult Social Care Operations,Supplies and Services,"1,078.00",Sep-23
Slough Borough Council,293,Surecare Slough,M48C,Adult Social Care Operations,Supplies and Services,"1,372.00",Sep-23
Slough Borough Council,809129,Talos360 Ltd,B348,People,Supplies and Services,"12,000.00",Sep-23
Slough Borough Council,1677,Taylorfitch,A04A,People Adults,Supplies and Services,659.98,Sep-23
Slough Borough Council,1677,Taylorfitch,A04A,People Adults,Supplies and Services,"1,645.00",Sep-23
Slough Borough Council,3369,Teeny Boppers Montessori School,F909,Children & Families,Supplies and Services,"1,147.31",Sep-23
Slough Borough Council,3369,Teeny Boppers Montessori School,F909,Children & Families,Supplies and Services,"9,123.77",Sep-23
Slough Borough Council,803382,Telford & Wrekin Council,F552,Children & Families,Supplies and Services,"8,651.00",Sep-23
Slough Borough Council,807803,Telsolutions Ltd,H015,Finance & Commercial,Supplies and Services,500.00,Sep-23
Slough Borough Council,804594,Thames Valley AMHP Refresher Consortium,B409,Customer,Indirect Employee Expenses,"2,070.00",Sep-23
Slough Borough Council,807878,Thames Valley Buses,D512,Place Strategy & Infrastructure,Supplies and Services,"13,217.23",Sep-23
Slough Borough Council,803774,The Abbeyfield Maidenhead Society Ltd,M27C,Adult Social Care Operations,Supplies and Services,"3,484.52",Sep-23
Slough Borough Council,809020,The Gerrards Cross CE School,F552,Children & Families,Supplies and Services,"6,576.00",Sep-23
Slough Borough Council,653,The Godolphin Junior Academy,E620,Children & Families,Supplies and Services,"9,000.00",Sep-23
Slough Borough Council,2206,The Housing Ombudsman,J200,Place Management,Supplies and Services,"35,661.50",Sep-23
Slough Borough Council,1385,The Langley Academy,E610,Children & Families,Supplies and Services,"33,083.33",Sep-23
Slough Borough Council,803300,The Langley Academy Primary,E610,Children & Families,Supplies and Services,"21,550.19",Sep-23
Slough Borough Council,806847,The Langley Heritage Primary Academy,E620,Children & Families,Supplies and Services,"19,055.00",Sep-23
Slough Borough Council,805400,The Leading Care Company,M44C,Adult Social Care Operations,Supplies and Services,739.94,Sep-23
Slough Borough Council,805400,The Leading Care Company,M44C,Adult Social Care Operations,Supplies and Services,669.86,Sep-23
Slough Borough Council,805400,The Leading Care Company,M44D,Adult Social Care Operations,Supplies and Services,"3,460.36",Sep-23
Slough Borough Council,805400,The Leading Care Company,M44E,Adult Social Care Operations,Supplies and Services,"5,513.76",Sep-23
Slough Borough Council,3116,The Oratory Montessori Day Nursery,F909,Children & Families,Supplies and Services,929.15,Sep-23
Slough Borough Council,3116,The Oratory Montessori Day Nursery,F909,Children & Families,Supplies and Services,"16,628.29",Sep-23
Slough Borough Council,807439,The Pines,M26E,Adult Social Care Operations,Supplies and Services,"4,813.71",Sep-23
Slough Borough Council,807439,The Pines,M26E,Adult Social Care Operations,Supplies and Services,"4,974.17",Sep-23
Slough Borough Council,807439,The Pines,M26E,Adult Social Care Operations,Supplies and Services,"2,277.00",Sep-23
Slough Borough Council,821,The Westgate School,E610,Children & Families,Supplies and Services,"25,958.34",Sep-23
Slough Borough Council,808805,Thrift Farm,M44E,Adult Social Care Operations,Supplies and Services,595.92,Sep-23
Slough Borough Council,805915,Time 4 U Limited,M44F,Adult Social Care Operations,Supplies and Services,"3,139.01",Sep-23
Slough Borough Council,806360,Tiny Turtles Daycare Nursery Ltd,F909,Children & Families,Supplies and Services,"2,454.24",Sep-23
Slough Borough Council,806360,Tiny Turtles Daycare Nursery Ltd,F909,Children & Families,Supplies and Services,"18,084.36",Sep-23
Slough Borough Council,803194,TMP Worldwide,B348,People,Indirect Employee Expenses,750.00,Sep-23
Slough Borough Council,803194,TMP Worldwide,B348,People,Indirect Employee Expenses,975.00,Sep-23
Slough Borough Council,803194,TMP Worldwide,B348,People,Indirect Employee Expenses,929.15,Sep-23
Slough Borough Council,803194,TMP Worldwide,B348,People,Indirect Employee Expenses,"1,285.50",Sep-23
Slough Borough Council,803194,TMP Worldwide,B348,People,Indirect Employee Expenses,975.00,Sep-23
Slough Borough Council,803194,TMP Worldwide,B348,People,Indirect Employee Expenses,903.75,Sep-23
Slough Borough Council,803194,TMP Worldwide,B348,People,Indirect Employee Expenses,585.00,Sep-23
Slough Borough Council,803194,TMP Worldwide,B348,People,Indirect Employee Expenses,"1,335.00",Sep-23
Slough Borough Council,171,Toad Hall Nursery,F909,Children & Families,Supplies and Services,"1,743.16",Sep-23
Slough Borough Council,171,Toad Hall Nursery,F909,Children & Families,Supplies and Services,"20,467.04",Sep-23
Slough Borough Council,2203,Toby Miller,C322,Community,Supplies and Services,774.00,Sep-23
Slough Borough Council,807871,Total Pest Control (UK) Limited,C001,Place Operations,Premises,637.50,Sep-23
Slough Borough Council,807871,Total Pest Control (UK) Limited,C001,Place Operations,Premises,637.50,Sep-23
Slough Borough Council,807871,Total Pest Control (UK) Limited,J015,Place Management,Supplies and Services,840.00,Sep-23
Slough Borough Council,2889,Tudor (UK) Ltd t/a Tudor Environmental,D750,Place Operations,Supplies and Services,516.84,Sep-23
Slough Borough Council,2889,Tudor (UK) Ltd t/a Tudor Environmental,D750,Place Operations,Supplies and Services,581.13,Sep-23
Slough Borough Council,809154,UK STAR CARE LTD,M44D,Adult Social Care Operations,Supplies and Services,"2,830.05",Sep-23
Slough Borough Council,803603,Unique Training Solutions,A07R,Adult Social Care Operations,Indirect Employee Expenses,730.00,Sep-23
Slough Borough Council,3953,Upton Court Grammar School,E610,Children & Families,Supplies and Services,"2,500.00",Sep-23
Slough Borough Council,1212,Virgin Media Ltd,B282,Digital and Strategic IT,Supplies and Services,"16,583.60",Sep-23
Slough Borough Council,1212,Virgin Media Ltd,B282,Digital and Strategic IT,Supplies and Services,"18,524.85",Sep-23
Slough Borough Council,1212,Virgin Media Ltd,B282,Digital and Strategic IT,Supplies and Services,"16,701.08",Sep-23
Slough Borough Council,1839,Vistascapes,P006,Capital,Capital Charges,"6,266.50",Sep-23
Slough Borough Council,807178,Vitro Global LTD,B409,Customer,Indirect Employee Expenses,"2,016.00",Sep-23
Slough Borough Council,807617,Vivedia Ltd t/a Obitus,D320,Place Operations,External Receipts,"1,410.00",Sep-23
Slough Borough Council,752,Vodafone Limited,B282,Digital and Strategic IT,Supplies and Services,"1,611.36",Sep-23
Slough Borough Council,803163,Volker Highways,D413,Place Strategy & Infrastructure,Supplies and Services,"11,236.13",Sep-23
Slough Borough Council,2682,Voyage 1 Limited,M26E,Adult Social Care Operations,Supplies and Services,631.38,Sep-23
Slough Borough Council,2682,Voyage 1 Limited,M26E,Adult Social Care Operations,Supplies and Services,"6,991.06",Sep-23
Slough Borough Council,2682,Voyage 1 Limited,M26E,Adult Social Care Operations,Supplies and Services,"5,349.63",Sep-23
Slough Borough Council,2682,Voyage 1 Limited,M26E,Adult Social Care Operations,Supplies and Services,"8,197.45",Sep-23
Slough Borough Council,2682,Voyage 1 Limited,M26E,Adult Social Care Operations,Supplies and Services,"5,697.05",Sep-23
Slough Borough Council,2682,Voyage 1 Limited,M26E,Adult Social Care Operations,Supplies and Services,"8,172.76",Sep-23
Slough Borough Council,2682,Voyage 1 Limited,M26E,Adult Social Care Operations,Supplies and Services,611.01,Sep-23
Slough Borough Council,2682,Voyage 1 Limited,M26E,Adult Social Care Operations,Supplies and Services,"5,133.27",Sep-23
Slough Borough Council,2682,Voyage 1 Limited,M26E,Adult Social Care Operations,Supplies and Services,"5,259.39",Sep-23
Slough Borough Council,2682,Voyage 1 Limited,M26E,Adult Social Care Operations,Supplies and Services,"6,706.02",Sep-23
Slough Borough Council,2682,Voyage 1 Limited,M26E,Adult Social Care Operations,Supplies and Services,"7,985.10",Sep-23
Slough Borough Council,2682,Voyage 1 Limited,M26E,Adult Social Care Operations,Supplies and Services,"7,826.92",Sep-23
Slough Borough Council,2682,Voyage 1 Limited,M26E,Adult Social Care Operations,External Receipts,-800.60,Sep-23
Slough Borough Council,2682,Voyage 1 Limited,M26E,Adult Social Care Operations,External Receipts,-517.26,Sep-23
Slough Borough Council,2682,Voyage 1 Limited,M26E,Adult Social Care Operations,External Receipts,-765.26,Sep-23
Slough Borough Council,2682,Voyage 1 Limited,M26E,Adult Social Care Operations,External Receipts,-740.57,Sep-23
Slough Borough Council,2682,Voyage 1 Limited,M26E,Adult Social Care Operations,External Receipts,-774.77,Sep-23
Slough Borough Council,2682,Voyage 1 Limited,M26E,Adult Social Care Operations,External Receipts,-500.57,Sep-23
Slough Borough Council,3436,Voyage Ltd,M26E,Adult Social Care Operations,Supplies and Services,"5,952.57",Sep-23
Slough Borough Council,3436,Voyage Ltd,M26E,Adult Social Care Operations,Supplies and Services,"3,719.02",Sep-23
Slough Borough Council,3436,Voyage Ltd,M26E,Adult Social Care Operations,Supplies and Services,"3,599.06",Sep-23
Slough Borough Council,3436,Voyage Ltd,M26E,Adult Social Care Operations,Supplies and Services,"5,760.56",Sep-23
Slough Borough Council,3436,Voyage Ltd,M42E,Adult Social Care Operations,Supplies and Services,"5,639.27",Sep-23
Slough Borough Council,3436,Voyage Ltd,M42E,Adult Social Care Operations,Supplies and Services,"5,451.97",Sep-23
Slough Borough Council,3436,Voyage Ltd,M42E,Adult Social Care Operations,Supplies and Services,"4,932.03",Sep-23
Slough Borough Council,3436,Voyage Ltd,M42E,Adult Social Care Operations,Supplies and Services,"6,017.99",Sep-23
